{"text_format":"1","workbook":"xlsx","n_sheets":6,"sheets":["Příkaz","Vyúčtování test","Vyúčtování","Zpráva o cestě","Kurzy CNB","List1"],"not_rendered":{"charts":3,"images":1,"macros":1,"external_links":0,"defined_names":6,"comments":4,"pivot_tables":0},"unopened":[],"bounds":{"document_bytes":16777216,"sheet_cells":100000,"rows_first":2000,"rows_last":500,"rows_between":2000,"halvings":0,"cell_chars":16384,"cell_head_chars":4096},"cells_cut":0,"cells_raw":0,"read":"whole","date_system":"1900"}

{"sheet":"Příkaz","index":0,"n_rows":84,"n_cols":29,"rows_kept":84,"cut":false,"hidden":false,"merged":[[14,1,14,2],[14,5,14,6],[14,7,14,8],[1,1,1,17],[8,1,8,2],[8,3,8,17],[0,10,0,17],[4,1,4,2],[4,3,4,9],[4,11,4,17],[6,5,6,6],[6,7,6,8],[6,9,6,17],[31,1,31,3],[31,5,31,17],[29,1,29,2],[17,1,17,2],[19,1,19,5],[21,1,21,15],[19,8,19,12],[19,13,19,15],[25,1,25,2],[27,1,27,2],[23,1,23,9],[23,10,23,17],[54,1,54,6],[54,7,54,8],[63,9,63,17],[62,1,62,3],[44,5,44,17],[44,1,44,2],[46,5,46,17],[48,1,48,2],[48,5,48,7],[48,9,48,10],[48,11,48,17],[52,1,52,3],[52,5,52,17],[50,13,50,17],[50,9,50,12],[56,2,57,17],[58,2,58,17],[60,1,60,17],[83,1,83,7],[75,1,75,7],[75,10,75,17],[79,10,79,17],[83,10,83,17],[79,1,79,7],[65,1,72,17],[63,1,63,3],[50,1,50,4],[50,5,50,8],[33,10,33,15],[42,1,43,17],[33,6,33,8],[46,1,46,2],[41,1,41,17],[37,14,37,17],[36,14,36,17],[33,1,33,5],[37,3,37,5],[36,9,36,10],[36,6,36,8],[36,1,36,2],[36,3,36,5],[0,25,0,27],[38,7,38,9],[39,7,39,9],[38,14,38,16],[39,14,39,16],[17,5,17,17],[25,5,25,15],[27,5,27,15],[29,5,29,15],[14,9,14,17],[10,3,10,17],[12,1,12,3],[37,9,37,12],[10,1,10,2],[36,23,36,24],[12,4,12,17]]}
[null,null,null,null,null,null,null,null,null,null,"Příloha OD  č. 2/2020\n\nEvidenční číslo:",null,null,null,null,null,null,null,null,null,null,null,null,null,null,{"$f":"IFERROR(\"Vyúčtování pracovní cesty a zprávu o pracovní cestě je nutné odevzdat nejpozději do \" &TEXT(List1!$AC$1,\"dd.mm.rrrr\")&\".\",\"\")","v":"Vyúčtování pracovní cesty a zprávu o pracovní cestě je nutné odevzdat nejpozději do 18.01.2024."}]
[null,"CESTOVNÍ  PŘÍKAZ K USKUTEČNĚNÍ ZAHRANIČNÍ PRACOVNÍ CESTY"]
[]
[]
[null,"Jméno a příjmení:",null,null,null,null,null,null,null,null,"Pracoviště:"]
[]
[null,"Zahájení cesty",null,"Datum:",null,"2024-01-02",null,"Místo:",null,null,null,null,null,null,null,null,null,null,null,null,null,null,null,null,null,null,null,null,{"$f":"D18&D26&D28&D30","v":""}]
[]
[null,"Místo konání:",null,null,null,null,null,null,null,null,null,null,null,null,null,null,null,null,null,null,null,null,null,"Stát, místo, pořadatel",null,null,null,null,"PF UKPF UKPF UKPF UK"]
[]
[null,"Název akce/Účel:"]
[]
[null,"Očekávaný přínos/výstup:"]
[]
[null,"Ukončení cesty",null,"Datum:",null,"2024-01-04",null,"Místo:"]
[]
[]
[null,"Jízdné hradí:",null,null,null,"upřesněte zdroj",null,null,null,null,null,null,null,null,null,null,null,null,null,null,null,null,null,"(rozpočet katedry, grant nebo projekt)"]
[]
[null,"Návrh na určení dopravního prostředku:",null,null,null,null,"A",null,{"$f":"IF(G20<>\"\",(VLOOKUP(G20,List1!B3:C11,2,FALSE)),\"\")","v":"Autobus"},null,null,null,null,{"$f":"IF(G20=\"V\",\"Jízdenku zařizuje:\",IF(G20=\"A\",\"Jízdenku zařizuje:\",IF(G20=\"L\",\"Letenku zařizuje:\",\"\")))","v":"Jízdenku zařizuje:"},null,null,null,null,null,null,null,null,null,"Standardně si zaměstnanec zajišťuje letenky/jízdenky sám."]
[]
[null,"Předpokládaná výše jízdních výdajů  za jehož použití mají být poskytnuty náhrady jízdních výdajů:",null,null,null,null,null,null,null,null,null,null,null,null,null,null,null,0]
[]
[null,"Úhrada ostatních výdajů (PF UK, grant nebo jiný zdroj)",null,null,null,null,null,null,null,null,"Předpokládáná výše ostatních výdajů v Kč"]
[]
[null,"Ubytování hradí:",null,null,null,"upřesněte zdroj",null,null,null,null,null,null,null,null,null,null,null,0,null,null,null,null,null,"(rozpočet katedry, grant nebo projekt)",null,"částka v Kč"]
[null,null,null,null,null,null,null,null,null,null,null,null,null,null,null,null,null,null,null,null,null,null,null,null,null,"částka v Kč"]
[null,"Stravné hradí:",null,null,null,"upřesněte zdroj",null,null,null,null,null,null,null,null,null,null,null,0,null,null,null,null,null,"(rozpočet katedry, grant nebo projekt)",null,"částka v Kč"]
[null,null,null,null,null,null,null,null,null,null,null,null,null,null,null,null,null,null,null,null,null,null,null,null,null,"částka v Kč"]
[null,"Nutné vedl. výd. hradí:",null,null,null,"upřesněte zdroj",null,null,null,null,null,null,null,null,null,null,null,0,null,null,null,null,null,"(rozpočet katedry, grant nebo projekt)",null,"částka v Kč"]
[]
[null,"Nutné vedlejší výdaje specifikace:",null,null,null,null,null,null,null,null,null,null,null,null,null,null,null,null,null,null,null,null,null,"Specifikace"]
[]
[null,{"$f":"\"Cestovní pojištění (\"&List1!R2&\"), zajištuje a hradí:\"","v":"Cestovní pojištění (3 dny), zajištuje a hradí:"},null,null,null,null,null,null,null,null,"Předpokládáné výdaje celkem",null,null,null,null,null,null,{"$f":"IF(OR(G20=\"SV\",G20=\"SJ\"),R26+R28+R30,R22+R26+R28+R30)","v":0}]
[]
[]
[null,"Žádám o zálohu:",null,"Ne",null,null,"Výše zálohy:",null,null,0,null,null,"USD",null,null,null,null,null,null,null,null,null,null,{"$f":"IF(D37<>\"\",IF(J37<>\"\",(IF(M37=\"CZK\",1,VLOOKUP(TODAY(),'Kurzy CNB'!$A$1:$AK$315,VLOOKUP(M37,List1!$S$4:$T$36,2,FALSE),TRUE)))*J37,\"\"),\"\")","v":0},null,"Výše v Kč podle naposledy aktualizovaného kurzu"]
[null,null,null,{"$f":"IF(AND(D37=\"Ano, na bank. Účet\",M37<>\"CZK\"),\"vedený v měně \"&M37,\"\")","v":""},null,null,null,null,null,null,null,null,null,null,{"$f":"IF(D37=\"Ano, na bank. účet\",IF(M37=\"CZK\",\"Číslo bankovního účtu\",IF(M37=\"EUR\",\"IBAN\",\"IBAN+vyplňte form. zahr. platby\")),\"datum vyplacení\")","v":"datum vyplacení"}]
[null,"Pracovní cesta bude přerušena:",null,null,null,"Ne","Od:",null,null,null,null,null,"Do:"]
[null,null,null,null,null,null,null,"datum",null,null,"čas",null,null,null,"datum",null,null,"čas"]
[]
[null,"POUŽITÍ  SOUKROMÉHO  VOZIDLA NA PRACOVNÍ CESTU"]
[null,"Vyplní řidič vozidla (zaměstnanec) před cestou."]
[]
[null,{"$f":"IF(G20=\"SJ\",\"Řidič vozidla:\",\"Vlastník  vozidla:\")","v":"Vlastník  vozidla:"}]
[]
[null,"Řidič vozidla:",null,null,null,{"$f":"IF(D5=\"\",\"\",D5)","v":""}]
[]
[null,"RZ vozidla:",null,null,null,null,null,null,null,"Typ vozu:"]
[]
[null,"Datum povinn. proškolení  řidiče:",null,null,null,null,null,null,null,"Číslo havarijní pojistky:"]
[]
[null,"Spolucestující:"]
[]
[null,"Prohlašuji, že vozidlo použité na této služební cestě",null,null,null,null,null,"NENÍ",null," v evidenci plátců silniční daně pro rok 2024."]
[null,"Prohlašuji, že mám platný řidičský průkaz."]
[null,"Přílohy: "," - kopie velkého technického průkazu (datum aktuální technické kontroly)\n - kopie dokladu o sjednání havarijního pojištění (pokud jste už neodevzdali  na ekonomickém oddělení)"]
[]
[null,null,{"$f":"IF(OR(G20=\"V\",G20=\"A - VV\",G20=\"V - VV\",G20=\"L - VV\",G20=\"A - VV\",G20=\"A\",G20=\"L\",),\" - doklad o předpokládané výši jízdních výdajů za dopravní prostředek, za jehož použití mají být poskytnuty náhrady jízdních výdajů\",\"\")","v":" - doklad o předpokládané výši jízdních výdajů za dopravní prostředek, za jehož použití mají být poskytnuty náhrady jízdních výdajů"}]
[null,{"$f":"IFERROR(\"Prohlašuji, že podám vyúčtování pracovní cesty a zprávu pracovní cestě nejpozději do \" &TEXT(List1!AC1,\"dd.mm.rrrr\")&\".\",\"\")","v":"Prohlašuji, že podám vyúčtování pracovní cesty a zprávu pracovní cestě nejpozději do 18.01.2024."}]
[null,{"$f":"\"Žádám o náhradu jízdních výdajů  \"&IF(G20=\"VV\",\"za každý kilometr jízdy sazbou základní náhrady a náhradou za spotřebované pohonné hmoty podle zákonných sazeb platných v době konání pracovní cesty.\",IF(OR(G20=\"V - VV\",G20=\"V\"),\"ve výši odpovídající ceně jízdenky za vlak do výše \" & R22 &\" Kč.\",IF(OR(G20=\"A - VV\",G20=\"A\"),\"ve výši odpovídající ceně jízdenky za autobus do výše \" &R22&\" Kč.\",IF(OR(G20=\"L - VV\",G20=\"L\"),\"ve výši odpovídající ceně letenky do výše \" &R22&\" Kč.\",\"- NE.\"))))","v":"Žádám o náhradu jízdních výdajů  ve výši odpovídající ceně jízdenky za autobus do výše 0 Kč."}]
[]
[]
[null,"V Praze dne",null,null,null,null,null,null,null,"Podpis zaměstnance"]
[]
[]
[]
[]
[]
[]
[]
[]
[]
[null,"Poznámka schvalujících"]
[]
[null,"Podpis  řešitele grantu nebo projektu",null,null,null,null,null,null,null,null,"Podpis přímého nadřízeného"]
[]
[]
[]
[null,"Podpis vedoucího zahraničního oddělení",null,null,null,null,null,null,null,null,"Podpis tajemníka (správce rozpočtu)"]
[]
[]
[]
[null,"Podpis vedoucí ekonomického oddělení",null,null,null,null,null,null,null,null,"Podpis proděkanky pro zahraniční vztahy"]

{"sheet":"Vyúčtování test","index":1,"n_rows":56,"n_cols":33,"rows_kept":56,"cut":false,"hidden":true,"merged":[[24,24,24,26],[16,19,17,19],[14,19,15,19],[12,19,13,19],[10,19,11,19],[8,19,9,19],[6,19,7,19],[8,1,9,1],[8,3,8,4],[8,6,9,6],[8,7,9,7],[8,9,9,9],[8,8,9,8],[18,10,19,10],[18,11,19,11],[14,13,15,13],[12,1,13,1],[12,11,13,11],[14,11,15,11],[14,12,15,12],[14,17,15,17],[15,3,15,4],[12,8,13,8],[10,1,11,1],[4,1,5,1],[4,3,4,4],[4,6,5,6],[4,7,5,7],[4,9,5,9],[6,1,7,1],[6,3,6,4],[6,6,7,6],[6,7,7,7],[6,9,7,9],[6,8,7,8],[55,9,56,17],[44,1,44,8],[48,9,48,17],[46,1,47,8],[49,9,49,17],[23,7,23,10],[34,1,34,4],[41,1,41,4],[51,1,51,5],[55,1,55,5],[30,1,31,4],[29,5,30,8],[31,7,31,8],[24,10,24,13],[14,8,15,8],[10,17,11,17],[18,13,19,13],[18,17,19,17],[5,3,5,4],[6,13,7,13],[6,17,7,17],[8,10,9,10],[8,11,9,11],[8,12,9,12],[8,13,9,13],[8,17,9,17],[9,3,9,4],[6,12,7,12],[7,3,7,4],[4,8,5,8],[6,10,7,10],[6,11,7,11],[11,3,11,4],[10,3,10,4],[10,6,11,6],[10,7,11,7],[10,9,11,9],[10,8,11,8],[4,20,5,20],[6,20,7,20],[8,20,9,20],[10,20,11,20],[12,20,13,20],[4,10,5,10],[4,11,5,11],[4,12,5,12],[4,13,5,13],[4,17,5,17],[4,19,5,19],[10,10,11,10],[10,11,11,11],[10,12,11,12],[10,13,11,13],[14,20,15,20],[16,20,17,20],[1,1,1,17],[2,1,3,1],[2,3,3,4],[2,6,3,6],[2,7,3,7],[2,8,3,8],[12,12,13,12],[16,12,17,12],[12,13,13,13],[12,17,13,17],[13,3,13,4],[14,1,15,1],[14,3,14,4],[14,6,15,6],[14,7,15,7],[14,9,15,9],[14,10,15,10],[12,3,12,4],[12,6,13,6],[12,7,13,7],[12,9,13,9],[12,10,13,10],[18,20,19,20],[16,13,17,13],[16,17,17,17],[17,3,17,4],[18,1,19,1],[18,3,18,4],[18,6,19,6],[18,7,19,7],[18,9,19,9],[16,6,17,6],[16,7,17,7],[16,9,17,9],[16,10,17,10],[16,11,17,11],[18,19,19,19],[18,12,19,12],[19,3,19,4],[16,8,17,8],[18,8,19,8],[16,1,17,1],[16,3,16,4]]}
[]
[null,"VYÚČTOVÁNÍ PRACOVNÍ CESTY"]
[null,"Datum",null,"Odjezd - příjezd",null,null,"Použitý dopr. prostředek2)","Vzdálenost\nv km 1)","Jízdné v případě AUV","Jízdné a místní přeprava","Stravné","Noc-\nležné","Nutné\nvedlejší výdaje","Celkem",null,null,null,"Upraveno"]
[null,null,null,null,null,"v hod.",null,null,null,"Kč","Kč","Kč","Kč","Kč",null,null,null,"Kč",null,null,null,null,null,null,"Vozidlo"]
[null,"2020-01-02","Odjezd",null,null,"10:00:00",null,null,{"$f":"IF(G5=\"VV\",ROUND(H5*$Z$14+H5*$Z$18,2),\"\")","v":""},null,{"$f":"R26","v":691},null,null,{"$f":"(N(I5)+J5+L5+M5)","v":0},null,null,{"$f":"VLOOKUP(P27,$AC$12:$AG$16,Q27+1,FALSE)","v":91},null,null,{"$f":"IF(B5=\"\",\"\",IF(B7=\"\",\"konec\",\"průběh\"))","v":"průběh"},{"$f":"VLOOKUP(IF(B5=\"\",0,(IF(B5=B3,1000,100)+IF(B5=B7,10,1))),List1!$B$22:$D$26,3,FALSE)","v":4},{"$f":"B5","v":"2020-01-02"},{"$f":"IF(V5<>0,B5+F5,\"\")","v":"2020-01-02T10:00:00"},null,"SPZ"]
[null,null,"Příjezd",null,null,"12:00:00",null,null,null,null,null,null,null,null,null,null,null,null,null,null,null,{"$f":"B5","v":"2020-01-02"},{"$f":"IF(V5<>0,B5+F6,\"\")","v":"2020-01-02T12:00:00"},null,"Palivo","nafta",null,null,null,{"$f":"AD8","v":43832}]
[null,"2020-01-05","Odjezd",null,null,"15:00:00",null,null,{"$f":"IF(G7=\"VV\",ROUND(H7*$Z$14+H7*$Z$18,2),\"\")","v":""},null,null,null,null,{"$f":"(N(I7)+J7+L7+M7)","v":0},null,null,{"$f":"VLOOKUP(P28,$AC$12:$AG$16,Q28+1,FALSE)","v":200},null,null,{"$f":"IF(B7=\"\",\"\",IF(B9=\"\",\"konec\",\"průběh\"))","v":"konec"},{"$f":"VLOOKUP(IF(B7=\"\",0,(IF(B7=B5,1000,100)+IF(B7=B9,10,1))),List1!$B$22:$D$26,3,FALSE)","v":4},{"$f":"B7","v":"2020-01-05"},{"$f":"IF(V7<>0,B7+F7,\"\")","v":"2020-01-05T15:00:00"},null,"spotřeba 1",3.1]
[null,null,"Příjezd",null,null,"20:00:00",null,null,null,null,null,null,null,null,null,null,null,null,null,null,null,{"$f":"B7","v":"2020-01-05"},{"$f":"IF(V7<>0,B7+F8,\"\")","v":"2020-01-05T20:00:00"},null,"spotřeba 2",null,null,null,null,{"$f":"MIN(B5:B20)","v":"2020-01-02"},{"$f":"MIN(W5:W20)","v":"2020-01-02T10:00:00"}]
[null,null,"Odjezd",null,null,null,null,null,{"$f":"IF(G9=\"VV\",ROUND(H9*$Z$14+H9*$Z$18,2),\"\")","v":""},null,null,null,null,{"$f":"(N(I9)+J9+L9+M9)","v":0},null,null,null,null,null,{"$f":"IF(B9=\"\",\"\",IF(B11=\"\",\"konec\",\"průběh\"))","v":""},{"$f":"VLOOKUP(IF(B9=\"\",0,(IF(B9=B7,1000,100)+IF(B9=B11,10,1))),List1!$B$22:$D$26,3,FALSE)","v":5},{"$f":"B9","v":"00:00:00"},{"$f":"IF(V9<>0,B9+F9,\"\")","v":""},null,"spotřeba 3",null,null,null,null,{"$f":"MAX(B5:B20)","v":"2020-01-05"},{"$f":"MAX(W5:W20)","v":"2020-01-05T20:00:00"}]
[null,null,"Příjezd",null,null,null,null,null,null,null,null,null,null,null,null,null,null,null,null,null,null,{"$f":"B9","v":"00:00:00"},{"$f":"IF(V9<>0,B9+F10,\"\")","v":""},null,"spotřeba 4"]
[null,null,"Odjezd",null,null,null,null,null,{"$f":"IF(G11=\"VV\",ROUND(H11*$Z$14+H11*$Z$18,2),\"\")","v":""},null,null,null,null,{"$f":"(N(I11)+J11+L11+M11)","v":0},null,null,null,null,null,{"$f":"IF(B11=\"\",\"\",IF(B13=\"\",\"konec\",\"průběh\"))","v":""},{"$f":"VLOOKUP(IF(B11=\"\",0,(IF(B11=B9,1000,100)+IF(B11=B13,10,1))),List1!$B$22:$D$26,3,FALSE)","v":5},{"$f":"B11","v":"00:00:00"},{"$f":"IF(V11<>0,B11+F11,\"\")","v":""},null,"Průměr - použitá spotřeba",{"$f":"ROUND(AVERAGE(Z7:Z10),2)","v":3.1},null,null,null,"0 - 5 hod","5 až 12 hod.","12 až 18 hod.","více než 18 hod."]
[null,null,"Příjezd",null,null,null,null,null,null,null,null,null,null,null,null,null,null,null,null,null,null,{"$f":"B11","v":"00:00:00"},{"$f":"IF(V11<>0,B11+F12,\"\")","v":""},null,"Cena paliva z dokladu",null,"Pokud nezadáte cenu paliva z dokladu, bude použita cena z vyhlášky",null,"počet jídel",0,"I","II","III"]
[null,null,"Odjezd",null,null,null,null,null,{"$f":"IF(G13=\"VV\",ROUND(H13*$Z$14+H13*$Z$18,2),\"\")","v":""},null,null,null,null,{"$f":"(N(I13)+J13+L13+M13)","v":0},null,null,null,null,null,{"$f":"IF(B13=\"\",\"\",IF(B15=\"\",\"konec\",\"průběh\"))","v":""},{"$f":"VLOOKUP(IF(B13=\"\",0,(IF(B13=B11,1000,100)+IF(B13=B15,10,1))),List1!$B$22:$D$26,3,FALSE)","v":5},{"$f":"B13","v":"00:00:00"},{"$f":"IF(V13<>0,B13+F13,\"\")","v":""},null,"Náhrady",null,null,null,0,0,90,140,200]
[null,null,"Příjezd",null,null,null,null,null,null,null,null,null,null,null,null,null,null,null,null,null,null,{"$f":"B13","v":"00:00:00"},{"$f":"IF(V13<>0,B13+F14,\"\")","v":""},null,"amortizace za km",4.0999999999999996,null,null,1,0,{"$f":"AE13*0.3","v":27},{"$f":"0.65*AF13","v":91},{"$f":"0.75*AG13","v":150}]
[null,null,"Odjezd",null,null,null,null,null,{"$f":"IF(G15=\"VV\",ROUND(H15*$Z$14+H15*$Z$18,2),\"\")","v":""},null,null,null,null,{"$f":"(N(I15)+J15+L15+M15)","v":0},null,null,null,null,null,{"$f":"IF(B15=\"\",\"\",IF(B17=\"\",\"konec\",\"průběh\"))","v":""},{"$f":"VLOOKUP(IF(B15=\"\",0,(IF(B15=B13,1000,100)+IF(B15=B17,10,1))),List1!$B$22:$D$26,3,FALSE)","v":5},{"$f":"B15","v":"00:00:00"},{"$f":"IF(V15<>0,B15+F15,\"\")","v":""},null,"benzin 95 oktanů",33.1,null,null,2,0,0,{"$f":"0.3*AF13","v":42},{"$f":"0.5*AG13","v":100}]
[null,null,"Příjezd",null,null,null,null,null,null,null,null,null,null,null,null,null,null,null,null,null,null,{"$f":"B15","v":"00:00:00"},{"$f":"IF(V15<>0,B15+F16,\"\")","v":""},null,"benzin 98 oktanů",37.1,null,null,3,0,0,0,{"$f":"0.25*AG13","v":50}]
[null,null,"Odjezd",null,null,null,null,null,{"$f":"IF(G17=\"VV\",ROUND(H17*$Z$14+H17*$Z$18,2),\"\")","v":""},null,null,null,null,0,null,null,null,null,null,{"$f":"IF(B17=\"\",\"\",IF(B19=\"\",\"konec\",\"průběh\"))","v":""},{"$f":"VLOOKUP(IF(B17=\"\",0,(IF(B17=B15,1000,100)+IF(B17=B19,10,1))),List1!$B$22:$D$26,3,FALSE)","v":5},{"$f":"B17","v":"00:00:00"},{"$f":"IF(V17<>0,B17+F17,\"\")","v":""},null,"nafta",33.6]
[null,null,"Příjezd",null,null,null,null,null,null,null,null,null,null,null,null,null,null,null,null,null,null,{"$f":"B17","v":"00:00:00"},{"$f":"IF(V17<>0,B17+F18,\"\")","v":""},null,"náhrada za km paliva",{"$f":"ROUND(IF(Z12=0,(VLOOKUP(Z6,Y15:Z17,2,FALSE)),Z12)*Z11/100,4)","v":1.0416000000000001},{"$f":"IF(Z12<>\"\",\"použita cena z dokladu\",\"použita cena z vyhlášky\")","v":"použita cena z vyhlášky"}]
[null,null,"Odjezd",null,null,null,null,null,{"$f":"IF(G19=\"VV\",ROUND(H19*$Z$14+H19*$Z$18,2),\"\")","v":""},null,null,null,null,0,null,null,null,null,null,{"$f":"IF(B19=\"\",\"\",IF(B21=\"\",\"konec\",\"průběh\"))","v":""},{"$f":"VLOOKUP(IF(B19=\"\",0,(IF(B19=B17,1000,100)+IF(B19=B21,10,1))),List1!$B$22:$D$26,3,FALSE)","v":5},{"$f":"B19","v":"00:00:00"},{"$f":"IF(V19<>0,B19+F19,\"\")","v":""}]
[null,null,"Příjezd",null,null,null,null,null,null,null,null,null,null,null,null,null,null,null,null,null,null,{"$f":"B19","v":"00:00:00"},{"$f":"IF(V19<>0,B19+F20,\"\")","v":""}]
[null,null,null,null,null,null,null,"Celkem",{"$f":"SUM(I5:I20)","v":0},{"$f":"SUM(J5:J20)","v":0},{"$f":"SUM(K5:K20)","v":691},{"$f":"IF(E23=\"ano\",0,SUM(L5:L20))","v":0},{"$f":"SUM(M5:M20)","v":0},{"$f":"SUM(I21:M21)","v":691}]
[null,"Strava poskytnuta bezplatně",null,null,"ano",null,null,"Záloha"]
[null,"Ubytování  poskytnuto bezplatně:*",null,null,"ano",null,null,{"$f":"IF((N21-N22)<0,\"Přeplatek (účtovatel vrátí)\", \"Doplatek (účtovateli bude doplaceno)\")","v":"Doplatek (účtovateli bude doplaceno)"},null,null,null,null,null,{"$f":"ABS(CEILING(N21-N22,1))","v":691}]
[null,null,null,null,null,null,null,null,null,null,null,null,null,null,null,{"$f":"IF(O28=\"\",1,IF((O27+O28)<=5/24,1,IF((O27+O28)<=12/24,2,IF((O27+O28)<=18/24,3,4))))","v":4},{"$f":"VLOOKUP((IF((P28+P27)>3,3,(P28+P27))),$AC$12:$AG$16,P24+1,FALSE)","v":150}]
[null,"V - Vlak","SV - služební vozidlo",null,"V - VV  - vlastní vozidlo s náhradou výdajů za vlak",null,null,null,null,null,"Bezplatně poskytnutá strava",null,null,null,null,"počet jídel","skupina","Celkem",null,null,null,null,null,null,"Přehled EU norem používaných v TP"]
[null,"A - autobus","CV -  spolujízda",null,"A - VV - vlastní vozidlo s náhradou výdajů za autobus",null,null,null,null,null,"Datum","snídaně","oběd","večeře","doba",null,null,{"$f":"SUM(R27:R43)","v":691},null,null,null,null,null,null,"80/1268/EHS","arit.průměr","3 údaje v TP"]
[null,"L - letadlo","VV - vlastní vozidlo",null,"L - VV - vlastní vozidlo s náhradou výdajů za letadlo",null,null,null,null,null,{"$f":"IF(AD8<>0,AD8,\"\")","v":"2020-01-02"},"ano",null,null,{"$f":"IF(K27<>\"\",IF(K28<>0,K27+1-AE8,AE9-AE8),\"\")","v":0.58333333333575865},{"$f":"IF($E$22=\"ne\",0,IF(LEFT(L27,1)=\"A\",1,0)+IF(LEFT(M27,1)=\"A\",1,0)+IF(LEFT(N27,1)=\"A\",1,0))","v":1},{"$f":"IF(OR(O27<=5/24+1/24/60/60/100,O27=\"\"),1,IF(O27<=12/24,2,IF(O27<=18/24,3,4)))","v":3},{"$f":"IF(AND(K29=\"\",(Q7+Q5)<Q24),0,Q5)","v":91},null,null,null,null,null,null,"93/116/ES","třetí údaj"]
[null,null,null,null,null,null,null,null,null,null,{"$f":"IF(($AD$8+List1!A2)<=$AD$9,$AD$8+List1!A2,\"\")","v":"2020-01-03"},null,null,null,{"$f":"IF(K28<>\"\",IF(K29<>\"\",1,$AE$9-K28),\"\")","v":1},0,{"$f":"IF(OR(O28<=5/24+1/24/60/60/100,O28=\"\"),1,IF(O28<=12/24,2,IF(O28<=18/24,3,4)))","v":4},{"$f":"IF(AND(K29=\"\",(Q7+Q5)<Q24),Q24,Q7)","v":200},null,null,null,null,null,null,"1999/100/ES","třetí údaj"]
[null,null,null,null,null,null,null,null,null,null,{"$f":"IF(($AD$8+List1!A3)<=$AD$9,$AD$8+List1!A3,\"\")","v":"2020-01-04"},null,null,null,1,0,4,{"$f":"VLOOKUP(P29,$AC$12:$AG$16,Q29+1,FALSE)","v":200},null,null,null,null,null,null,"2004/3/ES","třetí údaj"]
[null,"Zdroj financování (PF UK, grant, jiný zdroj):",null,null,null,"Zpráva o výsledku pracovní cesty byla podána dne: ",null,null,null,null,{"$f":"IF(($AD$8+List1!A4)<=$AD$9,$AD$8+List1!A4,\"\")","v":"2020-01-05"},null,null,null,0.83333333333575865,0,4,200,null,null,null,null,null,null,"EU 692/2008","třetí údaj"]
[null,null,null,null,null,null,null,null,null,null,{"$f":"IF(($AD$8+List1!A5)<=$AD$9,$AD$8+List1!A5,\"\")","v":""},null,null,null,"",0,1,0,null,null,null,null,null,null,"EU 692/2008A,…F","třetí údaj"]
[null,null,null,null,null,null,null,null,null,null,{"$f":"IF(($AD$8+List1!A6)<=$AD$9,$AD$8+List1!A6,\"\")","v":""},null,null,null,"",0,1,0,null,null,null,null,null,null,"EU/566/2011","třetí údaj"]
[null,null,null,null,null,null,null,null,null,null,{"$f":"IF(($AD$8+List1!A7)<=$AD$9,$AD$8+List1!A7,\"\")","v":""},null,null,null,"",0,1,0,null,null,null,null,null,null,"2007/46/ES","třetí údaj"]
[null,"Číslo bankovního účtu pro zasílání náhrad účtovateli:",null,null,null,null,null,null,null,null,{"$f":"IF(($AD$8+List1!A8)<=$AD$9,$AD$8+List1!A8,\"\")","v":""},null,null,null,"",0,1,0,null,null,null,null,null,null,"EHK 101,R101.00","třetí údaj"]
[null,null,null,null,null,null,null,null,null,null,{"$f":"IF(($AD$8+List1!A9)<=$AD$9,$AD$8+List1!A9,\"\")","v":""},null,null,null,"",0,1,0,null,null,null,null,null,null,"459/2012/EU","třetí údaj"]
[null,null,null,null,null,null,null,null,null,null,{"$f":"IF(($AD$8+List1!A10)<=$AD$9,$AD$8+List1!A10,\"\")","v":""},null,null,null,"",0,1,0,null,null,null,null,null,null,"630/2012/EU ","třetí údaj"]
[null,"Prohlašuji, že jsem všechny údaje uvedl úplně a správně.",null,null,null,null,null,null,null,null,{"$f":"IF(($AD$8+List1!A11)<=$AD$9,$AD$8+List1!A11,\"\")","v":""},null,null,null,"",0,1,0,null,null,null,null,null,null,"EU195/2013","třetí údaj"]
[null,null,null,null,null,null,null,null,null,null,{"$f":"IF(($AD$8+List1!A12)<=$AD$9,$AD$8+List1!A12,\"\")","v":""},null,null,null,"",0,1,0,null,null,null,null,null,null,"715/2007/ES","třetí údaj"]
[null,null,null,null,null,null,null,null,null,null,{"$f":"IF(($AD$8+List1!A13)<=$AD$9,$AD$8+List1!A13,\"\")","v":""},null,null,null,"",0,1,0,null,null,null,null,null,null,"EU136/2014","třetí údaj"]
[null,null,null,null,null,null,null,null,null,null,{"$f":"IF(($AD$8+List1!A14)<=$AD$9,$AD$8+List1!A14,\"\")","v":""},null,null,null,"",0,1,0,null,null,null,null,null,null,"EU2016/646","třetí údaj"]
[null,null,null,null,null,null,null,null,null,null,{"$f":"IF(($AD$8+List1!A15)<=$AD$9,$AD$8+List1!A15,\"\")","v":""},null,null,null,"",0,1,0,null,null,null,null,null,null,"EU2017/1347","třetí údaj"]
[null,"Datum a podpis účtovatele",null,null,null,null,null,null,null,null,{"$f":"IF(($AD$8+List1!A16)<=$AD$9,$AD$8+List1!A16,\"\")","v":""},null,null,null,"",0,1,0,null,null,null,null,null,null,"EU2015/45","třetí údaj"]
[null,null,null,null,null,null,null,null,null,null,{"$f":"IF(($AD$8+List1!A17)<=$AD$9,$AD$8+List1!A17,\"\")","v":""},null,null,null,"",0,1,0,null,null,null,null,null,null,"jiná norma","arit.průměr"]
[]
[]
[]
[null,"Se způsobem provedení vyučtování souhlasí:"]
[]
[]
[null,null,null,null,null,null,null,null,null,"Podpis přímého nadřízeného nebo řešitele grantu, projektu…"]
[]
[null,"Datum a podpis správce rozpočtu (tajemníka)"]
[]
[]
[]
[null,"Podpis vedoucího ekonom. odd. ",null,null,null,null,null,null,null,"Podpis zaměstnance, který kontroloval \na upravil vyúčtování (pokladní)"]

{"sheet":"Vyúčtování","index":2,"n_rows":60,"n_cols":46,"rows_kept":60,"cut":false,"hidden":false,"merged":[[10,10,10,14],[15,12,15,14],[3,1,3,3],[3,4,3,10],[8,13,8,14],[15,1,15,2],[15,9,15,10],[5,6,5,10],[15,5,15,6],[13,1,13,3],[8,1,8,3],[11,1,11,3],[10,1,10,3],[9,13,9,14],[11,7,11,8],[0,45,0,49],[6,26,9,28],[0,8,0,14],[8,6,8,12],[7,38,9,50],[4,32,5,32],[4,31,5,31],[8,18,8,19],[1,1,1,14],[3,13,3,14],[7,1,7,3],[4,13,4,14],[4,1,4,3],[4,4,4,10],[6,6,6,10],[5,13,6,14],[2,1,2,3],[2,4,2,10],[28,36,28,38],[7,6,7,10],[6,31,7,31],[9,1,9,3],[6,32,7,32],[9,6,9,10],[9,18,9,19],[20,1,23,2],[24,1,25,2],[16,1,16,2],[28,1,28,6],[19,10,19,14],[24,10,24,14],[6,1,6,3],[16,5,16,6],[34,1,35,8],[33,1,33,8],[19,1,19,2],[30,1,30,6],[18,1,18,14],[16,9,16,10],[21,9,22,9],[23,3,23,4],[19,3,19,4],[29,1,29,6],[26,1,27,2],[26,3,26,4],[27,3,27,4],[21,3,21,4],[22,3,22,4],[25,3,25,4],[20,3,20,4],[24,3,24,4],[37,1,37,6],[38,1,39,4],[41,1,43,8],[59,5,61,9],[59,1,61,3],[55,1,56,3],[46,1,47,8],[55,5,56,8],[50,1,51,3],[50,5,50,8]]}
[null,null,null,null,null,null,null,null,"Příloha OD  č. 2/2020",null,null,null,null,null,null,null,null,null,null,null,null,null,null,null,null,null,null,{"$f":"\"Kurzy ČNB jsou aktualizovány k \"&TEXT(AN2,\"dd.mm.rrrr\")","v":"Kurzy ČNB jsou aktualizovány k 25.04.2024"},null,null,null,null,null,null,{"$f":"60*60*24","v":86400},null,null,null,null,null,null,null,null,null,null,{"$f":"IFERROR(\"Vyúčtování pracovní cesty a zprávu o pracovní cestě je nutné odevzdat nejpozději do \" &TEXT(List1!$AC$1,\"dd.mm.rrrr\")&\".\",\"\")","v":"Vyúčtování pracovní cesty a zprávu o pracovní cestě je nutné odevzdat nejpozději do 18.01.2024."}]
[null,"VYÚČTOVÁNÍ ZAHRANIČNÍ PRACOVNÍ CESTY",null,null,null,null,null,null,null,null,null,null,null,null,null,null,null,null,null,null,null,null,null,null,null,null,null,null,null,null,null,null,null,null,null,null,null,null,null,{"$f":"(MAX('Kurzy CNB'!$A$2:$A$446))","v":"2024-04-25"}]
[null,"Jméno a příjmení",null,null,{"$f":"T(Příkaz!D5)","v":""}]
[null,"Název akce/Účel:",null,null,{"$f":"T(Příkaz!D11)","v":""},null,null,null,null,null,null,null,null,"stát",null,null,null,null,null,null,null,null,null,null,null,null,null,null,null,null,null,null,null,null,null,null,"Vozidlo"]
[null,"Místo konání akce",null,null,{"$f":"T(Příkaz!D9)","v":""},null,null,null,null,null,null,null,null,"Slovensko",null,null,null,null,null,null,null,null,null,null,null,null,null,null,null,null,null,null,null,null,null,null,"SPZ"]
[null,null,null,null,"datum","čas","místo",null,null,null,null,null,null,"základní sazba zahraničního stravného",null,null,null,null,null,null,null,null,null,null,null,null,null,null,null,null,null,null,null,null,null,null,"Palivo","benzin 95 oktanů",null,null,null,{"$f":"AP8","v":0}]
[null,"Zahájení cesty",null,null,"2024-01-02","07:00:00",null,null,null,null,null,null,null,null,null,null,null,null,{"$f":"E7+F7","v":"2024-01-02T07:00:00"},null,null,null,null,null,null,null,"Neposkytnutí náhrady cestovních výdajů\n dle čl.15 OD 1/2022 v případě, že byla zaměstnanci poskytnuta náhrada v zahraničí nebo z jiného zdroje",null,null,null,null,null,null,null,null,null,"spotřeba 1",3.3,"Doplňte kombinovanou spotřebu dle norem EU z TP a ostatní pole ponechte prázdné"]
[null,"Překročení státní hranice/odlet",null,null,"2024-01-02","07:00:00",{"$f":"IF(S8<S7,\"překročení hranice nemůže být před začátkem cesty\",\"\")","v":""},null,null,null,null,null,null,{"$f":"IFERROR(VLOOKUP(N5,List1!V3:Y180,4,FALSE),\"Vyberte\")","v":35},{"$f":"IFERROR(VLOOKUP(N5,List1!V3:Y180,2,FALSE),\"stát\")","v":"EUR"},null,null,null,{"$f":"E8+F8","v":"2024-01-02T07:00:00"},null,null,null,null,null,null,null,null,null,null,null,null,null,null,null,null,null,"spotřeba 2",null,"Pokud údaj o kombinované spotřebě v technickém průkazu není, vypočte se spotřeba PHM vozidla aritmetickým průměrem ze všech údajů o spotřebě uvedených v technickém průkazu."]
[null,"Překročení státní hranice/přílet",null,null,"2024-01-04","23:00:00",{"$f":"IF(OR(E7>MAX('Kurzy CNB'!A2:A446),E16>MAX('Kurzy CNB'!A2:A446)),\"Začátek cesty nebo datum zálohy je v období mimo načtené kurzy ČNB\",\"\")","v":""},null,null,null,null,null,null,"použit kurz ze dne",null,null,null,null,{"$f":"E9+F9","v":"2024-01-04T23:00:00"},null,null,null,null,null,null,null,null,null,null,null,null,null,null,null,null,null,"spotřeba 3"]
[null,"Ukončení cesty",null,null,"2024-01-04","23:00:00",null,null,null,null,null,null,null,{"$f":"IF(AND(E16<>\"\",E14<>\"NE\",OR(F16<>\"\",F17<>\"\")),E16,E7)","v":"2024-01-02"},null,null,null,null,{"$f":"E10+F10","v":"2024-01-04T23:00:00"},null,null,null,null,null,null,null,null,null,null,null,null,null,null,null,null,null,"spotřeba 4"]
[null,"Strava poskytnuta bezplatně",null,null,"Ano",null,"Celková vzdálenost v km  při použití VV",null,null,null,"Poskytnuté náhrady za výdaje:",null,null,null,null,null,null,null,null,null,null,null,null,null,null,null,"nárok","náhrada","k vyúčtování",null,null,null,null,null,null,null,"Průměr - použitá spotřeba",{"$f":"ROUND(AVERAGE(AL7:AL10),2)","v":3.3},null,null,null,"0 - 5 hod","5 až 12 hod.","12 až 18 hod.","více než 18 hod."]
[null,"Použitý dopr. prostředek",null,null,"V",null,null,{"$f":"IF(E12=\"VV\",CEILING(G12*$AL$16+G12*$AL$21,0.01),\"\")","v":""},null,null,"ubytování",null,"EUR",null,{"$f":"IF(N12<>\"\",IF(M12<>\"\",(IF(M12=\"CZK\",1,VLOOKUP($N$10,'Kurzy CNB'!$A$1:$AK$315,VLOOKUP(M12,List1!$S$4:$T$36,2,FALSE),TRUE)))*N12/VLOOKUP(M12,List1!$S$3:$U$36,3,FALSE),0),0)","v":0},null,null,null,null,null,null,null,null,null,null,null,{"$f":"SUM(I25:I26)","v":0},{"$f":"O12","v":0},{"$f":"IF((AA12-AB12)<0,0,AA12-AB12)","v":0},null,null,null,null,null,null,null,"Cena paliva z dokladu",null,"CZK",null,"počet jídel",0,"I","II","III"]
[null,null,null,null,null,null,null,null,null,null,"jízdné",null,"EUR",null,{"$f":"IF(N13<>\"\",IF(M13<>\"\",(IF(M13=\"CZK\",1,VLOOKUP($N$10,'Kurzy CNB'!$A$1:$AK$315,VLOOKUP(M13,List1!$S$4:$T$36,2,FALSE),TRUE)))*N13/VLOOKUP(M13,List1!$S$3:$U$36,3,FALSE),0),0)","v":0},null,null,null,null,null,null,null,null,null,null,null,{"$f":"SUM(I21:I24)","v":0},{"$f":"O13","v":0},{"$f":"IF((AA13-AB13)<0,0,AA13-AB13)","v":0},null,null,null,null,null,null,null,"Cena paliva z dokladu CZK",{"$f":"CEILING(IF(AL12<>\"\",IF(AM12<>\"\",(IF(AM12=\"CZK\",1,VLOOKUP($N$10,'Kurzy CNB'!$A$1:$AK$315,VLOOKUP(AM12,List1!$S$4:$T$36,2,FALSE),TRUE)))*AL12/VLOOKUP(AM12,List1!$S$3:$U$36,3,FALSE),0),0),0.0001)","v":0},null,null,0,0,149,221,342]
[null,"Poskytnuta záloha",null,null,"Ne",null,"částka","měna","kurz ČNB",null,"ostatní",null,"EUR",null,{"$f":"IF(N14<>\"\",IF(M14<>\"\",(IF(M14=\"CZK\",1,VLOOKUP($N$10,'Kurzy CNB'!$A$1:$AK$315,VLOOKUP(M14,List1!$S$4:$T$36,2,FALSE),TRUE)))*N14/VLOOKUP(M14,List1!$S$3:$U$36,3,FALSE),0),0)","v":0},null,null,null,null,null,null,null,null,null,null,null,{"$f":"SUM(I27:I28)","v":0},0,0,null,null,null,null,null,null,null,"Náhrady",null,null,null,1,0,{"$f":"AQ13*0.3","v":44.699999999999996},{"$f":"0.65*AR13","v":143.65},{"$f":"0.75*AS13","v":256.5}]
[]
[null,"Záloha 1 ",null," vydaná dne",null,0,null,"USD",{"$f":"IF(OR(E16=\"\",H16=\"CZK\"),1,VLOOKUP(E16,'Kurzy CNB'!$A$1:$AK$315,VLOOKUP(H16,List1!$S$4:$T$36,2,FALSE),FALSE))","v":1},{"$f":"CEILING(I16*F16,0.001)","v":0},null,null,"Poskytnuté náhrady za stravné",null,null,null,null,null,null,null,null,null,null,null,null,null,null,null,null,null,null,null,null,null,null,null,"amortizace za km",5.6,null,null,2,0,0,{"$f":"0.3*AR13","v":66.3},{"$f":"0.5*AS13","v":171}]
[null,"Záloha 2",null," vydaná dne",{"$f":"E16","v":"00:00:00"},0,null,"CZK",{"$f":"IF(OR(E17=\"\",H17=\"CZK\",H17=\"\"),1,VLOOKUP(E17,'Kurzy CNB'!$A$1:$AK$315,VLOOKUP(H17,List1!$S$4:$T$36,2,FALSE),TRUE))","v":1},{"$f":"CEILING(I17*F17,0.001)","v":0},null,null,"EUR",null,{"$f":"IF(N17<>\"\",IF(M17<>\"\",(IF(M17=\"CZK\",1,VLOOKUP($N$10,'Kurzy CNB'!$A$1:$AK$315,VLOOKUP(M17,List1!$S$4:$T$36,2,FALSE),TRUE)))*N17/VLOOKUP(M17,List1!$S$3:$U$36,3,FALSE),0),0)","v":0},null,null,null,null,null,null,null,null,null,null,null,{"$f":"SUM(O22:O23)","v":2304.0978999999998},{"$f":"O17","v":0},{"$f":"IF((AA17-AB17)<0,0,AA17-AB17)","v":2304.0978999999998},null,null,null,null,null,null,null,"benzin 95 oktanů",38.200000000000003,null,null,3,0,0,0,{"$f":"0.25*AS13","v":85.5}]
[null,null,null,null,null,null,null,null,null,null,null,null,null,null,null,null,null,null,null,null,null,null,null,null,null,null,null,"Celkem",{"$f":"AC12+AC13+AC14+AC17","v":2304.0978999999998},null,null,null,null,null,null,null,"benzin 98 oktanů",42.6]
[null,"VYÚČTOVÁNÍ",null,null,null,null,null,null,null,null,null,null,null,null,null,null,null,null,null,null,null,null,null,null,null,null,null,null,null,null,null,null,null,null,null,null,"nafta",38.700000000000003]
[null,null,null,"Popis",null,"měna","částka","měna","částka",null,"Stravné",null,null,null,null,null,null,null,null,null,null,null,null,null,null,null,null,null,null,null,null,null,null,null,null,null,"elektřina",7.7]
[null,"Jízdní výdaje",null,"Vlastní vozidlo - VV",null,"CZK",{"$f":"H12","v":""},"CZK",{"$f":"G21","v":""},null,"měna",null,"částka","měna","částka",null,null,null,null,null,null,null,null,null,null,null,null,null,null,null,null,null,null,null,null,null,"náhrada za km paliva",{"$f":"ROUND(IF(AL13=0,(VLOOKUP(AL6,AK17:AL20,2,FALSE)),AL13)*AL11/100,4)","v":1.2605999999999999},{"$f":"IF(AL13<>\"\",\"použita cena z dokladu\",\"použita cena z vyhlášky\")","v":"použita cena z dokladu"}]
[null,null,null,null,null,"CZK",null,"CZK",{"$f":"IF(G22<>\"\",IF(F22<>\"\",(IF(F22=\"CZK\",1,VLOOKUP($N$10,'Kurzy CNB'!$A$1:$AK$315,VLOOKUP(F22,List1!$S$4:$T$36,2,FALSE),TRUE)))*G22/VLOOKUP(F22,List1!$S$3:$U$36,3,FALSE),\"\"),\"\")","v":""},null,"CZK",null,{"$f":"CEILING(SUM(AA27:AA59),0.01)","v":0},"CZK",{"$f":"M22","v":0}]
[null,null,null,null,null,"EUR",null,"CZK",{"$f":"IF(G23<>\"\",IF(F23<>\"\",(IF(F23=\"CZK\",1,VLOOKUP($N$10,'Kurzy CNB'!$A$1:$AK$315,VLOOKUP(F23,List1!$S$4:$T$36,2,FALSE),TRUE)))*G23/VLOOKUP(F23,List1!$S$3:$U$36,3,FALSE),\"\"),\"\")","v":""},null,{"$f":"O8","v":"EUR"},null,{"$f":"IFERROR(CEILING(SUM(AB27:AB59),0.01),0)","v":93.34},"CZK",{"$f":"IFERROR(IF(M23<>\"\",VLOOKUP($N$10,'Kurzy CNB'!$A$1:$AK$315,VLOOKUP(K23,List1!$S$4:$T$36,2,FALSE),TRUE))*M23/VLOOKUP(K23,List1!$S$3:$U$36,3,FALSE),0)","v":2304.0978999999998},null,null,null,null,null,null,null,null,null,null,null,null,null,null,null,null,null,null,null,null,null,null,null,null,null,null,"zahra"]
[null,null,null,null,null,null,null,"CZK",{"$f":"IF(G24<>\"\",IF(F24<>\"\",(IF(F24=\"CZK\",1,VLOOKUP($N$10,'Kurzy CNB'!$A$1:$AK$315,VLOOKUP(F24,List1!$S$4:$T$36,2,FALSE),TRUE)))*G24/VLOOKUP(F24,List1!$S$3:$U$36,3,FALSE),\"\"),\"\")","v":""}]
[null,"Výdaje za ubytování",null,null,null,"EUR",null,"CZK",{"$f":"IF(G25<>\"\",IF(F25<>\"\",(IF(F25=\"CZK\",1,VLOOKUP($N$10,'Kurzy CNB'!$A$1:$AK$315,VLOOKUP(F25,List1!$S$4:$T$36,2,FALSE),TRUE)))*G25/VLOOKUP(F25,List1!$S$3:$U$36,3,FALSE),\"\"),\"\")","v":""},null,"Bezplatně poskytnutá strava",null,null,null,null,null,null,null,null,null,null,null,"počet jídel",null,null,null,"CZK",{"$f":"O8","v":"EUR"},null,null,null,null,null,null,null,null,null,null,null,null,null,"0 - 1 hod","1 až 12 hod.","12 až 18 hod.","více než 18 hod."]
[null,null,null,null,null,null,null,"CZK",{"$f":"IF(G26<>\"\",IF(F26<>\"\",(IF(F26=\"CZK\",1,VLOOKUP($N$10,'Kurzy CNB'!$A$1:$AK$315,VLOOKUP(F26,List1!$S$4:$T$36,2,FALSE),TRUE)))*G26/VLOOKUP(F26,List1!$S$3:$U$36,3,FALSE),\"\"),\"\")","v":""},null,"Datum",null,"snídaně","oběd","večeře","doba","začátek zahr","konec zahr","doba zahr","doba CR","přep zahr","přep CR",null,"kod zahr","kod tuz",null,"stravne CR","stravne zahr",null,null,null,null,null,null,null,null,null,null,null,null,"počet jídel",0,"I","II","III"]
[null,"Ostatní výdaje",null,null,null,"EUR",null,"CZK",{"$f":"IF(G27<>\"\",IF(F27<>\"\",(IF(F27=\"CZK\",1,VLOOKUP($N$10,'Kurzy CNB'!$A$1:$AK$315,VLOOKUP(F27,List1!$S$4:$T$36,2,FALSE),TRUE)))*G27/VLOOKUP(F27,List1!$S$3:$U$36,3,FALSE),\"\"),\"\")","v":""},null,{"$f":"IF(E7<>0,E7,\"\")","v":"2024-01-02"},null,null,null,null,{"$f":"IF(K27<>\"\",IF(K28<>\"\",K27+1-S7,S10-S7),\"\")","v":0.70833333333575865},{"$f":"IF(OR($E$8>K27,$E$9<K27),\"\",IF(K27=$E$8,$S$8,K27))","v":"2024-01-02T07:00:00"},{"$f":"IF(OR($E$8>K27,$E$9<K27),\"\",IF(K27=$E$9,$S$9,K27+1))","v":"2024-01-03"},{"$f":" IF(Q27=\"\",\"\",R27-Q27)","v":0.70833333333575865},{"$f":"IF(P27<>\"\",IF(S27<>\"\",P27-S27,P27),\"\")","v":0},{"$f":"IF(T27<5/24,S27,IF(S27<=(5/24+0.0000001),\"\",S27))","v":0.70833333333575865},{"$f":"IF(T27>=5/24,IF(S27<=(5/24+0.0000001),T27+S27,T27),T27)","v":0},{"$f":"IF($E$11=\"ne\",0,IF(LEFT(M27,1)=\"A\",1,0)+IF(LEFT(N27,1)=\"A\",1,0)+IF(LEFT(O27,1)=\"A\",1,0))","v":0},{"$f":"IF(U27<>\"\",(IF(U27<(1/24-0.0000001),1,(IF(U27<=12/24,2,IF(U27<=18/24,3,4))))),\"\")","v":3},{"$f":"IF(V27<>\"\",(IF(V27<5/24,1,(IF(V27<=12/24,2,IF(V27<=18/24,3,4))))),\"\")","v":1},null,{"$f":"IF(Y27<>\"\",IF(X27=\"\",VLOOKUP(W27,$AO$12:$AS$17,Y27+1,FALSE),VLOOKUP(0,$AO$12:$AS$17,Y27+1)),\"\")","v":0},{"$f":"IF(X27=\"\",\"\",IF(Y27=1,VLOOKUP(W27,$AO$26:$AS$30,X27+1,FALSE),VLOOKUP(W27,$AO$26:$AS$30,3,FALSE)))","v":23.333333333333332},null,null,null,null,null,null,null,null,null,null,null,null,0,0,{"$f":"AS27/3","v":11.666666666666666},{"$f":"AS27*2/3","v":23.333333333333332},{"$f":"N8","v":35}]
[null,null,null,null,null,null,null,"CZK",{"$f":"IF(G28<>\"\",IF(F28<>\"\",(IF(F28=\"CZK\",1,VLOOKUP($N$10,'Kurzy CNB'!$A$1:$AK$315,VLOOKUP(F28,List1!$S$4:$T$36,2,FALSE),TRUE)))*G28/VLOOKUP(F28,List1!$S$3:$U$36,3,FALSE),\"\"),\"\")","v":""},null,{"$f":"IF(($E$7+List1!A2)<=$E$10,$E$7+List1!A2,\"\")","v":"2024-01-03"},null,null,null,null,{"$f":"IF(K28<>\"\",IF(K29<>\"\",1,$S$10-K28),\"\")","v":1},{"$f":"IF(OR($E$8>K28,$E$9<K28),\"\",IF(K28=$E$8,$S$8,K28))","v":"2024-01-03"},{"$f":"IF(OR($E$8>K28,$E$9<K28),\"\",IF(K28=$E$9,$S$9,K28+1))","v":"2024-01-04"},{"$f":" IF(Q28=\"\",\"\",R28-Q28)","v":1},0,{"$f":"IF(T28<5/24,S28,IF(S28<=(5/24+0.0000001),\"\",S28))","v":1},{"$f":"IF(T28>=5/24,IF(S28<=(5/24+0.0000001),T28+S28,T28),T28)","v":0},0,{"$f":"IF(U28<>\"\",(IF(U28<(1/24-0.0000001),1,(IF(U28<=12/24,2,IF(U28<=18/24,3,4))))),\"\")","v":4},{"$f":"IF(V28<>\"\",(IF(V28<5/24,1,(IF(V28<=12/24,2,IF(V28<=18/24,3,4))))),\"\")","v":1},null,0,{"$f":"IF(X28=\"\",\"\",IF(Y28=1,VLOOKUP(W28,$AO$26:$AS$30,X28+1,FALSE),VLOOKUP(W28,$AO$26:$AS$30,3,FALSE)))","v":35},null,null,null,null,null,null,null,null,null,null,null,null,1,0,{"$f":"AQ27*0.3","v":3.4999999999999996},{"$f":"0.65*AR27","v":15.166666666666666},{"$f":"0.75*AS27","v":26.25}]
[null,"Celkem (včetně stravného)",null,null,null,null,null,"CZK",{"$f":"AC12+AC13+AC14+AC17","v":2304.0978999999998},null,{"$f":"IF(($E$7+List1!A3)<=$E$10,$E$7+List1!A3,\"\")","v":"2024-01-04"},null,null,null,null,0.95833333333575865,"2024-01-04",{"$f":"IF(OR($E$8>K29,$E$9<K29),\"\",IF(K29=$E$9,$S$9,K29+1))","v":"2024-01-04T23:00:00"},0.95833333333575865,0,{"$f":"IF(T29<5/24,S29,IF(S29<=(5/24+0.0000001),\"\",S29))","v":0.95833333333575865},0,0,4,1,null,0,35,null,null,null,null,null,null,null,null,"Přehled EU norem používaných v TP",null,null,null,2,0,0,{"$f":"0.3*AR27","v":6.9999999999999991},{"$f":"0.5*AS27","v":17.5}]
[null,"Záloha",null,null,null,null,null,"CZK",{"$f":"IF(E14=\"ne\",0,CEILING(J16+J17,0.01))","v":0},null,{"$f":"IF(($E$7+List1!A4)<=$E$10,$E$7+List1!A4,\"\")","v":""},null,null,null,null,"","","","","","","",0,"","",null,"","",null,null,null,null,null,null,null,null,"80/1268/EHS","arit.průměr","3 údaje v TP",null,3,0,0,0,{"$f":"0.25*AS27","v":8.75}]
[null,{"$f":"IF(I31<0,\"Přeplatek (zaměstnanec vrátí)\", \"Doplatek (zaměstnanci bude doplaceno)\")","v":"Doplatek (zaměstnanci bude doplaceno)"},null,null,null,null,null,"CZK",{"$f":"(I29-I30)/(IF(H31=\"CZK\",1,VLOOKUP($N$10,'Kurzy CNB'!$A$1:$AK$315,VLOOKUP(H31,List1!$S$4:$T$36,2,FALSE),TRUE))/VLOOKUP(H31,List1!$S$3:$U$36,3,FALSE))","v":2304.0978999999998},null,{"$f":"IF(($E$7+List1!A5)<=$E$10,$E$7+List1!A5,\"\")","v":""},null,null,null,null,"","","","","","","",0,"","",null,"","",null,null,null,null,null,null,null,null,"93/116/ES","třetí údaj"]
[null,null,null,null,null,null,null,null,null,null,{"$f":"IF(($E$7+List1!A6)<=$E$10,$E$7+List1!A6,\"\")","v":""},null,null,null,null,"","","","","","","",0,"","",null,"","",null,null,null,null,null,null,null,null,"1999/100/ES","třetí údaj"]
[null,"Zdroj financování:",null,null,null,null,null,null,null,null,{"$f":"IF(($E$7+List1!A7)<=$E$10,$E$7+List1!A7,\"\")","v":""},null,null,null,null,"","","","","","","",0,"","",null,"","",null,null,null,null,null,null,null,null,"2004/3/ES","třetí údaj"]
[null,{"$f":"\"jízdné: \"&Příkaz!D18&\", ubytování: \"&Příkaz!D26&\", stravné: \"&Příkaz!D28&\", vedl. výdaje: \"&Příkaz!D30","v":"jízdné: , ubytování: , stravné: , vedl. výdaje: "},null,null,null,null,null,null,null,null,{"$f":"IF(($E$7+List1!A8)<=$E$10,$E$7+List1!A8,\"\")","v":""},null,null,null,null,"","","","","","","",0,"","",null,"","",null,null,null,null,null,null,null,null,"EU 692/2008","třetí údaj"]
[null,null,null,null,null,null,null,null,null,null,{"$f":"IF(($E$7+List1!A9)<=$E$10,$E$7+List1!A9,\"\")","v":""},null,null,null,null,"","","","","","","",0,"","",null,"","",null,null,null,null,null,null,null,null,"EU 692/2008A,…F","třetí údaj"]
[null,null,null,null,null,null,null,null,null,null,{"$f":"IF(($E$7+List1!A10)<=$E$10,$E$7+List1!A10,\"\")","v":""},null,null,null,null,"","","","","","","",0,"","",null,"","",null,null,null,null,null,null,null,null,"EU/566/2011","třetí údaj"]
[null,null,null,null,null,null,null,null,null,null,{"$f":"IF(($E$7+List1!A11)<=$E$10,$E$7+List1!A11,\"\")","v":""},null,null,null,null,"","","","","","","",0,"","",null,"","",null,null,null,null,null,null,null,null,"2007/46/ES","třetí údaj"]
[null,"Číslo bankovního účtu pro zasílání náhrad zaměstnanci:",null,null,null,null,null,null,null,null,{"$f":"IF(($E$7+List1!A12)<=$E$10,$E$7+List1!A12,\"\")","v":""},null,null,null,null,"","","","","","","",0,"","",null,"","",null,null,null,null,null,null,null,null,"EHK 101,R101.00","třetí údaj"]
[null,null,null,null,null,null,null,null,null,null,{"$f":"IF(($E$7+List1!A13)<=$E$10,$E$7+List1!A13,\"\")","v":""},null,null,null,null,"","","","","","","",0,"","",null,"","",null,null,null,null,null,null,null,null,"459/2012/EU","třetí údaj"]
[null,null,null,null,null,null,null,null,null,null,{"$f":"IF(($E$7+List1!A14)<=$E$10,$E$7+List1!A14,\"\")","v":""},null,null,null,null,"","","","","","","",0,"","",null,"","",null,null,null,null,null,null,null,null,"630/2012/EU ","třetí údaj"]
[null,null,null,null,null,null,null,null,null,null,{"$f":"IF(($E$7+List1!A15)<=$E$10,$E$7+List1!A15,\"\")","v":""},null,null,null,null,"","","","","","","",0,"","",null,"","",null,null,null,null,null,null,null,null,"EU195/2013","třetí údaj"]
[null,"Prohlašuji, že jsem všechny údaje uvedl úplně, a že je  zpráva ze zahraniční  pracovní cesty přiložena.",null,null,null,null,null,null,null,null,{"$f":"IF(($E$7+List1!A16)<=$E$10,$E$7+List1!A16,\"\")","v":""},null,null,null,null,"","","","","","","",0,"","",null,"","",null,null,null,null,null,null,null,null,"715/2007/ES","třetí údaj"]
[null,null,null,null,null,null,null,null,null,null,{"$f":"IF(($E$7+List1!A17)<=$E$10,$E$7+List1!A17,\"\")","v":""},null,null,null,null,"","","","","","","",0,"","",null,"","",null,null,null,null,null,null,null,null,"EU136/2014","třetí údaj"]
[null,null,null,null,null,null,null,null,null,null,{"$f":"IF(($E$7+List1!A18)<=$E$10,$E$7+List1!A18,\"\")","v":""},null,null,null,null,"","","","","",{"$f":"IF(T44<5/24,S44,IF(S44<=(5/24+0.0000001),\"\",S44))","v":""},"",0,"","",null,"","",null,null,null,null,null,null,null,null,"EU2016/646","třetí údaj"]
[null,null,null,null,null,null,null,null,null,null,{"$f":"IF(($E$7+List1!A19)<=$E$10,$E$7+List1!A19,\"\")","v":""},null,null,null,null,"","","","","",{"$f":"IF(T45<5/24,S45,IF(S45<=(5/24+0.0000001),\"\",S45))","v":""},"",0,"","",null,"","",null,null,null,null,null,null,null,null,"EU2017/1347","třetí údaj"]
[null,null,null,null,null,null,null,null,null,null,{"$f":"IF(($E$7+List1!A20)<=$E$10,$E$7+List1!A20,\"\")","v":""},null,null,null,null,"","","","","",{"$f":"IF(T46<5/24,S46,IF(S46<=(5/24+0.0000001),\"\",S46))","v":""},"",0,"","",null,"","",null,null,null,null,null,null,null,null,"EU2015/45","třetí údaj"]
[null,"Datum a podpis zaměstnance",null,null,null,null,null,null,null,null,{"$f":"IF(($E$7+List1!A21)<=$E$10,$E$7+List1!A21,\"\")","v":""},null,null,null,null,"","","","","","","",0,"","",null,"","",null,null,null,null,null,null,null,null,"jiná norma","arit.průměr"]
[null,null,null,null,null,null,null,null,null,null,{"$f":"IF(($E$7+List1!A22)<=$E$10,$E$7+List1!A22,\"\")","v":""},null,null,null,null,"","","","","","","",0,"","",null,"",""]
[null,null,null,null,null,null,null,null,null,null,{"$f":"IF(($E$7+List1!A23)<=$E$10,$E$7+List1!A23,\"\")","v":""},null,null,null,null,"","","","","","","",0,"","",null,"",""]
[null,null,null,null,null,null,null,null,null,null,{"$f":"IF(($E$7+List1!A24)<=$E$10,$E$7+List1!A24,\"\")","v":""},null,null,null,null,"","","","","","","",0,"","",null,"",""]
[null,"Podpis řešitele grantu nebo projektu",null,null,null,"Podpis vedoucího zahraničního oddělení",null,null,null,null,{"$f":"IF(($E$7+List1!A25)<=$E$10,$E$7+List1!A25,\"\")","v":""},null,null,null,null,"","","","","","","",0,"","",null,"",""]
[null,null,null,null,null,null,null,null,null,null,{"$f":"IF(($E$7+List1!A26)<=$E$10,$E$7+List1!A26,\"\")","v":""},null,null,null,null,"","","","","","","",0,"","",null,"",""]
[null,null,null,null,null,null,null,null,null,null,{"$f":"IF(($E$7+List1!A27)<=$E$10,$E$7+List1!A27,\"\")","v":""},null,null,null,null,"","","","","","","",0,"","",null,"",""]
[null,null,null,null,null,null,null,null,null,null,{"$f":"IF(($E$7+List1!A28)<=$E$10,$E$7+List1!A28,\"\")","v":""},null,null,null,null,"","","","","","","",0,"","",null,"",""]
[null,null,null,null,null,null,null,null,null,null,{"$f":"IF(($E$7+List1!A29)<=$E$10,$E$7+List1!A29,\"\")","v":""},null,null,null,null,"","","","","","","",0,"","",null,"",""]
[null,"Podpis přímého nadřízeného",null,null,null,"Podpis vedoucí ekonomického oddělení",null,null,null,null,{"$f":"IF(($E$7+List1!A30)<=$E$10,$E$7+List1!A30,\"\")","v":""},null,null,null,null,{"$f":"IF(K56<>\"\",IF(K57<>\"\",1,$S$10-K56),\"\")","v":""},{"$f":"IF(OR($E$8>K56,$E$9<K56),\"\",IF(K56=$E$8,$S$8,K56))","v":""},{"$f":"IF(OR($E$8>K56,$E$9<K56),\"\",IF(K56=$E$9,$S$9,K56+1))","v":""},{"$f":" IF(Q56=\"\",\"\",R56-Q56)","v":""},{"$f":"IF(P56<>\"\",IF(S56<>\"\",P56-S56,P56),\"\")","v":""},{"$f":"IF(T56<5/24,S56,IF(S56<=(5/24+0.0000001),\"\",S56))","v":""},{"$f":"IF(T56>=5/24,IF(S56<=(5/24+0.0000001),T56+S56,T56),T56)","v":""},{"$f":"IF($E$11=\"ne\",0,IF(LEFT(M56,1)=\"A\",1,0)+IF(LEFT(N56,1)=\"A\",1,0)+IF(LEFT(O56,1)=\"A\",1,0))","v":0},{"$f":"IF(U56<>\"\",(IF(U56<(1/24-0.0000001),1,(IF(U56<=12/24,2,IF(U56<=18/24,3,4))))),\"\")","v":""},{"$f":"IF(V56<>\"\",(IF(V56<5/24,1,(IF(V56<=12/24,2,IF(V56<=18/24,3,4))))),\"\")","v":""},null,{"$f":"IF(Y56<>\"\",IF(X56=\"\",VLOOKUP(W56,$AO$12:$AS$17,Y56+1,FALSE),VLOOKUP(0,$AO$12:$AS$17,Y56+1)),\"\")","v":""},{"$f":"IF(X56=\"\",\"\",IF(Y56=1,VLOOKUP(W56,$AO$26:$AS$30,X56+1,FALSE),VLOOKUP(W56,$AO$26:$AS$30,3,FALSE)))","v":""}]
[null,null,null,null,null,null,null,null,null,null,{"$f":"IF(($E$7+List1!A31)<=$E$10,$E$7+List1!A31,\"\")","v":""},null,null,null,null,"","","","","","","",0,"","",null,"",""]
[null,null,null,null,null,null,null,null,null,null,{"$f":"IF(($E$7+List1!A32)<=$E$10,$E$7+List1!A32,\"\")","v":""},null,null,null,null,"","","","","","","",0,"","",null,"",""]
[]
[null,"Podpis tajemníka\n (správce rozpočtu)",null,null,null,"Podpis pracovníka ekonomického oddělení, \nkterý kontroloval a upravil vyúčtování"]

{"sheet":"Zpráva o cestě","index":3,"n_rows":51,"n_cols":21,"rows_kept":51,"cut":false,"hidden":false,"merged":[[1,20,5,28],[7,8,7,16],[13,8,13,17],[0,10,0,15],[1,1,1,17],[3,1,3,4],[3,5,3,17],[5,1,5,4],[5,5,5,17],[20,1,20,5],[7,1,7,4],[9,1,9,4],[9,5,9,17],[11,5,11,17],[13,1,13,4],[15,1,15,3],[15,5,15,6],[7,5,7,6],[13,5,13,6],[17,10,17,16],[15,7,15,17],[17,1,17,5],[17,7,17,8],[21,1,29,16],[32,1,46,16],[49,1,49,3],[50,1,50,3],[50,9,50,16]]}
[null,null,null,null,null,null,null,null,null,null,"Příloha OD  č. 2/2020\n\n"]
[null,"ZPRÁVA O PRŮBĚHU A VÝSLEDCÍCH  PRACOVNÍ CESTY",null,null,null,null,null,null,null,null,null,null,null,null,null,null,null,null,null,null,{"$f":"IFERROR(\"Vyúčtování pracovní cesty a zprávu o pracovní cestě je nutné odevzdat nejpozději do \" &TEXT(List1!$AC$1,\"dd.mm.rrrr\")&\".\",\"\")","v":"Vyúčtování pracovní cesty a zprávu o pracovní cestě je nutné odevzdat nejpozději do 18.01.2024."}]
[]
[null,"Jméno a příjmení:",null,null,null,{"$f":"T(Příkaz!D5)","v":""}]
[]
[null,"Pracoviště:",null,null,null,{"$f":"T(Příkaz!L5)","v":""}]
[]
[null,"Datum a místo zahájení cesty:",null,null,null,{"$f":"T(Příkaz!F7)","v":""},null,null,{"$f":"T(Příkaz!J7)","v":""}]
[]
[null,"Místo konání:",null,null,null,{"$f":"T(Příkaz!D9)","v":""}]
[]
[null,"Účel:",null,null,null,{"$f":"T(Příkaz!D11)","v":""}]
[]
[null,"Datum a místo ukončení cesty:",null,null,null,{"$f":"T(Příkaz!F15)","v":""},null,null,{"$f":"T(Příkaz!J15)","v":""}]
[]
[null,"Počet dní:",null,null,null,{"$f":"List1!P2","v":3}]
[]
[null,"Způsob dopravy:",null,null,null,null,null,{"$f":"Příkaz!G20","v":"A"},null,null,{"$f":"Příkaz!I20","v":"Autobus"}]
[]
[]
[null,"Průběh cesty:"]
[]
[]
[]
[]
[]
[]
[]
[]
[]
[]
[null,"Výsledek pracovní cesty (přínos pracovní cesty):"]
[]
[]
[]
[]
[]
[]
[]
[]
[]
[]
[]
[]
[]
[]
[]
[]
[]
[]
[null,"V Praze dne",null,null,null,null,null,null,null,"Podpis zaměstnance"]

{"sheet":"Kurzy CNB","index":4,"n_rows":82,"n_cols":32,"rows_kept":82,"cut":false,"hidden":false,"merged":[]}
["Datum","1 AUD","1 BGN","1 BRL","1 CAD","1 CHF","1 CNY","1 DKK","1 EUR","1 GBP","1 HKD","100 HUF","1000 IDR","1 ILS","100 INR","100 ISK","100 JPY","100 KRW","1 MXN","1 MYR","1 NOK","1 NZD","100 PHP","1 PLN","1 RON","1 SEK","1 SGD","100 THB","100 TRY","1 USD","1 XDR","1 ZAR"]
["2024-01-02",15.278,12.621,4.609,16.937999999999999,26.524000000000001,3.1539999999999999,3.3109999999999999,24.684999999999999,28.483000000000001,2.883,6.46,1.456,6.2190000000000003,27.036000000000001,16.38,15.862,1.7150000000000001,1.3220000000000001,4.8940000000000001,2.1890000000000001,14.125,40.470999999999997,5.6509999999999998,4.9660000000000002,2.2130000000000001,16.986000000000001,65.710999999999999,75.775999999999996,22.526,30.222000000000001,1.214]
["2024-01-03",15.201000000000001,12.616,4.5839999999999996,16.931999999999999,26.472999999999999,3.1619999999999999,3.3090000000000002,24.675000000000001,28.539000000000001,2.8940000000000001,6.48,1.46,6.1959999999999997,27.126999999999999,16.373999999999999,15.808999999999999,1.7230000000000001,1.3220000000000001,4.88,2.1800000000000002,14.09,40.655000000000001,5.6539999999999999,4.9619999999999997,2.2050000000000001,17.015999999999998,65.623999999999995,75.891000000000005,22.6,30.266999999999999,1.2030000000000001]
["2024-01-04",15.137,12.602,4.585,16.88,26.454999999999998,3.149,3.3050000000000002,24.65,28.561,2.883,6.5069999999999997,1.4530000000000001,6.1680000000000001,27.045000000000002,16.379000000000001,15.603,1.7190000000000001,1.3240000000000001,4.8579999999999997,2.1840000000000002,14.057,40.536000000000001,5.6719999999999997,4.9560000000000004,2.2010000000000001,16.945,65.298000000000002,75.632000000000005,22.513000000000002,30.081,1.206]
["2024-01-05",15.058999999999999,12.577999999999999,4.5830000000000002,16.853000000000002,26.399000000000001,3.1480000000000001,3.298,24.6,28.533999999999999,2.8839999999999999,6.5069999999999997,1.452,6.1130000000000004,27.088000000000001,16.346,15.521000000000001,1.7090000000000001,1.323,4.84,2.1749999999999998,14.007,40.521000000000001,5.6459999999999999,4.9459999999999997,2.19,16.922999999999998,64.742999999999995,75.477999999999994,22.523,30.109000000000002,1.1970000000000001]
["2024-01-08",14.951000000000001,12.516999999999999,4.57,16.712,26.31,3.1230000000000002,3.2810000000000001,24.48,28.422999999999998,2.8650000000000002,6.484,1.4410000000000001,6.0209999999999999,26.91,16.244,15.476000000000001,1.694,1.3240000000000001,4.8090000000000002,2.1549999999999998,13.904999999999999,40.191000000000003,5.633,4.923,2.1840000000000002,16.802,63.841999999999999,74.817999999999998,22.366,29.847999999999999,1.194]
["2024-01-09",15.052,12.577999999999999,4.5949999999999998,16.829000000000001,26.419,3.137,3.2989999999999999,24.6,28.616,2.8759999999999999,6.4930000000000003,1.448,6.02,27.04,16.346,15.6,1.7050000000000001,1.3320000000000001,4.8390000000000004,2.1749999999999998,14.031000000000001,40.1,5.6589999999999998,4.9480000000000004,2.1930000000000001,16.893999999999998,64.293999999999997,75.058000000000007,22.472000000000001,30.024000000000001,1.204]
["2024-01-10",15.037000000000001,12.558,4.5890000000000004,16.762,26.317,3.129,3.2930000000000001,24.56,28.562999999999999,2.8679999999999999,6.492,1.44,5.9610000000000003,27.009,16.361999999999998,15.445,1.702,1.32,4.8319999999999999,2.1739999999999999,13.981,39.856000000000002,5.6589999999999998,4.9390000000000001,2.1930000000000001,16.849,64.072000000000003,74.823999999999998,22.427,29.965,1.2030000000000001]
["2024-01-11",15.061,12.606,4.5990000000000002,16.800999999999998,26.4,3.1349999999999998,3.306,24.655000000000001,28.613,2.87,6.508,1.4430000000000001,6.0030000000000001,27.030999999999999,16.425999999999998,15.436,1.704,1.321,4.83,2.177,14.021000000000001,39.997999999999998,5.665,4.9580000000000002,2.202,16.885999999999999,64.105999999999995,74.819999999999993,22.44,29.981000000000002,1.206]
["2024-01-12",15.069000000000001,12.62,4.6379999999999999,16.859000000000002,26.396999999999998,3.1459999999999999,3.3109999999999999,24.684999999999999,28.72,2.883,6.5069999999999997,1.45,6.0309999999999997,27.199000000000002,16.446000000000002,15.509,1.7150000000000001,1.335,4.8529999999999998,2.1880000000000002,14.06,40.320999999999998,5.6580000000000004,4.9630000000000001,2.1909999999999998,16.920999999999999,64.207999999999998,74.941999999999993,22.553999999999998,30.169,1.2070000000000001]
["2024-01-15",15.022,12.637,4.6319999999999997,16.818999999999999,26.427,3.1469999999999998,3.3140000000000001,24.715,28.709,2.887,6.5090000000000003,1.452,6.0170000000000003,27.25,16.510000000000002,15.478999999999999,1.708,1.337,4.835,2.1850000000000001,13.976000000000001,40.463999999999999,5.665,4.968,2.1920000000000002,16.925000000000001,64.558000000000007,75.013999999999996,22.579000000000001,30.167000000000002,1.21]
["2024-01-16",14.997,12.635,4.6420000000000003,16.863,26.388999999999999,3.16,3.3130000000000002,24.71,28.718,2.903,6.5149999999999997,1.4570000000000001,6.0309999999999997,27.338999999999999,16.550999999999998,15.481999999999999,1.698,1.333,4.8419999999999996,2.1800000000000002,13.984,40.570999999999998,5.633,4.9660000000000002,2.1819999999999999,16.940000000000001,64.180999999999997,75.465999999999994,22.72,30.355,1.202]
["2024-01-17",14.922000000000001,12.657,4.6159999999999997,16.841000000000001,26.315000000000001,3.1629999999999998,3.319,24.754999999999999,28.835000000000001,2.9089999999999998,6.5039999999999996,1.4550000000000001,6.0149999999999997,27.373000000000001,16.559000000000001,15.409000000000001,1.6919999999999999,1.3160000000000001,4.8250000000000002,2.1640000000000001,13.92,40.704999999999998,5.6269999999999998,4.9749999999999996,2.1739999999999999,16.939,64.084999999999994,75.52,22.76,30.309000000000001,1.194]
["2024-01-18",14.928000000000001,12.651999999999999,4.6219999999999999,16.856000000000002,26.24,3.1640000000000001,3.3180000000000001,24.745000000000001,28.856000000000002,2.91,6.476,1.4570000000000001,6.0389999999999997,27.364999999999998,16.552,15.385,1.7,1.325,4.8239999999999998,2.1619999999999999,13.904,40.756,5.6239999999999997,4.9710000000000001,2.1779999999999999,16.928999999999998,63.942999999999998,75.489999999999995,22.757999999999999,30.286000000000001,1.202]
["2024-01-19",15.04,12.686,4.6440000000000001,16.931999999999999,26.234999999999999,3.17,3.327,24.81,28.905999999999999,2.915,6.5010000000000003,1.46,6.0940000000000003,27.434999999999999,16.661999999999999,15.396000000000001,1.7090000000000001,1.3320000000000001,4.8319999999999999,2.1749999999999998,13.944000000000001,40.709000000000003,5.69,4.984,2.1800000000000002,16.998000000000001,64.287000000000006,75.491,22.792999999999999,30.341000000000001,1.2]
["2024-01-22",14.994999999999999,12.661,4.6059999999999999,16.940999999999999,26.187999999999999,3.1619999999999999,3.32,24.765000000000001,28.937000000000001,2.91,6.4539999999999997,1.4550000000000001,6.0410000000000004,27.366,16.654,15.387,1.698,1.333,4.8129999999999997,2.1640000000000001,13.917,40.433,5.6749999999999998,4.9749999999999996,2.1800000000000002,16.96,63.844000000000001,75.222999999999999,22.748999999999999,30.283999999999999,1.1859999999999999]
["2024-01-23",15.061999999999999,12.698,4.6029999999999998,16.962,26.297000000000001,3.1880000000000002,3.33,24.835000000000001,29.052,2.9209999999999998,6.45,1.462,6.0670000000000002,27.486999999999998,16.701000000000001,15.436,1.708,1.325,4.8339999999999996,2.173,13.927,40.656999999999996,5.6669999999999998,4.99,2.1890000000000001,17.052,63.99,75.457999999999998,22.849,30.423999999999999,1.2]
["2024-01-24",15.010999999999999,12.672000000000001,4.6260000000000003,16.895,26.335000000000001,3.1779999999999999,3.3239999999999998,24.785,28.978999999999999,2.907,6.43,1.4470000000000001,6.1189999999999998,27.35,16.757999999999999,15.452999999999999,1.7050000000000001,1.3220000000000001,4.8029999999999999,2.17,13.938000000000001,40.395000000000003,5.6689999999999996,4.9800000000000004,2.1819999999999999,16.995999999999999,63.841999999999999,75.302000000000007,22.725999999999999,30.251999999999999,1.2070000000000001]
["2024-01-25",14.974,12.66,4.6150000000000002,16.827999999999999,26.274999999999999,3.1709999999999998,3.3210000000000002,24.76,28.942,2.9079999999999999,6.4290000000000003,1.4359999999999999,6.1420000000000003,27.346,16.718,15.391999999999999,1.7010000000000001,1.319,4.8040000000000003,2.1720000000000002,13.909000000000001,40.222999999999999,5.6559999999999997,4.9749999999999996,2.181,16.969000000000001,63.597000000000001,75.055999999999997,22.73,30.302,1.202]
["2024-01-26",15.010999999999999,12.648999999999999,4.6379999999999999,16.939,26.331,3.1709999999999998,3.319,24.74,28.991,2.9119999999999999,6.3949999999999996,1.4379999999999999,6.1749999999999998,27.37,16.66,15.401,1.704,1.3260000000000001,4.8129999999999997,2.1850000000000001,13.901,40.396999999999998,5.6520000000000001,4.9710000000000001,2.1859999999999999,16.977,63.957999999999998,75.072999999999993,22.751999999999999,30.323,1.2110000000000001]
["2024-01-29",15.137,12.686999999999999,4.6719999999999997,17.068000000000001,26.574999999999999,3.1949999999999998,3.3290000000000002,24.815000000000001,29.113,2.9359999999999999,6.3620000000000001,1.4510000000000001,6.2270000000000003,27.579000000000001,16.71,15.497999999999999,1.718,1.337,4.8449999999999998,2.1949999999999998,14.023999999999999,40.656999999999996,5.681,4.9859999999999998,2.1850000000000001,17.099,64.478999999999999,75.563999999999993,22.934000000000001,30.542000000000002,1.222]
["2024-01-30",15.089,12.696999999999999,4.625,17.050999999999998,26.521999999999998,3.1909999999999998,3.3319999999999999,24.835000000000001,29.015999999999998,2.931,6.4139999999999997,1.452,6.2779999999999996,27.558,16.745999999999999,15.526,1.7210000000000001,1.33,4.8460000000000001,2.19,14.012,40.616,5.6929999999999996,4.99,2.198,17.093,64.703000000000003,75.5,22.907,30.448,1.212]
["2024-01-31",15.11,12.724,4.6260000000000003,17.082000000000001,26.613,3.1960000000000002,3.3380000000000001,24.885000000000002,29.132999999999999,2.9329999999999998,6.4669999999999996,1.4530000000000001,6.3,27.617000000000001,16.78,15.528,1.7210000000000001,1.3380000000000001,4.8490000000000002,2.1920000000000002,14.057,40.731000000000002,5.7439999999999998,5.0010000000000003,2.2090000000000001,17.123000000000001,64.635999999999996,75.554000000000002,22.934999999999999,30.507000000000001,1.224]
["2024-02-01",14.999000000000001,12.728999999999999,4.6520000000000001,17.111999999999998,26.675000000000001,3.2050000000000001,3.34,24.895,29.163,2.944,6.4969999999999999,1.46,6.298,27.739000000000001,16.786999999999999,15.669,1.726,1.337,4.867,2.19,14.016,41.046999999999997,5.74,5.0039999999999996,2.1960000000000002,17.167999999999999,64.832999999999998,75.802999999999997,23.018999999999998,30.611999999999998,1.23]
["2024-02-02",15.103,12.718,4.649,17.087,26.709,3.1840000000000002,3.3370000000000002,24.875,29.170999999999999,2.923,6.49,1.46,6.2640000000000002,27.565000000000001,16.773,15.587999999999999,1.7270000000000001,1.34,4.8449999999999998,2.1840000000000002,14.074999999999999,40.859000000000002,5.7629999999999999,5.0019999999999998,2.2069999999999999,17.111999999999998,64.876000000000005,75.037000000000006,22.853000000000002,30.369,1.2250000000000001]
["2024-02-05",15.103999999999999,12.786,4.6609999999999996,17.236000000000001,26.754000000000001,3.2330000000000001,3.3540000000000001,25.004999999999999,29.219000000000001,2.9750000000000001,6.4889999999999999,1.482,6.3319999999999999,28.016999999999999,16.884,15.66,1.7430000000000001,1.353,4.8979999999999997,2.181,14.089,41.308999999999997,5.7690000000000001,5.0270000000000001,2.1989999999999998,17.277999999999999,64.974000000000004,76.162000000000006,23.268999999999998,31.013999999999999,1.224]
["2024-02-06",15.090999999999999,12.744,4.6710000000000003,17.161999999999999,26.611000000000001,3.2290000000000001,3.3410000000000002,24.925000000000001,29.166,2.9670000000000001,6.4429999999999996,1.4750000000000001,6.36,27.943999999999999,16.829999999999998,15.628,1.748,1.361,4.87,2.1760000000000002,14.071,41.295000000000002,5.7309999999999999,5.008,2.1909999999999998,17.254999999999999,65.171999999999997,75.936000000000007,23.207999999999998,30.744,1.226]
["2024-02-07",15.14,12.772,4.6710000000000003,17.227,26.599,3.222,3.3490000000000002,24.98,29.286999999999999,2.964,6.4349999999999996,1.4830000000000001,6.367,27.934000000000001,16.844000000000001,15.648,1.7470000000000001,1.359,4.8689999999999998,2.1960000000000002,14.176,41.423999999999999,5.7480000000000002,5.0190000000000001,2.2170000000000001,17.260999999999999,65.069999999999993,75.760000000000005,23.181000000000001,30.696000000000002,1.2270000000000001]
["2024-02-08",15.065,12.759,4.6609999999999996,17.207999999999998,26.529,3.2229999999999999,3.347,24.954999999999998,29.227,2.9660000000000002,6.4480000000000004,1.484,6.2990000000000004,27.949000000000002,16.692,15.548999999999999,1.742,1.3580000000000001,4.8630000000000004,2.1869999999999998,14.131,41.484999999999999,5.7549999999999999,5.0129999999999999,2.2149999999999999,17.221,64.63,75.837999999999994,23.195,30.762,1.224]
["2024-02-09",15.217000000000001,12.872,4.694,17.378,26.696999999999999,3.2490000000000001,3.3780000000000001,25.175000000000001,29.459,2.9889999999999999,6.4880000000000004,1.4950000000000001,6.3419999999999996,28.15,16.998999999999999,15.638,1.754,1.365,4.9050000000000002,2.2080000000000002,14.339,41.811999999999998,5.8250000000000002,5.0579999999999998,2.2320000000000002,17.36,65.015000000000001,76.176000000000002,23.373000000000001,30.966000000000001,1.2290000000000001]
["2024-02-12",15.278,12.893000000000001,4.7249999999999996,17.385000000000002,26.738,3.254,3.3820000000000001,25.215,29.53,2.9929999999999999,6.51,1.5009999999999999,6.3780000000000001,28.195,17.003,15.707000000000001,1.7609999999999999,1.373,4.9119999999999999,2.2269999999999999,14.355,41.786999999999999,5.835,5.0679999999999996,2.2450000000000001,17.411999999999999,65.290999999999997,76.233999999999995,23.407,31.016999999999999,1.2330000000000001]
["2024-02-13",15.298999999999999,12.926,4.7279999999999998,17.425999999999998,26.67,3.2559999999999998,3.391,25.28,29.704000000000001,2.996,6.5309999999999997,1.502,6.431,28.22,17.001000000000001,15.686,1.762,1.3720000000000001,4.9139999999999997,2.2370000000000001,14.337999999999999,41.851999999999997,5.8520000000000003,5.08,2.246,17.423999999999999,65.608999999999995,76.230999999999995,23.42,31.04,1.2430000000000001]
["2024-02-14",15.348000000000001,12.962,4.7770000000000001,17.472000000000001,26.702999999999999,3.29,3.4009999999999998,25.35,29.731999999999999,3.0270000000000001,6.5179999999999998,1.5169999999999999,6.4649999999999999,28.498000000000001,17.047999999999998,15.718,1.7749999999999999,1.381,4.944,2.2360000000000002,14.398999999999999,42.134999999999998,5.8390000000000004,5.0949999999999998,2.2410000000000001,17.542000000000002,65.405000000000001,77.016999999999996,23.663,31.373999999999999,1.2430000000000001]
["2024-02-15",15.38,12.994999999999999,4.7610000000000001,17.474,26.8,3.2879999999999998,3.4089999999999998,25.414999999999999,29.669,3.024,6.5330000000000004,1.514,6.5090000000000003,28.481000000000002,17.091000000000001,15.760999999999999,1.778,1.3839999999999999,4.9470000000000001,2.2370000000000001,14.422000000000001,42.225999999999999,5.85,5.1059999999999999,2.258,17.561,65.44,76.936000000000007,23.651,31.253,1.2430000000000001]
["2024-02-16",15.414999999999999,13.016,4.7539999999999996,17.536000000000001,26.818999999999999,3.2869999999999999,3.415,25.454999999999998,29.751000000000001,3.0230000000000001,6.5419999999999998,1.514,6.55,28.489000000000001,17.071999999999999,15.728,1.774,1.387,4.9459999999999997,2.2429999999999999,14.428000000000001,42.255000000000003,5.8659999999999997,5.1139999999999999,2.2599999999999998,17.559000000000001,65.564999999999998,76.706000000000003,23.646000000000001,31.28,1.252]
["2024-02-19",15.446999999999999,13.016999999999999,4.7649999999999997,17.529,26.826000000000001,3.282,3.415,25.46,29.791,3.0209999999999999,6.5570000000000004,1.512,6.5179999999999998,28.457999999999998,17.122,15.755000000000001,1.7689999999999999,1.3859999999999999,4.9359999999999999,2.2519999999999998,14.516,42.145000000000003,5.8840000000000003,5.1150000000000002,2.266,17.556000000000001,65.566000000000003,76.536000000000001,23.626999999999999,31.3,1.246]
["2024-02-20",15.452999999999999,13,4.7560000000000002,17.456,26.702999999999999,3.27,3.411,25.425000000000001,29.689,3.008,6.5449999999999999,1.5029999999999999,6.4370000000000003,28.367000000000001,17.143999999999998,15.673999999999999,1.7649999999999999,1.383,4.9050000000000002,2.2450000000000001,14.535,41.973999999999997,5.8810000000000002,5.109,2.266,17.504000000000001,65.305000000000007,76.138999999999996,23.530999999999999,31.172999999999998,1.242]
["2024-02-21",15.396000000000001,12.977,4.7690000000000001,17.364999999999998,26.684999999999999,3.2650000000000001,3.4049999999999998,25.38,29.645,3.0019999999999998,6.5430000000000001,1.502,6.3869999999999996,28.312999999999999,17.045000000000002,15.657,1.76,1.377,4.8979999999999997,2.2400000000000002,14.52,41.965000000000003,5.8769999999999998,5.0999999999999996,2.2650000000000001,17.475000000000001,65.504999999999995,75.727000000000004,23.48,31.128,1.248]
["2024-02-22",15.334,12.946999999999999,4.7329999999999997,17.32,26.558,3.2469999999999999,3.3969999999999998,25.32,29.565999999999999,2.9860000000000002,6.5439999999999996,1.498,6.3979999999999997,28.177,17.004999999999999,15.523999999999999,1.76,1.367,4.8890000000000002,2.2290000000000001,14.468,41.905000000000001,5.867,5.0880000000000001,2.266,17.399999999999999,65.03,75.349999999999994,23.353999999999999,30.971,1.2250000000000001]
["2024-02-23",15.393000000000001,12.961,4.7110000000000003,17.376000000000001,26.625,3.2509999999999999,3.4009999999999998,25.35,29.7,2.99,6.5279999999999996,1.5,6.4480000000000004,28.218,17.071000000000002,15.558999999999999,1.7589999999999999,1.37,4.8970000000000002,2.2250000000000001,14.523999999999999,41.85,5.883,5.0949999999999998,2.2719999999999998,17.417000000000002,65.025999999999996,75.242000000000004,23.393999999999998,31.085999999999999,1.2150000000000001]
["2024-02-26",15.315,12.968999999999999,4.6849999999999996,17.283000000000001,26.571999999999999,3.2480000000000002,3.403,25.364999999999998,29.664000000000001,2.988,6.5129999999999999,1.496,6.407,28.204999999999998,16.989000000000001,15.523999999999999,1.756,1.367,4.8929999999999998,2.2189999999999999,14.444000000000001,41.671999999999997,5.8949999999999996,5.0999999999999996,2.2709999999999999,17.395,65.144999999999996,75.108000000000004,23.376000000000001,31.024000000000001,1.2110000000000001]
["2024-02-27",15.298,12.952999999999999,4.6959999999999997,17.291,26.55,3.242,3.399,25.335000000000001,29.594999999999999,2.9820000000000002,6.4930000000000003,1.492,6.4379999999999997,28.16,16.969000000000001,15.54,1.7529999999999999,1.3680000000000001,4.9009999999999998,2.2170000000000001,14.396000000000001,41.6,5.8689999999999998,5.101,2.266,17.373999999999999,65.076999999999998,74.926000000000002,23.337,30.998000000000001,1.2210000000000001]
["2024-02-28",15.234,12.961,4.7389999999999999,17.254000000000001,26.632000000000001,3.2559999999999998,3.4009999999999998,25.35,29.634,2.9950000000000001,6.4640000000000004,1.4950000000000001,6.5030000000000001,28.282,16.978999999999999,15.565,1.7529999999999999,1.3720000000000001,4.915,2.2109999999999999,14.297000000000001,41.652000000000001,5.8920000000000003,5.1020000000000003,2.2650000000000001,17.413,65.146000000000001,75.161000000000001,23.442,31.143000000000001,1.2210000000000001]
["2024-02-29",15.201000000000001,12.967000000000001,4.6900000000000004,17.23,26.602,3.2559999999999998,3.4020000000000001,25.36,29.606999999999999,2.9929999999999999,6.4459999999999997,1.4910000000000001,6.5510000000000002,28.251999999999999,16.986000000000001,15.603999999999999,1.752,1.371,4.9370000000000003,2.2069999999999999,14.24,41.673999999999999,5.87,5.1020000000000003,2.262,17.405999999999999,65.201999999999998,75.027000000000001,23.427,31.074000000000002,1.214]
["2024-03-01",15.224,12.952,4.7190000000000003,17.254999999999999,26.427,3.2549999999999999,3.3980000000000001,25.33,29.594000000000001,2.9929999999999999,6.4409999999999998,1.492,6.5750000000000002,28.266999999999999,16.943000000000001,15.557,1.754,1.3759999999999999,4.9359999999999999,2.2130000000000001,14.26,41.753,5.8650000000000002,5.0970000000000004,2.262,17.393999999999998,65.14,74.733999999999995,23.428000000000001,31.102,1.222]
["2024-03-04",15.233000000000001,12.955,4.7210000000000001,17.225000000000001,26.385000000000002,3.2469999999999999,3.4020000000000001,25.355,29.634,2.988,6.4139999999999997,1.4850000000000001,6.5339999999999998,28.19,16.96,15.53,1.7549999999999999,1.3740000000000001,4.9489999999999998,2.2170000000000001,14.247999999999999,41.753999999999998,5.8659999999999997,5.101,2.2559999999999998,17.402000000000001,65.230999999999995,74.150999999999996,23.376999999999999,31.013000000000002,1.228]
["2024-03-05",15.173999999999999,12.964,4.7229999999999999,17.193000000000001,26.388000000000002,3.246,3.4009999999999998,25.355,29.648,2.9870000000000001,6.4080000000000004,1.482,6.4950000000000001,28.187000000000001,17.004999999999999,15.551,1.752,1.379,4.9359999999999999,2.2090000000000001,14.205,41.752000000000002,5.8620000000000001,5.0999999999999996,2.2469999999999999,17.39,65.239000000000004,73.823999999999998,23.370999999999999,31.045999999999999,1.232]
["2024-03-06",15.214,12.965999999999999,4.7190000000000003,17.166,26.364999999999998,3.2389999999999999,3.4020000000000001,25.36,29.661999999999999,2.98,6.4589999999999996,1.4850000000000001,6.4660000000000002,28.158999999999999,17.032,15.587,1.748,1.3819999999999999,4.9279999999999999,2.21,14.237,41.753999999999998,5.8970000000000002,5.1020000000000003,2.2530000000000001,17.39,65.265000000000001,73.498000000000005,23.32,30.969000000000001,1.2350000000000001]
["2024-03-07",15.371,12.967000000000001,4.7140000000000004,17.248999999999999,26.475999999999999,3.2349999999999999,3.4020000000000001,25.36,29.686,2.976,6.4160000000000004,1.4870000000000001,6.4829999999999997,28.141999999999999,17.077000000000002,15.741,1.754,1.38,4.9470000000000001,2.2250000000000001,14.339,41.718000000000004,5.8949999999999996,5.1020000000000003,2.2639999999999998,17.433,65.436000000000007,73.105999999999995,23.279,30.956,1.2390000000000001]
["2024-03-08",15.36,12.938000000000001,4.6520000000000001,17.202999999999999,26.388999999999999,3.2189999999999999,3.395,25.305,29.713000000000001,2.9590000000000001,6.4219999999999997,1.484,6.4720000000000004,27.971,16.949000000000002,15.717000000000001,1.754,1.3720000000000001,4.9390000000000001,2.2309999999999999,14.314,41.631999999999998,5.8760000000000003,5.0919999999999996,2.266,17.376999999999999,65.209999999999994,72.388999999999996,23.138999999999999,30.821000000000002,1.2410000000000001]
["2024-03-11",15.308999999999999,12.948,4.6429999999999998,17.164000000000001,26.396999999999998,3.2269999999999999,3.3969999999999998,25.324999999999999,29.724,2.964,6.4009999999999998,1.4870000000000001,6.4290000000000003,28.012,17.007999999999999,15.785,1.7669999999999999,1.38,4.9489999999999998,2.214,14.305999999999999,41.887999999999998,5.9160000000000004,5.101,2.2639999999999998,17.422999999999998,65.447999999999993,72.418999999999997,23.177,30.934999999999999,1.24]
["2024-03-12",15.284000000000001,12.92,4.6479999999999997,17.14,26.356999999999999,3.2280000000000002,3.3889999999999998,25.27,29.56,2.9590000000000001,6.3440000000000003,1.4850000000000001,6.3339999999999996,27.963000000000001,16.994,15.663,1.7629999999999999,1.3759999999999999,4.95,2.2029999999999998,14.238,41.85,5.8949999999999996,5.0869999999999997,2.2610000000000001,17.370999999999999,64.891999999999996,72.230999999999995,23.152000000000001,30.923999999999999,1.2390000000000001]
["2024-03-13",15.275,12.92,4.6349999999999998,17.120999999999999,26.32,3.2120000000000002,3.3889999999999998,25.27,29.568999999999999,2.9529999999999998,6.3680000000000003,1.4830000000000001,6.3250000000000002,27.896000000000001,17.016999999999999,15.616,1.756,1.377,4.9269999999999996,2.2010000000000001,14.22,41.707999999999998,5.8970000000000002,5.0860000000000003,2.258,17.329999999999998,64.736999999999995,71.956000000000003,23.099,30.829000000000001,1.2350000000000001]
["2024-03-14",15.233000000000001,12.872999999999999,4.6399999999999997,17.097000000000001,26.178000000000001,3.2040000000000002,3.3769999999999998,25.18,29.475000000000001,2.9460000000000002,6.38,1.4790000000000001,6.3440000000000003,27.806999999999999,16.956,15.577999999999999,1.746,1.381,4.9169999999999998,2.1949999999999998,14.186999999999999,41.606999999999999,5.8659999999999997,5.0650000000000004,2.2440000000000002,17.283999999999999,64.569000000000003,71.725999999999999,23.042000000000002,30.745999999999999,1.236]
["2024-03-15",15.175000000000001,12.861000000000001,4.6239999999999997,17.079000000000001,26.172999999999998,3.2090000000000001,3.3730000000000002,25.155000000000001,29.454000000000001,2.952,6.3979999999999997,1.4810000000000001,6.3220000000000001,27.866,16.870999999999999,15.52,1.7370000000000001,1.383,4.9089999999999998,2.1840000000000002,14.089,41.579000000000001,5.8570000000000002,5.0599999999999996,2.2330000000000001,17.274999999999999,64.412000000000006,71.676000000000002,23.093,30.818999999999999,1.236]
["2024-03-18",15.198,12.885,4.6360000000000001,17.097999999999999,26.167999999999999,3.2149999999999999,3.379,25.2,29.466999999999999,2.96,6.38,1.4750000000000001,6.3390000000000004,27.914999999999999,16.923999999999999,15.51,1.7350000000000001,1.3819999999999999,4.9050000000000002,2.1800000000000002,14.093999999999999,41.622999999999998,5.8440000000000003,5.069,2.226,17.294,64.311999999999998,71.64,23.143000000000001,30.817,1.224]
["2024-03-19",15.173,12.917999999999999,4.6139999999999999,17.11,26.227,3.234,3.3879999999999999,25.265000000000001,29.562000000000001,2.976,6.4,1.4810000000000001,6.3460000000000001,28.036999999999999,16.968,15.462999999999999,1.7390000000000001,1.377,4.9189999999999996,2.1779999999999999,14.082000000000001,41.613999999999997,5.8440000000000003,5.08,2.2269999999999999,17.346,64.536000000000001,71.974999999999994,23.279,30.998999999999999,1.23]
["2024-03-20",15.201000000000001,12.928000000000001,4.6459999999999999,17.158000000000001,26.178999999999998,3.2389999999999999,3.391,25.285,29.594000000000001,2.98,6.3970000000000002,1.484,6.3490000000000002,28.018000000000001,17.027000000000001,15.366,1.7390000000000001,1.385,4.9210000000000003,2.1850000000000001,14.061999999999999,41.463000000000001,5.8470000000000004,5.085,2.226,17.343,64.433999999999997,71.980999999999995,23.315000000000001,30.969000000000001,1.236]
["2024-03-21",15.273,12.909000000000001,4.66,17.131,25.841999999999999,3.2160000000000002,3.3860000000000001,25.25,29.471,2.9609999999999999,6.4139999999999997,1.4790000000000001,6.444,27.853000000000002,16.98,15.308,1.742,1.383,4.9109999999999996,2.1869999999999998,14.052,41.374000000000002,5.8689999999999998,5.077,2.222,17.274000000000001,64.135000000000005,72.39,23.155000000000001,30.73,1.2370000000000001]
["2024-03-22",15.286,12.972,4.6870000000000003,17.274000000000001,26.082999999999998,3.242,3.4020000000000001,25.37,29.571000000000002,2.9969999999999999,6.3959999999999999,1.4850000000000001,6.4580000000000002,28.058,17.038,15.493,1.7450000000000001,1.399,4.9480000000000004,2.1829999999999998,14.081,41.634,5.8769999999999998,5.1020000000000003,2.2250000000000001,17.385000000000002,64.537999999999997,73.281000000000006,23.440999999999999,31.184999999999999,1.2350000000000001]
["2024-03-25",15.243,12.917999999999999,4.6769999999999996,17.16,25.981999999999999,3.234,3.387,25.265000000000001,29.484999999999999,2.9809999999999999,6.3760000000000003,1.476,6.4160000000000004,27.952999999999999,16.945,15.425000000000001,1.738,1.3939999999999999,4.9340000000000002,2.1779999999999999,14.007,41.466999999999999,5.8639999999999999,5.0819999999999999,2.2050000000000001,17.337,64.192999999999998,72.527000000000001,23.315000000000001,30.87,1.2330000000000001]
["2024-03-26",15.249000000000001,12.922000000000001,4.6749999999999998,17.167000000000002,25.757999999999999,3.2250000000000001,3.3889999999999998,25.274999999999999,29.440999999999999,2.9750000000000001,6.3849999999999998,1.474,6.3579999999999997,27.940999999999999,16.928999999999998,15.375,1.7350000000000001,1.395,4.9320000000000004,2.173,14.010999999999999,41.387,5.8680000000000003,5.085,2.2069999999999999,17.317,64.138999999999996,72.287999999999997,23.277999999999999,30.856999999999999,1.2310000000000001]
["2024-03-27",15.249000000000001,12.946,4.6909999999999998,17.207999999999998,25.812999999999999,3.238,3.395,25.32,29.523,2.992,6.4020000000000001,1.476,6.3970000000000002,28.091999999999999,16.890999999999998,15.47,1.732,1.411,4.9459999999999997,2.1680000000000001,14.032,41.613,5.8680000000000003,5.093,2.2010000000000001,17.356000000000002,64.28,72.543999999999997,23.408000000000001,31.059000000000001,1.2370000000000001]
["2024-03-28",15.236000000000001,12.938000000000001,4.68,17.248999999999999,25.911000000000001,3.2389999999999999,3.3929999999999998,25.305,29.594000000000001,2.992,6.4020000000000001,1.4770000000000001,6.3579999999999997,28.085000000000001,16.835999999999999,15.476000000000001,1.7350000000000001,1.413,4.9470000000000001,2.1619999999999999,13.987,41.625999999999998,5.8680000000000003,5.0880000000000001,2.1949999999999998,17.347999999999999,64.180999999999997,72.453000000000003,23.413,31.023,1.2330000000000001]
["2024-04-02",15.345000000000001,12.965,4.6890000000000001,17.395,25.974,3.2610000000000001,3.4,25.36,29.65,3.0139999999999998,6.4089999999999998,1.484,6.367,28.29,16.895,15.557,1.7450000000000001,1.421,4.9630000000000001,2.1659999999999999,14.054,41.917000000000002,5.9059999999999997,5.1029999999999998,2.1949999999999998,17.446999999999999,64.403999999999996,73.308000000000007,23.594999999999999,31.231999999999999,1.2529999999999999]
["2024-04-03",15.326000000000001,12.965999999999999,4.6360000000000001,17.332999999999998,25.888999999999999,3.25,3.399,25.355,29.577999999999999,3.0030000000000001,6.4470000000000001,1.4770000000000001,6.3150000000000004,28.161000000000001,16.891999999999999,15.488,1.742,1.4179999999999999,4.9450000000000003,2.1749999999999998,14.038,41.676000000000002,5.9009999999999998,5.1020000000000003,2.1909999999999998,17.399999999999999,64.063000000000002,73.617999999999995,23.513999999999999,31.07,1.2509999999999999]
["2024-04-04",15.391999999999999,12.941000000000001,4.6269999999999998,17.277000000000001,25.712,3.2240000000000002,3.3929999999999998,25.31,29.509,2.9790000000000001,6.4640000000000004,1.4670000000000001,6.2709999999999999,27.962,16.817,15.369,1.7310000000000001,1.409,4.9210000000000003,2.1800000000000002,14.065,41.320999999999998,5.8940000000000001,5.093,2.1989999999999998,17.306000000000001,63.473999999999997,73.135999999999996,23.321999999999999,30.847999999999999,1.2490000000000001]
["2024-04-05",15.363,12.93,4.6289999999999996,17.2,25.829000000000001,3.2250000000000001,3.391,25.29,29.486000000000001,2.9790000000000001,6.4859999999999998,1.472,6.21,27.992999999999999,16.826000000000001,15.409000000000001,1.728,1.4119999999999999,4.9130000000000003,2.1779999999999999,14.048999999999999,41.274000000000001,5.9029999999999996,5.0910000000000002,2.194,17.309999999999999,63.618000000000002,73.212000000000003,23.324000000000002,30.946000000000002,1.254]
["2024-04-08",15.428000000000001,12.964,4.625,17.228000000000002,25.849,3.2389999999999999,3.399,25.355,29.55,2.9910000000000001,6.4880000000000004,1.478,6.3360000000000003,28.117000000000001,16.87,15.417999999999999,1.726,1.423,4.93,2.1880000000000002,14.098000000000001,41.418999999999997,5.9290000000000003,5.1029999999999998,2.2109999999999999,17.356000000000002,63.81,72.748000000000005,23.422999999999998,31.056999999999999,1.258]
["2024-04-09",15.468999999999999,12.975,4.657,17.204000000000001,25.849,3.2290000000000001,3.403,25.38,29.620999999999999,2.9820000000000002,6.5190000000000001,1.474,6.3319999999999999,28.065999999999999,16.885999999999999,15.382999999999999,1.7250000000000001,1.431,4.9189999999999996,2.1880000000000002,14.147,41.399000000000001,5.9660000000000002,5.1079999999999997,2.2149999999999999,17.356000000000002,64.216999999999999,72.546000000000006,23.353000000000002,30.956,1.2629999999999999]
["2024-04-10",15.465,12.968999999999999,4.6680000000000001,17.222000000000001,25.856999999999999,3.2290000000000001,3.4,25.364999999999998,29.66,2.9820000000000002,6.516,1.474,6.2930000000000001,28.071000000000002,16.831,15.382,1.7290000000000001,1.431,4.9189999999999996,2.1930000000000001,14.202,41.302,5.9589999999999996,5.1040000000000001,2.2189999999999999,17.367999999999999,64.180000000000007,72.397999999999996,23.353999999999999,31,1.2649999999999999]
["2024-04-11",15.442,12.987,4.6660000000000004,17.289000000000001,25.971,3.27,3.4039999999999999,25.395,29.693000000000001,3.0209999999999999,6.5140000000000002,1.494,6.3,28.388000000000002,16.896000000000001,15.468,1.728,1.44,4.9850000000000003,2.1859999999999999,14.175000000000001,41.915999999999997,5.9660000000000002,5.109,2.202,17.492000000000001,64.738,73.328000000000003,23.666,31.413,1.26]
["2024-04-12",15.427,12.95,4.6529999999999996,17.295999999999999,26.065000000000001,3.286,3.395,25.33,29.651,3.0350000000000001,6.4640000000000004,1.5009999999999999,6.3010000000000002,28.49,16.831,15.53,1.7230000000000001,1.44,4.9859999999999998,2.1859999999999999,14.169,42.04,5.9459999999999997,5.0949999999999998,2.1890000000000001,17.495999999999999,65.227000000000004,73.569000000000003,23.782,31.393000000000001,1.2669999999999999]
["2024-04-15",15.404999999999999,12.952,4.6379999999999999,17.295999999999999,26.042999999999999,3.2839999999999998,3.395,25.324999999999999,29.66,3.036,6.4240000000000004,1.5,6.3970000000000002,28.484999999999999,16.805,15.439,1.7190000000000001,1.4339999999999999,4.9729999999999999,2.1779999999999999,14.122,41.823,5.8979999999999997,5.0910000000000002,2.1909999999999998,17.47,64.736000000000004,73.349000000000004,23.768000000000001,31.28,1.2529999999999999]
["2024-04-16",15.221,12.901999999999999,4.5430000000000001,17.204000000000001,25.978999999999999,3.2759999999999998,3.3820000000000001,25.234999999999999,29.533999999999999,3.028,6.3959999999999999,1.466,6.3049999999999997,28.37,16.745000000000001,15.332000000000001,1.7030000000000001,1.4079999999999999,4.9480000000000004,2.1619999999999999,13.964,41.648000000000003,5.8079999999999998,5.0709999999999997,2.169,17.384,64.784000000000006,72.959999999999994,23.713000000000001,31.215,1.248]
["2024-04-17",15.234999999999999,12.898999999999999,4.5030000000000001,17.170000000000002,26.023,3.2759999999999998,3.3820000000000001,25.23,29.54,3.028,6.4219999999999997,1.462,6.2779999999999996,28.341000000000001,16.763999999999999,15.332000000000001,1.7130000000000001,1.3959999999999999,4.9489999999999998,2.157,14.003,41.436999999999998,5.8010000000000002,5.07,2.161,17.405000000000001,64.385000000000005,72.894999999999996,23.713999999999999,31.164999999999999,1.244]
["2024-04-18",15.246,12.917999999999999,4.51,17.202000000000002,26.03,3.2690000000000001,3.3860000000000001,25.265000000000001,29.501000000000001,3.0209999999999999,6.4169999999999998,1.4630000000000001,6.2610000000000001,28.334,16.809999999999999,15.33,1.722,1.3959999999999999,4.9470000000000001,2.1520000000000001,14.023999999999999,41.338000000000001,5.8410000000000002,5.077,2.1709999999999998,17.401,64.370999999999995,72.861000000000004,23.663,31.119,1.242]
["2024-04-19",15.207000000000001,12.917999999999999,4.5069999999999997,17.228000000000002,26.084,3.274,3.3860000000000001,25.265000000000001,29.515999999999998,3.0270000000000001,6.3940000000000001,1.458,6.3010000000000002,28.402999999999999,16.809999999999999,15.336,1.7190000000000001,1.371,4.9560000000000004,2.1480000000000001,13.961,41.152000000000001,5.8390000000000004,5.077,2.1669999999999998,17.411000000000001,64.302999999999997,72.72,23.707000000000001,31.22,1.234]
["2024-04-22",15.298,12.923999999999999,4.5629999999999997,17.318000000000001,26.071000000000002,3.2810000000000001,3.387,25.274999999999999,29.274000000000001,3.032,6.4169999999999998,1.464,6.3079999999999998,28.501999999999999,16.815999999999999,15.356999999999999,1.722,1.389,4.9729999999999999,2.1579999999999999,14.037000000000001,41.323999999999998,5.8550000000000004,5.08,2.1779999999999999,17.437999999999999,64.146000000000001,73.027000000000001,23.760999999999999,31.254999999999999,1.242]
["2024-04-23",15.275,12.916,4.569,17.276,25.977,3.2669999999999999,3.3860000000000001,25.265000000000001,29.356999999999999,3.0209999999999999,6.42,1.4590000000000001,6.2530000000000001,28.404,16.809999999999999,15.292999999999999,1.7170000000000001,1.381,4.952,2.153,13.997999999999999,41.125999999999998,5.8540000000000001,5.077,2.177,17.373000000000001,63.906999999999996,72.643000000000001,23.672000000000001,31.116,1.2290000000000001]
["2024-04-24",15.36,12.903,4.5940000000000003,17.251999999999999,25.81,3.2589999999999999,3.3839999999999999,25.234999999999999,29.364000000000001,3.0150000000000001,6.4169999999999998,1.462,6.2560000000000002,28.337,16.79,15.239000000000001,1.7150000000000001,1.393,4.9429999999999996,2.15,14.009,41.042999999999999,5.8449999999999998,5.0720000000000001,2.1709999999999998,17.346,63.709000000000003,72.625,23.616,31.044,1.23]
["2024-04-25",15.321999999999999,12.863,4.5720000000000001,17.158000000000001,25.687000000000001,3.2389999999999999,3.3730000000000002,25.155000000000001,29.361000000000001,2.9980000000000002,6.4020000000000001,1.45,6.1870000000000003,28.169,16.759,15.085000000000001,1.7070000000000001,1.377,4.9130000000000003,2.1459999999999999,13.983000000000001,40.619,5.8280000000000003,5.0549999999999997,2.161,17.253,63.36,72.191999999999993,23.47,30.893999999999998,1.236]

{"sheet":"List1","index":5,"n_rows":1170,"n_cols":31,"rows_kept":1170,"cut":false,"hidden":true,"merged":[]}
[null,null,null,null,null,null,null,"2024-01-01","2024-01-01",null,null,null,null,null,null,"počet dní",null,null,null,null,null,null,null,null,null,null,null,{"$f":"Příkaz!F15","v":"2024-01-04"},{"$f":"VLOOKUP(VLOOKUP(AB1,AB3:AD569,3,FALSE)+10,AA3:AB569,2,FALSE)","v":"2024-01-18"}]
[1,null,null,null,null,null,null,"2024-12-31","2025-09-30",null,"Ano","JE","katedra","ZO PF UK",null,{"$f":"Příkaz!F15-Příkaz!F7+1","v":3},{"$f":"VALUE(RIGHT(P2,1))","v":3},{"$f":"P2&\" \"&VLOOKUP(Q2,P6:Q15,2,FALSE)","v":"3 dny"},null,null,null,"Země","Měnový kód","Měna","Základní sazby zahraničního stravného",null,"poř","datum","body","č2","den"]
[2,"V","Vlak",null,null,null,null,null,null,null,"Ne","NENÍ","grant","jinak",null,null,null,"CZK","CZK",0,1,"Afghánistán","EUR","euro",45,null,0,"2023-01-01",0,null,{"$f":"WEEKDAY(AB3,2)","v":7}]
[3,"A","Autobus",null,null,null,null,null,"CZK",null,null,null,"jiné",null,null,null,null,"EUR","AUD",2,1,"Albánie","EUR","euro",40,null,{"$f":"AA3+AC4","v":1},"2023-01-02",1,{"$f":"AA3+AC4","v":1},{"$f":"WEEKDAY(AB4,2)","v":1}]
[4,"L","Letadlo",null,null,null,null,null,"EUR",null,"Ne",null,null,null,null,null,null,"GBP","BGN",3,1,"Alžírsko","EUR","euro",50,null,2,"2023-01-03",1,{"$f":"AA4+AC5","v":2},2]
[5,"SV","Služební silniční vozidlo",null,null,null,null,null,"USD",null,"Ano, v hotovosti",null,null,"ZO PF UK",null,0,"dní","PLN","BRL",4,1,"Andorra","EUR","euro",50,null,3,"2023-01-04",1,3,3]
[6,"SJ","Spolujízda",null,null,null,null,null,"GBP",null,"Ano, na bank. účet",null,null,"vyjíždějící",null,1,"den","USD","CAD",5,1,"Angola","USD","americký dolar",60,null,4,"2023-01-05",1,4,4]
[7,"VV","Vlastní silniční vozidlo - náhrada za každý km jízdy",null,null,null,null,null,"AUD",null,null,null,null,null,null,2,"dny",null,"CHF",6,1,"Argentina","USD","americký dolar",50,null,5,"2023-01-06",1,5,5]
[8,"V - VV","Vlastní vozidlo s náhradou výdajů za vlak",null,null,null,null,null,"BRL",null,null,null,null,null,null,3,"dny",null,"CNY",7,1,"Arménie","EUR","euro",45,null,5,"2023-01-07",0,5,6]
[9,"A - VV","Vlastní vozidlo s náhradou výdajů za autobus",null,null,null,null,null,"BGN",null,null,null,null,null,null,4,"dny",null,"DKK",8,1,"Austrálie a Oceánie – ostrovní státy1) ","USD","americký dolar",65,null,5,"2023-01-08",0,5,7]
[10,"L - VV","Vlastní vozidlo s náhradou výdajů za letadlo",null,null,null,null,null,"CNY",null,null,null,null,null,null,5,"dní",null,"EUR",9,1,"Ázerbájdžán","EUR","euro",40,null,6,"2023-01-09",1,6,1]
[11,null,null,null,null,null,null,null,"DKK",null,null,null,null,null,null,6,"dní",null,"GBP",10,1,"Bahamy","USD","americký dolar",60,null,7,"2023-01-10",1,7,2]
[12,"S",null,null,null,null,null,null,"PHP",null,null,null,null,null,null,7,"dní",null,"HKD",11,1,"Bahrajn","EUR","euro",45,null,8,"2023-01-11",1,8,3]
[13,"O",null,null,null,null,null,null,"HKD",null,null,null,null,null,null,8,"dní",null,"HUF",12,100,"Bangladéš","USD","americký dolar",50,null,9,"2023-01-12",1,9,4]
[14,"V",null,null,null,null,null,null,"HRK",null,null,null,null,null,null,9,"dní",null,"IDR",13,1000,"Belgie","EUR","euro",50,null,10,"2023-01-13",1,10,5]
[15,"SO",null,null,null,null,null,null,"INR",null,null,null,null,null,null,null,null,null,"ILS",14,1,"Belize","USD","americký dolar",50,null,10,"2023-01-14",0,10,6]
[16,"SV",null,null,null,null,null,null,"IDR",null,null,null,null,null,null,null,null,null,"INR",15,100,"Benin","EUR","euro",45,null,10,"2023-01-15",0,10,7]
[17,"OV",null,null,null,null,null,null,"ISK",null,null,null,null,null,null,null,null,null,"ISK",16,100,"Bermudy","USD","americký dolar",50,null,11,"2023-01-16",1,11,1]
[18,"SOV",null,null,null,null,null,null,"ILS",null,null,null,null,null,null,null,null,null,"JPY",17,100,"Bělorusko","EUR","euro",45,null,12,"2023-01-17",1,12,2]
[19,null,null,null,null,null,null,null,"JPY",null,null,null,null,null,null,null,null,null,"KRW",18,100,"Bhútán","USD","americký dolar",50,null,13,"2023-01-18",1,13,3]
[20,null,null,null,null,null,null,null,"ZAR",null,null,null,null,null,null,null,null,null,"MXN",19,1,"Bolívie","USD","americký dolar",50,null,14,"2023-01-19",1,14,4]
[21,110,"Z",1,null,null,null,null,"CAD",null,null,null,null,null,null,null,null,null,"MYR",20,1,"Bosna a Hercegovina","EUR","euro",40,null,15,"2023-01-20",1,15,5]
[22,1010,"P",2,null,null,null,null,"KRW",null,null,null,null,null,null,null,null,null,"NOK",21,1,"Botswana","USD","americký dolar",55,null,15,"2023-01-21",0,15,6]
[23,1001,"K",3,null,null,null,null,"HUF",null,null,null,null,null,null,null,null,null,"NZD",22,1,"Brazílie","USD","americký dolar",60,null,15,"2023-01-22",0,15,7]
[24,101,"S",4,null,null,null,null,"MYR",null,null,null,null,null,null,null,null,null,"PHP",23,100,"Brunej","USD","americký dolar",40,null,16,"2023-01-23",1,16,1]
[25,0,0,5,null,null,null,null,"MXN",null,null,null,null,null,null,null,null,null,"PLN",24,1,"Bulharsko","EUR","euro",40,null,17,"2023-01-24",1,17,2]
[26,null,null,null,null,null,null,null,"XDR",null,null,null,null,null,null,null,null,null,"RON",25,1,"Burkina Faso ","EUR","euro",40,null,18,"2023-01-25",1,18,3]
[27,null,null,null,null,null,null,null,"NOK",null,null,null,null,null,null,null,null,null,"SEK",26,1,"Burundi","USD","americký dolar",55,null,19,"2023-01-26",1,19,4]
[28,null,null,null,null,null,null,null,"NZD",null,null,null,null,null,null,null,null,null,"SGD",27,1,"Čad","EUR","euro",50,null,20,"2023-01-27",1,20,5]
[29,null,null,null,null,null,null,null,"PLN",null,null,null,null,null,null,null,null,null,"THB",28,100,"Černá Hora","EUR","euro",40,null,20,"2023-01-28",0,20,6]
[30,null,null,null,null,null,null,null,"RON",null,null,null,null,null,null,null,null,null,"TRY",29,100,"Čína","EUR","euro",45,null,20,"2023-01-29",0,20,7]
[31,null,null,null,null,null,null,null,"RUB",null,null,null,null,null,null,null,null,null,"USD",30,1,"Dánsko","EUR","euro",60,null,21,"2023-01-30",1,21,1]
[32,null,null,null,null,null,null,null,"SGD",null,null,null,null,null,null,null,null,null,"XDR",31,1,"Džibutsko","USD","americký dolar",65,null,22,"2023-01-31",1,22,2]
[33,null,null,null,null,null,null,null,"SEK",null,null,null,null,null,null,null,null,null,"ZAR",32,1,"Egypt","EUR","euro",50,null,23,"2023-02-01",1,23,3]
[34,null,null,null,null,null,null,null,"CHF",null,null,null,null,null,null,null,null,null,null,null,null,"Ekvádor","USD","americký dolar",50,null,24,"2023-02-02",1,24,4]
[35,null,null,null,null,null,null,null,"THB",null,null,null,null,null,null,null,null,null,null,null,null,"Eritrea","USD","americký dolar",50,null,25,"2023-02-03",1,25,5]
[36,null,null,null,null,null,null,null,"TRY",null,null,null,null,null,null,null,null,null,null,{"$f":"RIGHT(S37,3)","v":""},null,"Estonsko","EUR","euro",45,null,25,"2023-02-04",0,25,6]
[37,null,null,null,null,null,null,null,null,null,null,null,null,null,null,null,null,null,null,"",null,"Etiopie","EUR","euro",50,null,25,"2023-02-05",0,25,7]
[38,null,null,null,null,null,null,null,null,null,null,null,null,null,null,null,null,null,null,"",null,"Filipíny","EUR","euro",40,null,26,"2023-02-06",1,26,1]
[39,null,null,null,null,null,null,null,null,null,null,null,null,null,null,null,null,null,null,"",null,"Finsko","EUR","euro",55,null,27,"2023-02-07",1,27,2]
[40,null,null,null,null,null,null,null,null,null,null,null,null,null,null,null,null,null,null,"",null,"Francie","EUR","euro",50,null,28,"2023-02-08",1,28,3]
[41,null,null,null,null,null,null,null,null,null,null,null,null,null,null,null,null,null,null,"",null,"Francouzská Guyana","EUR","euro",45,null,29,"2023-02-09",1,29,4]
[42,null,null,null,null,null,null,null,null,null,null,null,null,null,null,null,null,null,null,"",null,"Gabon","EUR","euro",50,null,30,"2023-02-10",1,30,5]
[43,null,null,null,null,null,null,null,null,null,null,null,null,null,null,null,null,null,null,"",null,"Gambie","EUR","euro",45,null,30,"2023-02-11",0,30,6]
[44,null,null,null,null,null,null,null,null,null,null,null,null,null,null,null,null,null,null,"",null,"Ghana","EUR","euro",55,null,30,"2023-02-12",0,30,7]
[45,null,null,null,null,null,null,null,null,null,null,null,null,null,null,null,null,null,null,"",null,"Gibraltar","EUR","euro",40,null,31,"2023-02-13",1,31,1]
[46,null,null,null,null,null,null,null,null,null,null,null,null,null,null,null,null,null,null,"",null,"Gruzie","EUR","euro",45,null,32,"2023-02-14",1,32,2]
[47,null,null,null,null,null,null,null,null,null,null,null,null,null,null,null,null,null,null,"",null,"Guatemala","USD","americký dolar",45,null,33,"2023-02-15",1,33,3]
[48,null,null,null,null,null,null,null,null,null,null,null,null,null,null,null,null,null,null,"",null,"Guinea","EUR","euro",50,null,34,"2023-02-16",1,34,4]
[49,null,null,null,null,null,null,null,null,null,null,null,null,null,null,null,null,null,null,"",null,"Guinea-Bissau","EUR","euro",45,null,35,"2023-02-17",1,35,5]
[50,null,null,null,null,null,null,null,null,null,null,null,null,null,null,null,null,null,null,"",null,"Guyana","USD","americký dolar",50,null,35,"2023-02-18",0,35,6]
[51,null,null,null,null,null,null,null,null,null,null,null,null,null,null,null,null,null,null,"",null,"Honduras","USD","americký dolar",45,null,35,"2023-02-19",0,35,7]
[52,null,null,null,null,null,null,null,null,null,null,null,null,null,null,null,null,null,null,"",null,"Hongkong ","EUR","euro",50,null,36,"2023-02-20",1,36,1]
[53,null,null,null,null,null,null,null,null,null,null,null,null,null,null,null,null,null,null,"",null,"Chile","USD","americký dolar",55,null,37,"2023-02-21",1,37,2]
[54,null,null,null,null,null,null,null,null,null,null,null,null,null,null,null,null,null,null,"",null,"Chorvatsko","EUR","euro",45,null,38,"2023-02-22",1,38,3]
[55,null,null,null,null,null,null,null,null,null,null,null,null,null,null,null,null,null,null,"",null,"Indie","EUR","euro",45,null,39,"2023-02-23",1,39,4]
[56,null,null,null,null,null,null,null,null,null,null,null,null,null,null,null,null,null,null,"",null,"Indonésie","EUR","euro",40,null,40,"2023-02-24",1,40,5]
[57,null,null,null,null,null,null,null,null,null,null,null,null,null,null,null,null,null,null,"",null,"Irák","EUR","euro",50,null,40,"2023-02-25",0,40,6]
[58,null,null,null,null,null,null,null,null,null,null,null,null,null,null,null,null,null,null,"",null,"Írán","EUR","euro",40,null,40,"2023-02-26",0,40,7]
[59,null,null,null,null,null,null,null,null,null,null,null,null,null,null,null,null,null,null,"",null,"Irsko","EUR","euro",50,null,41,"2023-02-27",1,41,1]
[60,null,null,null,null,null,null,null,null,null,null,null,null,null,null,null,null,null,null,"",null,"Island","EUR","euro",65,null,42,"2023-02-28",1,42,2]
[61,null,null,null,null,null,null,null,null,null,null,null,null,null,null,null,null,null,null,"",null,"Itálie, Vatikán a San Marino","EUR","euro",50,null,43,"2023-03-01",1,43,3]
[null,null,null,null,null,null,null,null,null,null,null,null,null,null,null,null,null,null,null,"",null,"Izrael","USD","americký dolar",60,null,44,"2023-03-02",1,44,4]
[null,null,null,null,null,null,null,null,null,null,null,null,null,null,null,null,null,null,null,"",null,"Japonsko","USD","americký dolar",65,null,45,"2023-03-03",1,45,5]
[null,null,null,null,null,null,null,null,null,null,null,null,null,null,null,null,null,null,null,"",null,"Jemen","EUR","euro",35,null,45,"2023-03-04",0,45,6]
[null,null,null,null,null,null,null,null,null,null,null,null,null,null,null,null,null,null,null,"",null,"Jihoafrická republika","EUR","euro",40,null,45,"2023-03-05",0,45,7]
[null,null,null,null,null,null,null,null,null,null,null,null,null,null,null,null,null,null,null,"",null,"Jižní Súdán","USD","americký dolar",55,null,46,"2023-03-06",1,46,1]
[null,null,null,null,null,null,null,null,null,null,null,null,null,null,null,null,null,null,null,"",null,"Jordánsko","EUR","euro",50,null,{"$f":"AA67+AC68","v":47},"2023-03-07",1,47,{"$f":"WEEKDAY(AB68,2)","v":2}]
[null,null,null,null,null,null,null,null,null,null,null,null,null,null,null,null,null,null,null,{"$f":"RIGHT(S69,3)","v":""},null,"Kambodža","USD","americký dolar",45,null,48,"2023-03-08",1,{"$f":"AA68+AC69","v":48},3]
[null,null,null,null,null,null,null,null,null,null,null,null,null,null,null,null,null,null,null,"",null,"Kamerun","EUR","euro",50,null,49,"2023-03-09",1,49,4]
[null,null,null,null,null,null,null,null,null,null,null,null,null,null,null,null,null,null,null,"",null,"Kanada","USD","americký dolar",50,null,50,"2023-03-10",1,50,5]
[null,null,null,null,null,null,null,null,null,null,null,null,null,null,null,null,null,null,null,"",null,"Kapverdy","EUR","euro",40,null,50,"2023-03-11",0,50,6]
[null,null,null,null,null,null,null,null,null,null,null,null,null,null,null,null,null,null,null,"",null,"Karibik – ostrovní státy2) ","USD","americký dolar",60,null,50,"2023-03-12",0,50,7]
[null,null,null,null,null,null,null,null,null,null,null,null,null,null,null,null,null,null,null,"",null,"Katar","USD","americký dolar",50,null,51,"2023-03-13",1,51,1]
[null,null,null,null,null,null,null,null,null,null,null,null,null,null,null,null,null,null,null,"",null,"Kazachstán","EUR","euro",45,null,52,"2023-03-14",1,52,2]
[null,null,null,null,null,null,null,null,null,null,null,null,null,null,null,null,null,null,null,"",null,"Keňa","EUR","euro",45,null,53,"2023-03-15",1,53,3]
[null,null,null,null,null,null,null,null,null,null,null,null,null,null,null,null,null,null,null,"",null,"Kolumbie","USD","americký dolar",45,null,54,"2023-03-16",1,54,4]
[null,null,null,null,null,null,null,null,null,null,null,null,null,null,null,null,null,null,null,"",null,"Komory","USD","americký dolar",55,null,55,"2023-03-17",1,55,5]
[null,null,null,null,null,null,null,null,null,null,null,null,null,null,null,null,null,null,null,"",null,"Konžská republika  (Brazzaville)","USD","americký dolar",60,null,55,"2023-03-18",0,55,6]
[null,null,null,null,null,null,null,null,null,null,null,null,null,null,null,null,null,null,null,"",null,"Konžská demokratická republika (Kinshasa)","USD","americký dolar",65,null,55,"2023-03-19",0,55,7]
[null,null,null,null,null,null,null,null,null,null,null,null,null,null,null,null,null,null,null,"",null,"Korejská lidově demokratická republika","EUR","euro",45,null,56,"2023-03-20",1,56,1]
[null,null,null,null,null,null,null,null,null,null,null,null,null,null,null,null,null,null,null,"",null,"Korejská republika","EUR","euro",55,null,57,"2023-03-21",1,57,2]
[null,null,null,null,null,null,null,null,null,null,null,null,null,null,null,null,null,null,null,"",null,"Kosovo","EUR","euro",45,null,58,"2023-03-22",1,58,3]
[null,null,null,null,null,null,null,null,null,null,null,null,null,null,null,null,null,null,null,"",null,"Kostarika","USD","americký dolar",50,null,59,"2023-03-23",1,59,4]
[null,null,null,null,null,null,null,null,null,null,null,null,null,null,null,null,null,null,null,"",null,"Kuba","EUR","euro",60,null,60,"2023-03-24",1,60,5]
[null,null,null,null,null,null,null,null,null,null,null,null,null,null,null,null,null,null,null,"",null,"Kuvajt","EUR","euro",40,null,60,"2023-03-25",0,60,6]
[null,null,null,null,null,null,null,null,null,null,null,null,null,null,null,null,null,null,null,"",null,"Kypr","EUR","euro",45,null,60,"2023-03-26",0,60,7]
[null,null,null,null,null,null,null,null,null,null,null,null,null,null,null,null,null,null,null,"",null,"Kyrgyzstán","EUR","euro",40,null,61,"2023-03-27",1,61,1]
[null,null,null,null,null,null,null,null,null,null,null,null,null,null,null,null,null,null,null,"",null,"Laos","USD","americký dolar",45,null,62,"2023-03-28",1,62,2]
[null,null,null,null,null,null,null,null,null,null,null,null,null,null,null,null,null,null,null,"",null,"Lesotho","USD","americký dolar",50,null,63,"2023-03-29",1,63,3]
[null,null,null,null,null,null,null,null,null,null,null,null,null,null,null,null,null,null,null,"",null,"Libanon","USD","americký dolar",55,null,64,"2023-03-30",1,64,4]
[null,null,null,null,null,null,null,null,null,null,null,null,null,null,null,null,null,null,null,"",null,"Libérie","EUR","euro",45,null,65,"2023-03-31",1,65,5]
[null,null,null,null,null,null,null,null,null,null,null,null,null,null,null,null,null,null,null,"",null,"Libye","EUR","euro",45,null,65,"2023-04-01",0,65,6]
[null,null,null,null,null,null,null,null,null,null,null,null,null,null,null,null,null,null,null,"",null,"Lichtenštejnsko","CHF","švýcarský frank",70,null,65,"2023-04-02",0,65,7]
[null,null,null,null,null,null,null,null,null,null,null,null,null,null,null,null,null,null,null,"",null,"Litva","EUR","euro",40,null,66,"2023-04-03",1,66,1]
[null,null,null,null,null,null,null,null,null,null,null,null,null,null,null,null,null,null,null,"",null,"Lotyšsko","EUR","euro",45,null,67,"2023-04-04",1,67,2]
[null,null,null,null,null,null,null,null,null,null,null,null,null,null,null,null,null,null,null,"",null,"Lucembursko","EUR","euro",55,null,68,"2023-04-05",1,68,3]
[null,null,null,null,null,null,null,null,null,null,null,null,null,null,null,null,null,null,null,"",null,"Macao ","EUR","euro",45,null,69,"2023-04-06",1,69,4]
[null,null,null,null,null,null,null,null,null,null,null,null,null,null,null,null,null,null,null,"",null,"Madagaskar","EUR","euro",40,null,69,"2023-04-07",0,69,5]
[null,null,null,null,null,null,null,null,null,null,null,null,null,null,null,null,null,null,null,"",null,"Maďarsko","EUR","euro",45,null,69,"2023-04-08",0,69,6]
[null,null,null,null,null,null,null,null,null,null,null,null,null,null,null,null,null,null,null,"",null,"Malajsie","USD","americký dolar",45,null,69,"2023-04-09",0,69,7]
[null,null,null,null,null,null,null,null,null,null,null,null,null,null,null,null,null,null,null,"",null,"Malawi","USD","americký dolar",45,null,69,"2023-04-10",0,69,1]
[null,null,null,null,null,null,null,null,null,null,null,null,null,null,null,null,null,null,null,"",null,"Maledivy","USD","americký dolar",55,null,70,"2023-04-11",1,70,2]
[null,null,null,null,null,null,null,null,null,null,null,null,null,null,null,null,null,null,null,"",null,"Mali","EUR","euro",50,null,71,"2023-04-12",1,71,3]
[null,null,null,null,null,null,null,null,null,null,null,null,null,null,null,null,null,null,null,"",null,"Malta","EUR","euro",50,null,72,"2023-04-13",1,72,4]
[null,null,null,null,null,null,null,null,null,null,null,null,null,null,null,null,null,null,null,"",null,"Maroko","EUR","euro",50,null,73,"2023-04-14",1,73,5]
[null,null,null,null,null,null,null,null,null,null,null,null,null,null,null,null,null,null,null,"",null,"Mauretánie","EUR","euro",40,null,73,"2023-04-15",0,73,6]
[null,null,null,null,null,null,null,null,null,null,null,null,null,null,null,null,null,null,null,"",null,"Mauricius","USD","americký dolar",55,null,73,"2023-04-16",0,73,7]
[null,null,null,null,null,null,null,null,null,null,null,null,null,null,null,null,null,null,null,"",null,"Mexiko","USD","americký dolar",50,null,74,"2023-04-17",1,74,1]
[null,null,null,null,null,null,null,null,null,null,null,null,null,null,null,null,null,null,null,"",null,"Moldavsko","EUR","euro",45,null,75,"2023-04-18",1,75,2]
[null,null,null,null,null,null,null,null,null,null,null,null,null,null,null,null,null,null,null,"",null,"Monako","EUR","euro",45,null,76,"2023-04-19",1,76,3]
[null,null,null,null,null,null,null,null,null,null,null,null,null,null,null,null,null,null,null,"",null,"Mongolsko","EUR","euro",40,null,77,"2023-04-20",1,77,4]
[null,null,null,null,null,null,null,null,null,null,null,null,null,null,null,null,null,null,null,"",null,"Mosambik","USD","americký dolar",50,null,78,"2023-04-21",1,78,5]
[null,null,null,null,null,null,null,null,null,null,null,null,null,null,null,null,null,null,null,"",null,"Myanmar (Barma)","USD","americký dolar",55,null,78,"2023-04-22",0,78,6]
[null,null,null,null,null,null,null,null,null,null,null,null,null,null,null,null,null,null,null,"",null,"Namibie","USD","americký dolar",50,null,78,"2023-04-23",0,78,7]
[null,null,null,null,null,null,null,null,null,null,null,null,null,null,null,null,null,null,null,"",null,"Německo","EUR","euro",45,null,79,"2023-04-24",1,79,1]
[null,null,null,null,null,null,null,null,null,null,null,null,null,null,null,null,null,null,null,"",null,"Nepál","USD","americký dolar",50,null,80,"2023-04-25",1,80,2]
[null,null,null,null,null,null,null,null,null,null,null,null,null,null,null,null,null,null,null,"",null,"Niger ","EUR","euro",50,null,81,"2023-04-26",1,81,3]
[null,null,null,null,null,null,null,null,null,null,null,null,null,null,null,null,null,null,null,"",null,"Nigérie","EUR","euro",50,null,82,"2023-04-27",1,82,4]
[null,null,null,null,null,null,null,null,null,null,null,null,null,null,null,null,null,null,null,"",null,"Nikaragua","USD","americký dolar",45,null,83,"2023-04-28",1,83,5]
[null,null,null,null,null,null,null,null,null,null,null,null,null,null,null,null,null,null,null,"",null,"Nizozemsko","EUR","euro",50,null,83,"2023-04-29",0,83,6]
[null,null,null,null,null,null,null,null,null,null,null,null,null,null,null,null,null,null,null,"",null,"Norsko","EUR","euro",65,null,83,"2023-04-30",0,83,7]
[null,null,null,null,null,null,null,null,null,null,null,null,null,null,null,null,null,null,null,"",null,"Nový Zéland","USD","americký dolar",65,null,83,"2023-05-01",0,83,1]
[null,null,null,null,null,null,null,null,null,null,null,null,null,null,null,null,null,null,null,"",null,"Omán","EUR","euro",50,null,84,"2023-05-02",1,84,2]
[null,null,null,null,null,null,null,null,null,null,null,null,null,null,null,null,null,null,null,"",null,"Pákistán","EUR","euro",40,null,85,"2023-05-03",1,85,3]
[null,null,null,null,null,null,null,null,null,null,null,null,null,null,null,null,null,null,null,"",null,"Panama","USD","americký dolar",45,null,86,"2023-05-04",1,86,4]
[null,null,null,null,null,null,null,null,null,null,null,null,null,null,null,null,null,null,null,"",null,"Paraguay","USD","americký dolar",50,null,87,"2023-05-05",1,87,5]
[null,null,null,null,null,null,null,null,null,null,null,null,null,null,null,null,null,null,null,"",null,"Peru","USD","americký dolar",52,null,87,"2023-05-06",0,87,6]
[null,null,null,null,null,null,null,null,null,null,null,null,null,null,null,null,null,null,null,"",null,"Pobřeží Slonoviny","EUR","euro",40,null,87,"2023-05-07",0,87,7]
[null,null,null,null,null,null,null,null,null,null,null,null,null,null,null,null,null,null,null,"",null,"Polsko","EUR","euro",45,null,87,"2023-05-08",0,87,1]
[null,null,null,null,null,null,null,null,null,null,null,null,null,null,null,null,null,null,null,"",null,"Portugalsko a Azory","EUR","euro",40,null,88,"2023-05-09",1,88,2]
[null,null,null,null,null,null,null,null,null,null,null,null,null,null,null,null,null,null,null,"",null,"Rakousko","EUR","euro",45,null,{"$f":"AA131+AC132","v":89},"2023-05-10",1,89,{"$f":"WEEKDAY(AB132,2)","v":3}]
[null,null,null,null,null,null,null,null,null,null,null,null,null,null,null,null,null,null,null,{"$f":"RIGHT(S133,3)","v":""},null,"Rovníková Guinea","EUR","euro",50,null,90,"2023-05-11",1,{"$f":"AA132+AC133","v":90},4]
[null,null,null,null,null,null,null,null,null,null,null,null,null,null,null,null,null,null,null,"",null,"Rumunsko","EUR","euro",40,null,91,"2023-05-12",1,91,5]
[null,null,null,null,null,null,null,null,null,null,null,null,null,null,null,null,null,null,null,"",null,"Rusko","EUR","euro",45,null,91,"2023-05-13",0,91,6]
[null,null,null,null,null,null,null,null,null,null,null,null,null,null,null,null,null,null,null,"",null,"Rwanda","USD","americký dolar",55,null,91,"2023-05-14",0,91,7]
[null,null,null,null,null,null,null,null,null,null,null,null,null,null,null,null,null,null,null,"",null,"Řecko","EUR","euro",40,null,92,"2023-05-15",1,92,1]
[null,null,null,null,null,null,null,null,null,null,null,null,null,null,null,null,null,null,null,"",null,"Salvador","USD","americký dolar",45,null,93,"2023-05-16",1,93,2]
[null,null,null,null,null,null,null,null,null,null,null,null,null,null,null,null,null,null,null,"",null,"Saúdská Arábie","EUR","euro",50,null,94,"2023-05-17",1,94,3]
[null,null,null,null,null,null,null,null,null,null,null,null,null,null,null,null,null,null,null,"",null,"Senegal","EUR","euro",55,null,95,"2023-05-18",1,95,4]
[null,null,null,null,null,null,null,null,null,null,null,null,null,null,null,null,null,null,null,"",null,"Severní Makedonie","EUR","euro",40,null,96,"2023-05-19",1,96,5]
[null,null,null,null,null,null,null,null,null,null,null,null,null,null,null,null,null,null,null,"",null,"Seychely","EUR","euro",55,null,96,"2023-05-20",0,96,6]
[null,null,null,null,null,null,null,null,null,null,null,null,null,null,null,null,null,null,null,"",null,"Sierra Leone","EUR","euro",40,null,96,"2023-05-21",0,96,7]
[null,null,null,null,null,null,null,null,null,null,null,null,null,null,null,null,null,null,null,"",null,"Singapur","USD","americký dolar",60,null,97,"2023-05-22",1,97,1]
[null,null,null,null,null,null,null,null,null,null,null,null,null,null,null,null,null,null,null,"",null,"Spojené arabské emiráty","USD","americký dolar",55,null,98,"2023-05-23",1,98,2]
[null,null,null,null,null,null,null,null,null,null,null,null,null,null,null,null,null,null,null,"",null,"Slovensko","EUR","euro",35,null,99,"2023-05-24",1,99,3]
[null,null,null,null,null,null,null,null,null,null,null,null,null,null,null,null,null,null,null,"",null,"Slovinsko","EUR","euro",40,null,100,"2023-05-25",1,100,4]
[null,null,null,null,null,null,null,null,null,null,null,null,null,null,null,null,null,null,null,"",null,"Somálsko","USD","americký dolar",55,null,101,"2023-05-26",1,101,5]
[null,null,null,null,null,null,null,null,null,null,null,null,null,null,null,null,null,null,null,"",null,"Spojené státy americké","USD","americký dolar",60,null,101,"2023-05-27",0,101,6]
[null,null,null,null,null,null,null,null,null,null,null,null,null,null,null,null,null,null,null,"",null,"Srbsko ","EUR","euro",35,null,101,"2023-05-28",0,101,7]
[null,null,null,null,null,null,null,null,null,null,null,null,null,null,null,null,null,null,null,"",null,"Srí Lanka","USD","americký dolar",50,null,102,"2023-05-29",1,102,1]
[null,null,null,null,null,null,null,null,null,null,null,null,null,null,null,null,null,null,null,"",null,"Středoafrická republika","USD","americký dolar",50,null,103,"2023-05-30",1,103,2]
[null,null,null,null,null,null,null,null,null,null,null,null,null,null,null,null,null,null,null,"",null,"Súdán","USD","americký dolar",55,null,104,"2023-05-31",1,104,3]
[null,null,null,null,null,null,null,null,null,null,null,null,null,null,null,null,null,null,null,"",null,"Surinam","USD","americký dolar",50,null,105,"2023-06-01",1,105,4]
[null,null,null,null,null,null,null,null,null,null,null,null,null,null,null,null,null,null,null,"",null,"Svatý Tomáš a Princův ostrov","EUR","euro",40,null,106,"2023-06-02",1,106,5]
[null,null,null,null,null,null,null,null,null,null,null,null,null,null,null,null,null,null,null,"",null,"Svazijsko ","USD","americký dolar",55,null,106,"2023-06-03",0,106,6]
[null,null,null,null,null,null,null,null,null,null,null,null,null,null,null,null,null,null,null,"",null,"Sýrie","EUR","euro",50,null,106,"2023-06-04",0,106,7]
[null,null,null,null,null,null,null,null,null,null,null,null,null,null,null,null,null,null,null,"",null,"Španělsko","EUR","euro",50,null,107,"2023-06-05",1,107,1]
[null,null,null,null,null,null,null,null,null,null,null,null,null,null,null,null,null,null,null,"",null,"Švédsko","EUR","euro",65,null,108,"2023-06-06",1,108,2]
[null,null,null,null,null,null,null,null,null,null,null,null,null,null,null,null,null,null,null,"",null,"Švýcarsko","CHF","švýcarský frank",75,null,109,"2023-06-07",1,109,3]
[null,null,null,null,null,null,null,null,null,null,null,null,null,null,null,null,null,null,null,"",null,"Tádžikistán","EUR","euro",40,null,110,"2023-06-08",1,110,4]
[null,null,null,null,null,null,null,null,null,null,null,null,null,null,null,null,null,null,null,"",null,"Tanzanie","USD","americký dolar",55,null,111,"2023-06-09",1,111,5]
[null,null,null,null,null,null,null,null,null,null,null,null,null,null,null,null,null,null,null,"",null,"Thajsko","EUR","euro",40,null,111,"2023-06-10",0,111,6]
[null,null,null,null,null,null,null,null,null,null,null,null,null,null,null,null,null,null,null,"",null,"Tchaj-wan","EUR","euro",45,null,111,"2023-06-11",0,111,7]
[null,null,null,null,null,null,null,null,null,null,null,null,null,null,null,null,null,null,null,"",null,"Togo ","EUR","euro",40,null,112,"2023-06-12",1,112,1]
[null,null,null,null,null,null,null,null,null,null,null,null,null,null,null,null,null,null,null,"",null,"Tunisko","EUR","euro",50,null,113,"2023-06-13",1,113,2]
[null,null,null,null,null,null,null,null,null,null,null,null,null,null,null,null,null,null,null,"",null,"Turecko","EUR","euro",40,null,114,"2023-06-14",1,114,3]
[null,null,null,null,null,null,null,null,null,null,null,null,null,null,null,null,null,null,null,"",null,"Turkmenistán","EUR","euro",45,null,115,"2023-06-15",1,115,4]
[null,null,null,null,null,null,null,null,null,null,null,null,null,null,null,null,null,null,null,"",null,"Uganda","USD","americký dolar",55,null,116,"2023-06-16",1,116,5]
[null,null,null,null,null,null,null,null,null,null,null,null,null,null,null,null,null,null,null,"",null,"Ukrajina","EUR","euro",45,null,116,"2023-06-17",0,116,6]
[null,null,null,null,null,null,null,null,null,null,null,null,null,null,null,null,null,null,null,"",null,"Uruguay","USD","americký dolar",55,null,116,"2023-06-18",0,116,7]
[null,null,null,null,null,null,null,null,null,null,null,null,null,null,null,null,null,null,null,"",null,"Uzbekistán","EUR","euro",40,null,117,"2023-06-19",1,117,1]
[null,null,null,null,null,null,null,null,null,null,null,null,null,null,null,null,null,null,null,"",null,"Velká Británie","GBP","anglická libra",45,null,118,"2023-06-20",1,118,2]
[null,null,null,null,null,null,null,null,null,null,null,null,null,null,null,null,null,null,null,"",null,"Venezuela","USD","americký dolar",65,null,119,"2023-06-21",1,119,3]
[null,null,null,null,null,null,null,null,null,null,null,null,null,null,null,null,null,null,null,"",null,"Vietnam","EUR","euro",40,null,120,"2023-06-22",1,120,4]
[null,null,null,null,null,null,null,null,null,null,null,null,null,null,null,null,null,null,null,"",null,"Zambie","USD","americký dolar",55,null,121,"2023-06-23",1,121,5]
[null,null,null,null,null,null,null,null,null,null,null,null,null,null,null,null,null,null,null,"",null,"Zimbabwe","USD","americký dolar",50,null,121,"2023-06-24",0,121,6]
[null,null,null,null,null,null,null,null,null,null,null,null,null,null,null,null,null,null,null,"",null,"Ostatní země neuvedené v příloze","EUR","euro",35,null,121,"2023-06-25",0,121,7]
[null,null,null,null,null,null,null,null,null,null,null,null,null,null,null,null,null,null,null,"",null,null,null,null,null,null,122,"2023-06-26",1,122,1]
[null,null,null,null,null,null,null,null,null,null,null,null,null,null,null,null,null,null,null,"",null,null,null,null,null,null,123,"2023-06-27",1,123,2]
[null,null,null,null,null,null,null,null,null,null,null,null,null,null,null,null,null,null,null,null,null,null,null,null,null,null,124,"2023-06-28",1,124,3]
[null,null,null,null,null,null,null,null,null,null,null,null,null,null,null,null,null,null,null,null,null,null,null,null,null,null,125,"2023-06-29",1,125,4]
[null,null,null,null,null,null,null,null,null,null,null,null,null,null,null,null,null,null,null,null,null,null,null,null,null,null,126,"2023-06-30",1,126,5]
[null,null,null,null,null,null,null,null,null,null,null,null,null,null,null,null,null,null,null,null,null,null,null,null,null,null,126,"2023-07-01",0,126,6]
[null,null,null,null,null,null,null,null,null,null,null,null,null,null,null,null,null,null,null,null,null,null,null,null,null,null,126,"2023-07-02",0,126,7]
[null,null,null,null,null,null,null,null,null,null,null,null,null,null,null,null,null,null,null,null,null,null,null,null,null,null,127,"2023-07-03",1,127,1]
[null,null,null,null,null,null,null,null,null,null,null,null,null,null,null,null,null,null,null,null,null,null,null,null,null,null,128,"2023-07-04",1,128,2]
[null,null,null,null,null,null,null,null,null,null,null,null,null,null,null,null,null,null,null,null,null,null,null,null,null,null,128,"2023-07-05",0,128,3]
[null,null,null,null,null,null,null,null,null,null,null,null,null,null,null,null,null,null,null,null,null,null,null,null,null,null,128,"2023-07-06",0,128,4]
[null,null,null,null,null,null,null,null,null,null,null,null,null,null,null,null,null,null,null,null,null,null,null,null,null,null,129,"2023-07-07",1,129,5]
[null,null,null,null,null,null,null,null,null,null,null,null,null,null,null,null,null,null,null,null,null,null,null,null,null,null,129,"2023-07-08",0,129,6]
[null,null,null,null,null,null,null,null,null,null,null,null,null,null,null,null,null,null,null,null,null,null,null,null,null,null,129,"2023-07-09",0,129,7]
[null,null,null,null,null,null,null,null,null,null,null,null,null,null,null,null,null,null,null,null,null,null,null,null,null,null,130,"2023-07-10",1,130,1]
[null,null,null,null,null,null,null,null,null,null,null,null,null,null,null,null,null,null,null,null,null,null,null,null,null,null,131,"2023-07-11",1,131,2]
[null,null,null,null,null,null,null,null,null,null,null,null,null,null,null,null,null,null,null,null,null,null,null,null,null,null,132,"2023-07-12",1,132,3]
[null,null,null,null,null,null,null,null,null,null,null,null,null,null,null,null,null,null,null,null,null,null,null,null,null,null,{"$f":"AA195+AC196","v":133},"2023-07-13",1,133,{"$f":"WEEKDAY(AB196,2)","v":4}]
[null,null,null,null,null,null,null,null,null,null,null,null,null,null,null,null,null,null,null,null,null,null,null,null,null,null,134,"2023-07-14",1,{"$f":"AA196+AC197","v":134},5]
[null,null,null,null,null,null,null,null,null,null,null,null,null,null,null,null,null,null,null,null,null,null,null,null,null,null,134,"2023-07-15",0,134,6]
[null,null,null,null,null,null,null,null,null,null,null,null,null,null,null,null,null,null,null,null,null,null,null,null,null,null,134,"2023-07-16",0,134,7]
[null,null,null,null,null,null,null,null,null,null,null,null,null,null,null,null,null,null,null,null,null,null,null,null,null,null,135,"2023-07-17",1,135,1]
[null,null,null,null,null,null,null,null,null,null,null,null,null,null,null,null,null,null,null,null,null,null,null,null,null,null,136,"2023-07-18",1,136,2]
[null,null,null,null,null,null,null,null,null,null,null,null,null,null,null,null,null,null,null,null,null,null,null,null,null,null,137,"2023-07-19",1,137,3]
[null,null,null,null,null,null,null,null,null,null,null,null,null,null,null,null,null,null,null,null,null,null,null,null,null,null,138,"2023-07-20",1,138,4]
[null,null,null,null,null,null,null,null,null,null,null,null,null,null,null,null,null,null,null,null,null,null,null,null,null,null,139,"2023-07-21",1,139,5]
[null,null,null,null,null,null,null,null,null,null,null,null,null,null,null,null,null,null,null,null,null,null,null,null,null,null,139,"2023-07-22",0,139,6]
[null,null,null,null,null,null,null,null,null,null,null,null,null,null,null,null,null,null,null,null,null,null,null,null,null,null,139,"2023-07-23",0,139,7]
[null,null,null,null,null,null,null,null,null,null,null,null,null,null,null,null,null,null,null,null,null,null,null,null,null,null,140,"2023-07-24",1,140,1]
[null,null,null,null,null,null,null,null,null,null,null,null,null,null,null,null,null,null,null,null,null,null,null,null,null,null,141,"2023-07-25",1,141,2]
[null,null,null,null,null,null,null,null,null,null,null,null,null,null,null,null,null,null,null,null,null,null,null,null,null,null,142,"2023-07-26",1,142,3]
[null,null,null,null,null,null,null,null,null,null,null,null,null,null,null,null,null,null,null,null,null,null,null,null,null,null,143,"2023-07-27",1,143,4]
[null,null,null,null,null,null,null,null,null,null,null,null,null,null,null,null,null,null,null,null,null,null,null,null,null,null,144,"2023-07-28",1,144,5]
[null,null,null,null,null,null,null,null,null,null,null,null,null,null,null,null,null,null,null,null,null,null,null,null,null,null,144,"2023-07-29",0,144,6]
[null,null,null,null,null,null,null,null,null,null,null,null,null,null,null,null,null,null,null,null,null,null,null,null,null,null,144,"2023-07-30",0,144,7]
[null,null,null,null,null,null,null,null,null,null,null,null,null,null,null,null,null,null,null,null,null,null,null,null,null,null,145,"2023-07-31",1,145,1]
[null,null,null,null,null,null,null,null,null,null,null,null,null,null,null,null,null,null,null,null,null,null,null,null,null,null,146,"2023-08-01",1,146,2]
[null,null,null,null,null,null,null,null,null,null,null,null,null,null,null,null,null,null,null,null,null,null,null,null,null,null,147,"2023-08-02",1,147,3]
[null,null,null,null,null,null,null,null,null,null,null,null,null,null,null,null,null,null,null,null,null,null,null,null,null,null,148,"2023-08-03",1,148,4]
[null,null,null,null,null,null,null,null,null,null,null,null,null,null,null,null,null,null,null,null,null,null,null,null,null,null,149,"2023-08-04",1,149,5]
[null,null,null,null,null,null,null,null,null,null,null,null,null,null,null,null,null,null,null,null,null,null,null,null,null,null,149,"2023-08-05",0,149,6]
[null,null,null,null,null,null,null,null,null,null,null,null,null,null,null,null,null,null,null,null,null,null,null,null,null,null,149,"2023-08-06",0,149,7]
[null,null,null,null,null,null,null,null,null,null,null,null,null,null,null,null,null,null,null,null,null,null,null,null,null,null,150,"2023-08-07",1,150,1]
[null,null,null,null,null,null,null,null,null,null,null,null,null,null,null,null,null,null,null,null,null,null,null,null,null,null,151,"2023-08-08",1,151,2]
[null,null,null,null,null,null,null,null,null,null,null,null,null,null,null,null,null,null,null,null,null,null,null,null,null,null,152,"2023-08-09",1,152,3]
[null,null,null,null,null,null,null,null,null,null,null,null,null,null,null,null,null,null,null,null,null,null,null,null,null,null,153,"2023-08-10",1,153,4]
[null,null,null,null,null,null,null,null,null,null,null,null,null,null,null,null,null,null,null,null,null,null,null,null,null,null,154,"2023-08-11",1,154,5]
[null,null,null,null,null,null,null,null,null,null,null,null,null,null,null,null,null,null,null,null,null,null,null,null,null,null,154,"2023-08-12",0,154,6]
[null,null,null,null,null,null,null,null,null,null,null,null,null,null,null,null,null,null,null,null,null,null,null,null,null,null,154,"2023-08-13",0,154,7]
[null,null,null,null,null,null,null,null,null,null,null,null,null,null,null,null,null,null,null,null,null,null,null,null,null,null,155,"2023-08-14",1,155,1]
[null,null,null,null,null,null,null,null,null,null,null,null,null,null,null,null,null,null,null,null,null,null,null,null,null,null,156,"2023-08-15",1,156,2]
[null,null,null,null,null,null,null,null,null,null,null,null,null,null,null,null,null,null,null,null,null,null,null,null,null,null,157,"2023-08-16",1,157,3]
[null,null,null,null,null,null,null,null,null,null,null,null,null,null,null,null,null,null,null,null,null,null,null,null,null,null,158,"2023-08-17",1,158,4]
[null,null,null,null,null,null,null,null,null,null,null,null,null,null,null,null,null,null,null,null,null,null,null,null,null,null,159,"2023-08-18",1,159,5]
[null,null,null,null,null,null,null,null,null,null,null,null,null,null,null,null,null,null,null,null,null,null,null,null,null,null,159,"2023-08-19",0,159,6]
[null,null,null,null,null,null,null,null,null,null,null,null,null,null,null,null,null,null,null,null,null,null,null,null,null,null,159,"2023-08-20",0,159,7]
[null,null,null,null,null,null,null,null,null,null,null,null,null,null,null,null,null,null,null,null,null,null,null,null,null,null,160,"2023-08-21",1,160,1]
[null,null,null,null,null,null,null,null,null,null,null,null,null,null,null,null,null,null,null,null,null,null,null,null,null,null,161,"2023-08-22",1,161,2]
[null,null,null,null,null,null,null,null,null,null,null,null,null,null,null,null,null,null,null,null,null,null,null,null,null,null,162,"2023-08-23",1,162,3]
[null,null,null,null,null,null,null,null,null,null,null,null,null,null,null,null,null,null,null,null,null,null,null,null,null,null,163,"2023-08-24",1,163,4]
[null,null,null,null,null,null,null,null,null,null,null,null,null,null,null,null,null,null,null,null,null,null,null,null,null,null,164,"2023-08-25",1,164,5]
[null,null,null,null,null,null,null,null,null,null,null,null,null,null,null,null,null,null,null,null,null,null,null,null,null,null,164,"2023-08-26",0,164,6]
[null,null,null,null,null,null,null,null,null,null,null,null,null,null,null,null,null,null,null,null,null,null,null,null,null,null,164,"2023-08-27",0,164,7]
[null,null,null,null,null,null,null,null,null,null,null,null,null,null,null,null,null,null,null,null,null,null,null,null,null,null,165,"2023-08-28",1,165,1]
[null,null,null,null,null,null,null,null,null,null,null,null,null,null,null,null,null,null,null,null,null,null,null,null,null,null,166,"2023-08-29",1,166,2]
[null,null,null,null,null,null,null,null,null,null,null,null,null,null,null,null,null,null,null,null,null,null,null,null,null,null,167,"2023-08-30",1,167,3]
[null,null,null,null,null,null,null,null,null,null,null,null,null,null,null,null,null,null,null,null,null,null,null,null,null,null,168,"2023-08-31",1,168,4]
[null,null,null,null,null,null,null,null,null,null,null,null,null,null,null,null,null,null,null,null,null,null,null,null,null,null,169,"2023-09-01",1,169,5]
[null,null,null,null,null,null,null,null,null,null,null,null,null,null,null,null,null,null,null,null,null,null,null,null,null,null,169,"2023-09-02",0,169,6]
[null,null,null,null,null,null,null,null,null,null,null,null,null,null,null,null,null,null,null,null,null,null,null,null,null,null,169,"2023-09-03",0,169,7]
[null,null,null,null,null,null,null,null,null,null,null,null,null,null,null,null,null,null,null,null,null,null,null,null,null,null,170,"2023-09-04",1,170,1]
[null,null,null,null,null,null,null,null,null,null,null,null,null,null,null,null,null,null,null,null,null,null,null,null,null,null,171,"2023-09-05",1,171,2]
[null,null,null,null,null,null,null,null,null,null,null,null,null,null,null,null,null,null,null,null,null,null,null,null,null,null,172,"2023-09-06",1,172,3]
[null,null,null,null,null,null,null,null,null,null,null,null,null,null,null,null,null,null,null,null,null,null,null,null,null,null,173,"2023-09-07",1,173,4]
[null,null,null,null,null,null,null,null,null,null,null,null,null,null,null,null,null,null,null,null,null,null,null,null,null,null,174,"2023-09-08",1,174,5]
[null,null,null,null,null,null,null,null,null,null,null,null,null,null,null,null,null,null,null,null,null,null,null,null,null,null,174,"2023-09-09",0,174,6]
[null,null,null,null,null,null,null,null,null,null,null,null,null,null,null,null,null,null,null,null,null,null,null,null,null,null,174,"2023-09-10",0,174,7]
[null,null,null,null,null,null,null,null,null,null,null,null,null,null,null,null,null,null,null,null,null,null,null,null,null,null,175,"2023-09-11",1,175,1]
[null,null,null,null,null,null,null,null,null,null,null,null,null,null,null,null,null,null,null,null,null,null,null,null,null,null,176,"2023-09-12",1,176,2]
[null,null,null,null,null,null,null,null,null,null,null,null,null,null,null,null,null,null,null,null,null,null,null,null,null,null,177,"2023-09-13",1,177,3]
[null,null,null,null,null,null,null,null,null,null,null,null,null,null,null,null,null,null,null,null,null,null,null,null,null,null,178,"2023-09-14",1,178,4]
[null,null,null,null,null,null,null,null,null,null,null,null,null,null,null,null,null,null,null,null,null,null,null,null,null,null,{"$f":"AA259+AC260","v":179},"2023-09-15",1,179,{"$f":"WEEKDAY(AB260,2)","v":5}]
[null,null,null,null,null,null,null,null,null,null,null,null,null,null,null,null,null,null,null,null,null,null,null,null,null,null,179,"2023-09-16",0,{"$f":"AA260+AC261","v":179},6]
[null,null,null,null,null,null,null,null,null,null,null,null,null,null,null,null,null,null,null,null,null,null,null,null,null,null,179,"2023-09-17",0,179,7]
[null,null,null,null,null,null,null,null,null,null,null,null,null,null,null,null,null,null,null,null,null,null,null,null,null,null,180,"2023-09-18",1,180,1]
[null,null,null,null,null,null,null,null,null,null,null,null,null,null,null,null,null,null,null,null,null,null,null,null,null,null,181,"2023-09-19",1,181,2]
[null,null,null,null,null,null,null,null,null,null,null,null,null,null,null,null,null,null,null,null,null,null,null,null,null,null,182,"2023-09-20",1,182,3]
[null,null,null,null,null,null,null,null,null,null,null,null,null,null,null,null,null,null,null,null,null,null,null,null,null,null,183,"2023-09-21",1,183,4]
[null,null,null,null,null,null,null,null,null,null,null,null,null,null,null,null,null,null,null,null,null,null,null,null,null,null,184,"2023-09-22",1,184,5]
[null,null,null,null,null,null,null,null,null,null,null,null,null,null,null,null,null,null,null,null,null,null,null,null,null,null,184,"2023-09-23",0,184,6]
[null,null,null,null,null,null,null,null,null,null,null,null,null,null,null,null,null,null,null,null,null,null,null,null,null,null,184,"2023-09-24",0,184,7]
[null,null,null,null,null,null,null,null,null,null,null,null,null,null,null,null,null,null,null,null,null,null,null,null,null,null,185,"2023-09-25",1,185,1]
[null,null,null,null,null,null,null,null,null,null,null,null,null,null,null,null,null,null,null,null,null,null,null,null,null,null,186,"2023-09-26",1,186,2]
[null,null,null,null,null,null,null,null,null,null,null,null,null,null,null,null,null,null,null,null,null,null,null,null,null,null,187,"2023-09-27",1,187,3]
[null,null,null,null,null,null,null,null,null,null,null,null,null,null,null,null,null,null,null,null,null,null,null,null,null,null,187,"2023-09-28",0,187,4]
[null,null,null,null,null,null,null,null,null,null,null,null,null,null,null,null,null,null,null,null,null,null,null,null,null,null,188,"2023-09-29",1,188,5]
[null,null,null,null,null,null,null,null,null,null,null,null,null,null,null,null,null,null,null,null,null,null,null,null,null,null,188,"2023-09-30",0,188,6]
[null,null,null,null,null,null,null,null,null,null,null,null,null,null,null,null,null,null,null,null,null,null,null,null,null,null,188,"2023-10-01",0,188,7]
[null,null,null,null,null,null,null,null,null,null,null,null,null,null,null,null,null,null,null,null,null,null,null,null,null,null,189,"2023-10-02",1,189,1]
[null,null,null,null,null,null,null,null,null,null,null,null,null,null,null,null,null,null,null,null,null,null,null,null,null,null,190,"2023-10-03",1,190,2]
[null,null,null,null,null,null,null,null,null,null,null,null,null,null,null,null,null,null,null,null,null,null,null,null,null,null,191,"2023-10-04",1,191,3]
[null,null,null,null,null,null,null,null,null,null,null,null,null,null,null,null,null,null,null,null,null,null,null,null,null,null,192,"2023-10-05",1,192,4]
[null,null,null,null,null,null,null,null,null,null,null,null,null,null,null,null,null,null,null,null,null,null,null,null,null,null,193,"2023-10-06",1,193,5]
[null,null,null,null,null,null,null,null,null,null,null,null,null,null,null,null,null,null,null,null,null,null,null,null,null,null,193,"2023-10-07",0,193,6]
[null,null,null,null,null,null,null,null,null,null,null,null,null,null,null,null,null,null,null,null,null,null,null,null,null,null,193,"2023-10-08",0,193,7]
[null,null,null,null,null,null,null,null,null,null,null,null,null,null,null,null,null,null,null,null,null,null,null,null,null,null,194,"2023-10-09",1,194,1]
[null,null,null,null,null,null,null,null,null,null,null,null,null,null,null,null,null,null,null,null,null,null,null,null,null,null,195,"2023-10-10",1,195,2]
[null,null,null,null,null,null,null,null,null,null,null,null,null,null,null,null,null,null,null,null,null,null,null,null,null,null,196,"2023-10-11",1,196,3]
[null,null,null,null,null,null,null,null,null,null,null,null,null,null,null,null,null,null,null,null,null,null,null,null,null,null,197,"2023-10-12",1,197,4]
[null,null,null,null,null,null,null,null,null,null,null,null,null,null,null,null,null,null,null,null,null,null,null,null,null,null,198,"2023-10-13",1,198,5]
[null,null,null,null,null,null,null,null,null,null,null,null,null,null,null,null,null,null,null,null,null,null,null,null,null,null,198,"2023-10-14",0,198,6]
[null,null,null,null,null,null,null,null,null,null,null,null,null,null,null,null,null,null,null,null,null,null,null,null,null,null,198,"2023-10-15",0,198,7]
[null,null,null,null,null,null,null,null,null,null,null,null,null,null,null,null,null,null,null,null,null,null,null,null,null,null,199,"2023-10-16",1,199,1]
[null,null,null,null,null,null,null,null,null,null,null,null,null,null,null,null,null,null,null,null,null,null,null,null,null,null,200,"2023-10-17",1,200,2]
[null,null,null,null,null,null,null,null,null,null,null,null,null,null,null,null,null,null,null,null,null,null,null,null,null,null,201,"2023-10-18",1,201,3]
[null,null,null,null,null,null,null,null,null,null,null,null,null,null,null,null,null,null,null,null,null,null,null,null,null,null,202,"2023-10-19",1,202,4]
[null,null,null,null,null,null,null,null,null,null,null,null,null,null,null,null,null,null,null,null,null,null,null,null,null,null,203,"2023-10-20",1,203,5]
[null,null,null,null,null,null,null,null,null,null,null,null,null,null,null,null,null,null,null,null,null,null,null,null,null,null,203,"2023-10-21",0,203,6]
[null,null,null,null,null,null,null,null,null,null,null,null,null,null,null,null,null,null,null,null,null,null,null,null,null,null,203,"2023-10-22",0,203,7]
[null,null,null,null,null,null,null,null,null,null,null,null,null,null,null,null,null,null,null,null,null,null,null,null,null,null,204,"2023-10-23",1,204,1]
[null,null,null,null,null,null,null,null,null,null,null,null,null,null,null,null,null,null,null,null,null,null,null,null,null,null,205,"2023-10-24",1,205,2]
[null,null,null,null,null,null,null,null,null,null,null,null,null,null,null,null,null,null,null,null,null,null,null,null,null,null,206,"2023-10-25",1,206,3]
[null,null,null,null,null,null,null,null,null,null,null,null,null,null,null,null,null,null,null,null,null,null,null,null,null,null,207,"2023-10-26",1,207,4]
[null,null,null,null,null,null,null,null,null,null,null,null,null,null,null,null,null,null,null,null,null,null,null,null,null,null,208,"2023-10-27",1,208,5]
[null,null,null,null,null,null,null,null,null,null,null,null,null,null,null,null,null,null,null,null,null,null,null,null,null,null,208,"2023-10-28",0,208,6]
[null,null,null,null,null,null,null,null,null,null,null,null,null,null,null,null,null,null,null,null,null,null,null,null,null,null,208,"2023-10-29",0,208,7]
[null,null,null,null,null,null,null,null,null,null,null,null,null,null,null,null,null,null,null,null,null,null,null,null,null,null,209,"2023-10-30",1,209,1]
[null,null,null,null,null,null,null,null,null,null,null,null,null,null,null,null,null,null,null,null,null,null,null,null,null,null,210,"2023-10-31",1,210,2]
[null,null,null,null,null,null,null,null,null,null,null,null,null,null,null,null,null,null,null,null,null,null,null,null,null,null,211,"2023-11-01",1,211,3]
[null,null,null,null,null,null,null,null,null,null,null,null,null,null,null,null,null,null,null,null,null,null,null,null,null,null,212,"2023-11-02",1,212,4]
[null,null,null,null,null,null,null,null,null,null,null,null,null,null,null,null,null,null,null,null,null,null,null,null,null,null,213,"2023-11-03",1,213,5]
[null,null,null,null,null,null,null,null,null,null,null,null,null,null,null,null,null,null,null,null,null,null,null,null,null,null,213,"2023-11-04",0,213,6]
[null,null,null,null,null,null,null,null,null,null,null,null,null,null,null,null,null,null,null,null,null,null,null,null,null,null,213,"2023-11-05",0,213,7]
[null,null,null,null,null,null,null,null,null,null,null,null,null,null,null,null,null,null,null,null,null,null,null,null,null,null,214,"2023-11-06",1,214,1]
[null,null,null,null,null,null,null,null,null,null,null,null,null,null,null,null,null,null,null,null,null,null,null,null,null,null,215,"2023-11-07",1,215,2]
[null,null,null,null,null,null,null,null,null,null,null,null,null,null,null,null,null,null,null,null,null,null,null,null,null,null,216,"2023-11-08",1,216,3]
[null,null,null,null,null,null,null,null,null,null,null,null,null,null,null,null,null,null,null,null,null,null,null,null,null,null,217,"2023-11-09",1,217,4]
[null,null,null,null,null,null,null,null,null,null,null,null,null,null,null,null,null,null,null,null,null,null,null,null,null,null,218,"2023-11-10",1,218,5]
[null,null,null,null,null,null,null,null,null,null,null,null,null,null,null,null,null,null,null,null,null,null,null,null,null,null,218,"2023-11-11",0,218,6]
[null,null,null,null,null,null,null,null,null,null,null,null,null,null,null,null,null,null,null,null,null,null,null,null,null,null,218,"2023-11-12",0,218,7]
[null,null,null,null,null,null,null,null,null,null,null,null,null,null,null,null,null,null,null,null,null,null,null,null,null,null,219,"2023-11-13",1,219,1]
[null,null,null,null,null,null,null,null,null,null,null,null,null,null,null,null,null,null,null,null,null,null,null,null,null,null,220,"2023-11-14",1,220,2]
[null,null,null,null,null,null,null,null,null,null,null,null,null,null,null,null,null,null,null,null,null,null,null,null,null,null,221,"2023-11-15",1,221,3]
[null,null,null,null,null,null,null,null,null,null,null,null,null,null,null,null,null,null,null,null,null,null,null,null,null,null,222,"2023-11-16",1,222,4]
[null,null,null,null,null,null,null,null,null,null,null,null,null,null,null,null,null,null,null,null,null,null,null,null,null,null,222,"2023-11-17",0,222,5]
[null,null,null,null,null,null,null,null,null,null,null,null,null,null,null,null,null,null,null,null,null,null,null,null,null,null,{"$f":"AA323+AC324","v":222},"2023-11-18",0,222,{"$f":"WEEKDAY(AB324,2)","v":6}]
[null,null,null,null,null,null,null,null,null,null,null,null,null,null,null,null,null,null,null,null,null,null,null,null,null,null,222,"2023-11-19",0,{"$f":"AA324+AC325","v":222},7]
[null,null,null,null,null,null,null,null,null,null,null,null,null,null,null,null,null,null,null,null,null,null,null,null,null,null,223,"2023-11-20",1,223,1]
[null,null,null,null,null,null,null,null,null,null,null,null,null,null,null,null,null,null,null,null,null,null,null,null,null,null,224,"2023-11-21",1,224,2]
[null,null,null,null,null,null,null,null,null,null,null,null,null,null,null,null,null,null,null,null,null,null,null,null,null,null,225,"2023-11-22",1,225,3]
[null,null,null,null,null,null,null,null,null,null,null,null,null,null,null,null,null,null,null,null,null,null,null,null,null,null,226,"2023-11-23",1,226,4]
[null,null,null,null,null,null,null,null,null,null,null,null,null,null,null,null,null,null,null,null,null,null,null,null,null,null,227,"2023-11-24",1,227,5]
[null,null,null,null,null,null,null,null,null,null,null,null,null,null,null,null,null,null,null,null,null,null,null,null,null,null,227,"2023-11-25",0,227,6]
[null,null,null,null,null,null,null,null,null,null,null,null,null,null,null,null,null,null,null,null,null,null,null,null,null,null,227,"2023-11-26",0,227,7]
[null,null,null,null,null,null,null,null,null,null,null,null,null,null,null,null,null,null,null,null,null,null,null,null,null,null,228,"2023-11-27",1,228,1]
[null,null,null,null,null,null,null,null,null,null,null,null,null,null,null,null,null,null,null,null,null,null,null,null,null,null,229,"2023-11-28",1,229,2]
[null,null,null,null,null,null,null,null,null,null,null,null,null,null,null,null,null,null,null,null,null,null,null,null,null,null,230,"2023-11-29",1,230,3]
[null,null,null,null,null,null,null,null,null,null,null,null,null,null,null,null,null,null,null,null,null,null,null,null,null,null,231,"2023-11-30",1,231,4]
[null,null,null,null,null,null,null,null,null,null,null,null,null,null,null,null,null,null,null,null,null,null,null,null,null,null,232,"2023-12-01",1,232,5]
[null,null,null,null,null,null,null,null,null,null,null,null,null,null,null,null,null,null,null,null,null,null,null,null,null,null,232,"2023-12-02",0,232,6]
[null,null,null,null,null,null,null,null,null,null,null,null,null,null,null,null,null,null,null,null,null,null,null,null,null,null,232,"2023-12-03",0,232,7]
[null,null,null,null,null,null,null,null,null,null,null,null,null,null,null,null,null,null,null,null,null,null,null,null,null,null,233,"2023-12-04",1,233,1]
[null,null,null,null,null,null,null,null,null,null,null,null,null,null,null,null,null,null,null,null,null,null,null,null,null,null,234,"2023-12-05",1,234,2]
[null,null,null,null,null,null,null,null,null,null,null,null,null,null,null,null,null,null,null,null,null,null,null,null,null,null,235,"2023-12-06",1,235,3]
[null,null,null,null,null,null,null,null,null,null,null,null,null,null,null,null,null,null,null,null,null,null,null,null,null,null,236,"2023-12-07",1,236,4]
[null,null,null,null,null,null,null,null,null,null,null,null,null,null,null,null,null,null,null,null,null,null,null,null,null,null,237,"2023-12-08",1,237,5]
[null,null,null,null,null,null,null,null,null,null,null,null,null,null,null,null,null,null,null,null,null,null,null,null,null,null,237,"2023-12-09",0,237,6]
[null,null,null,null,null,null,null,null,null,null,null,null,null,null,null,null,null,null,null,null,null,null,null,null,null,null,237,"2023-12-10",0,237,7]
[null,null,null,null,null,null,null,null,null,null,null,null,null,null,null,null,null,null,null,null,null,null,null,null,null,null,238,"2023-12-11",1,238,1]
[null,null,null,null,null,null,null,null,null,null,null,null,null,null,null,null,null,null,null,null,null,null,null,null,null,null,239,"2023-12-12",1,239,2]
[null,null,null,null,null,null,null,null,null,null,null,null,null,null,null,null,null,null,null,null,null,null,null,null,null,null,240,"2023-12-13",1,240,3]
[null,null,null,null,null,null,null,null,null,null,null,null,null,null,null,null,null,null,null,null,null,null,null,null,null,null,241,"2023-12-14",1,241,4]
[null,null,null,null,null,null,null,null,null,null,null,null,null,null,null,null,null,null,null,null,null,null,null,null,null,null,242,"2023-12-15",1,242,5]
[null,null,null,null,null,null,null,null,null,null,null,null,null,null,null,null,null,null,null,null,null,null,null,null,null,null,242,"2023-12-16",0,242,6]
[null,null,null,null,null,null,null,null,null,null,null,null,null,null,null,null,null,null,null,null,null,null,null,null,null,null,242,"2023-12-17",0,242,7]
[null,null,null,null,null,null,null,null,null,null,null,null,null,null,null,null,null,null,null,null,null,null,null,null,null,null,243,"2023-12-18",1,243,1]
[null,null,null,null,null,null,null,null,null,null,null,null,null,null,null,null,null,null,null,null,null,null,null,null,null,null,244,"2023-12-19",1,244,2]
[null,null,null,null,null,null,null,null,null,null,null,null,null,null,null,null,null,null,null,null,null,null,null,null,null,null,245,"2023-12-20",1,245,3]
[null,null,null,null,null,null,null,null,null,null,null,null,null,null,null,null,null,null,null,null,null,null,null,null,null,null,246,"2023-12-21",1,246,4]
[null,null,null,null,null,null,null,null,null,null,null,null,null,null,null,null,null,null,null,null,null,null,null,null,null,null,247,"2023-12-22",1,247,5]
[null,null,null,null,null,null,null,null,null,null,null,null,null,null,null,null,null,null,null,null,null,null,null,null,null,null,247,"2023-12-23",0,247,6]
[null,null,null,null,null,null,null,null,null,null,null,null,null,null,null,null,null,null,null,null,null,null,null,null,null,null,247,"2023-12-24",0,247,7]
[null,null,null,null,null,null,null,null,null,null,null,null,null,null,null,null,null,null,null,null,null,null,null,null,null,null,247,"2023-12-25",0,247,1]
[null,null,null,null,null,null,null,null,null,null,null,null,null,null,null,null,null,null,null,null,null,null,null,null,null,null,247,"2023-12-26",0,247,2]
[null,null,null,null,null,null,null,null,null,null,null,null,null,null,null,null,null,null,null,null,null,null,null,null,null,null,248,"2023-12-27",1,248,3]
[null,null,null,null,null,null,null,null,null,null,null,null,null,null,null,null,null,null,null,null,null,null,null,null,null,null,249,"2023-12-28",1,249,4]
[null,null,null,null,null,null,null,null,null,null,null,null,null,null,null,null,null,null,null,null,null,null,null,null,null,null,250,"2023-12-29",1,250,5]
[null,null,null,null,null,null,null,null,null,null,null,null,null,null,null,null,null,null,null,null,null,null,null,null,null,null,250,"2023-12-30",0,250,6]
[null,null,null,null,null,null,null,null,null,null,null,null,null,null,null,null,null,null,null,null,null,null,null,null,null,null,250,"2023-12-31",0,250,7]
[null,null,null,null,null,null,null,null,null,null,null,null,null,null,null,null,null,null,null,null,null,null,null,null,null,null,250,"2024-01-01",0,250,1]
[null,null,null,null,null,null,null,null,null,null,null,null,null,null,null,null,null,null,null,null,null,null,null,null,null,null,251,"2024-01-02",1,251,2]
[null,null,null,null,null,null,null,null,null,null,null,null,null,null,null,null,null,null,null,null,null,null,null,null,null,null,252,"2024-01-03",1,252,3]
[null,null,null,null,null,null,null,null,null,null,null,null,null,null,null,null,null,null,null,null,null,null,null,null,null,null,253,"2024-01-04",1,253,4]
[null,null,null,null,null,null,null,null,null,null,null,null,null,null,null,null,null,null,null,null,null,null,null,null,null,null,254,"2024-01-05",1,254,5]
[null,null,null,null,null,null,null,null,null,null,null,null,null,null,null,null,null,null,null,null,null,null,null,null,null,null,254,"2024-01-06",0,254,6]
[null,null,null,null,null,null,null,null,null,null,null,null,null,null,null,null,null,null,null,null,null,null,null,null,null,null,254,"2024-01-07",0,254,7]
[null,null,null,null,null,null,null,null,null,null,null,null,null,null,null,null,null,null,null,null,null,null,null,null,null,null,255,"2024-01-08",1,255,1]
[null,null,null,null,null,null,null,null,null,null,null,null,null,null,null,null,null,null,null,null,null,null,null,null,null,null,256,"2024-01-09",1,256,2]
[null,null,null,null,null,null,null,null,null,null,null,null,null,null,null,null,null,null,null,null,null,null,null,null,null,null,257,"2024-01-10",1,257,3]
[null,null,null,null,null,null,null,null,null,null,null,null,null,null,null,null,null,null,null,null,null,null,null,null,null,null,258,"2024-01-11",1,258,4]
[null,null,null,null,null,null,null,null,null,null,null,null,null,null,null,null,null,null,null,null,null,null,null,null,null,null,259,"2024-01-12",1,259,5]
[null,null,null,null,null,null,null,null,null,null,null,null,null,null,null,null,null,null,null,null,null,null,null,null,null,null,259,"2024-01-13",0,259,6]
[null,null,null,null,null,null,null,null,null,null,null,null,null,null,null,null,null,null,null,null,null,null,null,null,null,null,259,"2024-01-14",0,259,7]
[null,null,null,null,null,null,null,null,null,null,null,null,null,null,null,null,null,null,null,null,null,null,null,null,null,null,260,"2024-01-15",1,260,1]
[null,null,null,null,null,null,null,null,null,null,null,null,null,null,null,null,null,null,null,null,null,null,null,null,null,null,261,"2024-01-16",1,261,2]
[null,null,null,null,null,null,null,null,null,null,null,null,null,null,null,null,null,null,null,null,null,null,null,null,null,null,262,"2024-01-17",1,262,3]
[null,null,null,null,null,null,null,null,null,null,null,null,null,null,null,null,null,null,null,null,null,null,null,null,null,null,263,"2024-01-18",1,263,4]
[null,null,null,null,null,null,null,null,null,null,null,null,null,null,null,null,null,null,null,null,null,null,null,null,null,null,264,"2024-01-19",1,264,5]
[null,null,null,null,null,null,null,null,null,null,null,null,null,null,null,null,null,null,null,null,null,null,null,null,null,null,264,"2024-01-20",0,264,6]
[null,null,null,null,null,null,null,null,null,null,null,null,null,null,null,null,null,null,null,null,null,null,null,null,null,null,{"$f":"AA387+AC388","v":264},"2024-01-21",0,264,{"$f":"WEEKDAY(AB388,2)","v":7}]
[null,null,null,null,null,null,null,null,null,null,null,null,null,null,null,null,null,null,null,null,null,null,null,null,null,null,265,"2024-01-22",1,{"$f":"AA388+AC389","v":265},1]
[null,null,null,null,null,null,null,null,null,null,null,null,null,null,null,null,null,null,null,null,null,null,null,null,null,null,266,"2024-01-23",1,266,2]
[null,null,null,null,null,null,null,null,null,null,null,null,null,null,null,null,null,null,null,null,null,null,null,null,null,null,267,"2024-01-24",1,267,3]
[null,null,null,null,null,null,null,null,null,null,null,null,null,null,null,null,null,null,null,null,null,null,null,null,null,null,268,"2024-01-25",1,268,4]
[null,null,null,null,null,null,null,null,null,null,null,null,null,null,null,null,null,null,null,null,null,null,null,null,null,null,269,"2024-01-26",1,269,5]
[null,null,null,null,null,null,null,null,null,null,null,null,null,null,null,null,null,null,null,null,null,null,null,null,null,null,269,"2024-01-27",0,269,6]
[null,null,null,null,null,null,null,null,null,null,null,null,null,null,null,null,null,null,null,null,null,null,null,null,null,null,269,"2024-01-28",0,269,7]
[null,null,null,null,null,null,null,null,null,null,null,null,null,null,null,null,null,null,null,null,null,null,null,null,null,null,270,"2024-01-29",1,270,1]
[null,null,null,null,null,null,null,null,null,null,null,null,null,null,null,null,null,null,null,null,null,null,null,null,null,null,271,"2024-01-30",1,271,2]
[null,null,null,null,null,null,null,null,null,null,null,null,null,null,null,null,null,null,null,null,null,null,null,null,null,null,272,"2024-01-31",1,272,3]
[null,null,null,null,null,null,null,null,null,null,null,null,null,null,null,null,null,null,null,null,null,null,null,null,null,null,273,"2024-02-01",1,273,4]
[null,null,null,null,null,null,null,null,null,null,null,null,null,null,null,null,null,null,null,null,null,null,null,null,null,null,274,"2024-02-02",1,274,5]
[null,null,null,null,null,null,null,null,null,null,null,null,null,null,null,null,null,null,null,null,null,null,null,null,null,null,274,"2024-02-03",0,274,6]
[null,null,null,null,null,null,null,null,null,null,null,null,null,null,null,null,null,null,null,null,null,null,null,null,null,null,274,"2024-02-04",0,274,7]
[null,null,null,null,null,null,null,null,null,null,null,null,null,null,null,null,null,null,null,null,null,null,null,null,null,null,275,"2024-02-05",1,275,1]
[null,null,null,null,null,null,null,null,null,null,null,null,null,null,null,null,null,null,null,null,null,null,null,null,null,null,276,"2024-02-06",1,276,2]
[null,null,null,null,null,null,null,null,null,null,null,null,null,null,null,null,null,null,null,null,null,null,null,null,null,null,277,"2024-02-07",1,277,3]
[null,null,null,null,null,null,null,null,null,null,null,null,null,null,null,null,null,null,null,null,null,null,null,null,null,null,278,"2024-02-08",1,278,4]
[null,null,null,null,null,null,null,null,null,null,null,null,null,null,null,null,null,null,null,null,null,null,null,null,null,null,279,"2024-02-09",1,279,5]
[null,null,null,null,null,null,null,null,null,null,null,null,null,null,null,null,null,null,null,null,null,null,null,null,null,null,279,"2024-02-10",0,279,6]
[null,null,null,null,null,null,null,null,null,null,null,null,null,null,null,null,null,null,null,null,null,null,null,null,null,null,279,"2024-02-11",0,279,7]
[null,null,null,null,null,null,null,null,null,null,null,null,null,null,null,null,null,null,null,null,null,null,null,null,null,null,280,"2024-02-12",1,280,1]
[null,null,null,null,null,null,null,null,null,null,null,null,null,null,null,null,null,null,null,null,null,null,null,null,null,null,281,"2024-02-13",1,281,2]
[null,null,null,null,null,null,null,null,null,null,null,null,null,null,null,null,null,null,null,null,null,null,null,null,null,null,282,"2024-02-14",1,282,3]
[null,null,null,null,null,null,null,null,null,null,null,null,null,null,null,null,null,null,null,null,null,null,null,null,null,null,283,"2024-02-15",1,283,4]
[null,null,null,null,null,null,null,null,null,null,null,null,null,null,null,null,null,null,null,null,null,null,null,null,null,null,284,"2024-02-16",1,284,5]
[null,null,null,null,null,null,null,null,null,null,null,null,null,null,null,null,null,null,null,null,null,null,null,null,null,null,284,"2024-02-17",0,284,6]
[null,null,null,null,null,null,null,null,null,null,null,null,null,null,null,null,null,null,null,null,null,null,null,null,null,null,284,"2024-02-18",0,284,7]
[null,null,null,null,null,null,null,null,null,null,null,null,null,null,null,null,null,null,null,null,null,null,null,null,null,null,285,"2024-02-19",1,285,1]
[null,null,null,null,null,null,null,null,null,null,null,null,null,null,null,null,null,null,null,null,null,null,null,null,null,null,286,"2024-02-20",1,286,2]
[null,null,null,null,null,null,null,null,null,null,null,null,null,null,null,null,null,null,null,null,null,null,null,null,null,null,287,"2024-02-21",1,287,3]
[null,null,null,null,null,null,null,null,null,null,null,null,null,null,null,null,null,null,null,null,null,null,null,null,null,null,288,"2024-02-22",1,288,4]
[null,null,null,null,null,null,null,null,null,null,null,null,null,null,null,null,null,null,null,null,null,null,null,null,null,null,289,"2024-02-23",1,289,5]
[null,null,null,null,null,null,null,null,null,null,null,null,null,null,null,null,null,null,null,null,null,null,null,null,null,null,289,"2024-02-24",0,289,6]
[null,null,null,null,null,null,null,null,null,null,null,null,null,null,null,null,null,null,null,null,null,null,null,null,null,null,289,"2024-02-25",0,289,7]
[null,null,null,null,null,null,null,null,null,null,null,null,null,null,null,null,null,null,null,null,null,null,null,null,null,null,290,"2024-02-26",1,290,1]
[null,null,null,null,null,null,null,null,null,null,null,null,null,null,null,null,null,null,null,null,null,null,null,null,null,null,291,"2024-02-27",1,291,2]
[null,null,null,null,null,null,null,null,null,null,null,null,null,null,null,null,null,null,null,null,null,null,null,null,null,null,292,"2024-02-28",1,292,3]
[null,null,null,null,null,null,null,null,null,null,null,null,null,null,null,null,null,null,null,null,null,null,null,null,null,null,293,"2024-02-29",1,293,4]
[null,null,null,null,null,null,null,null,null,null,null,null,null,null,null,null,null,null,null,null,null,null,null,null,null,null,294,"2024-03-01",1,294,5]
[null,null,null,null,null,null,null,null,null,null,null,null,null,null,null,null,null,null,null,null,null,null,null,null,null,null,294,"2024-03-02",0,294,6]
[null,null,null,null,null,null,null,null,null,null,null,null,null,null,null,null,null,null,null,null,null,null,null,null,null,null,294,"2024-03-03",0,294,7]
[null,null,null,null,null,null,null,null,null,null,null,null,null,null,null,null,null,null,null,null,null,null,null,null,null,null,295,"2024-03-04",1,295,1]
[null,null,null,null,null,null,null,null,null,null,null,null,null,null,null,null,null,null,null,null,null,null,null,null,null,null,296,"2024-03-05",1,296,2]
[null,null,null,null,null,null,null,null,null,null,null,null,null,null,null,null,null,null,null,null,null,null,null,null,null,null,297,"2024-03-06",1,297,3]
[null,null,null,null,null,null,null,null,null,null,null,null,null,null,null,null,null,null,null,null,null,null,null,null,null,null,298,"2024-03-07",1,298,4]
[null,null,null,null,null,null,null,null,null,null,null,null,null,null,null,null,null,null,null,null,null,null,null,null,null,null,299,"2024-03-08",1,299,5]
[null,null,null,null,null,null,null,null,null,null,null,null,null,null,null,null,null,null,null,null,null,null,null,null,null,null,299,"2024-03-09",0,299,6]
[null,null,null,null,null,null,null,null,null,null,null,null,null,null,null,null,null,null,null,null,null,null,null,null,null,null,299,"2024-03-10",0,299,7]
[null,null,null,null,null,null,null,null,null,null,null,null,null,null,null,null,null,null,null,null,null,null,null,null,null,null,300,"2024-03-11",1,300,1]
[null,null,null,null,null,null,null,null,null,null,null,null,null,null,null,null,null,null,null,null,null,null,null,null,null,null,301,"2024-03-12",1,301,2]
[null,null,null,null,null,null,null,null,null,null,null,null,null,null,null,null,null,null,null,null,null,null,null,null,null,null,302,"2024-03-13",1,302,3]
[null,null,null,null,null,null,null,null,null,null,null,null,null,null,null,null,null,null,null,null,null,null,null,null,null,null,303,"2024-03-14",1,303,4]
[null,null,null,null,null,null,null,null,null,null,null,null,null,null,null,null,null,null,null,null,null,null,null,null,null,null,304,"2024-03-15",1,304,5]
[null,null,null,null,null,null,null,null,null,null,null,null,null,null,null,null,null,null,null,null,null,null,null,null,null,null,304,"2024-03-16",0,304,6]
[null,null,null,null,null,null,null,null,null,null,null,null,null,null,null,null,null,null,null,null,null,null,null,null,null,null,304,"2024-03-17",0,304,7]
[null,null,null,null,null,null,null,null,null,null,null,null,null,null,null,null,null,null,null,null,null,null,null,null,null,null,305,"2024-03-18",1,305,1]
[null,null,null,null,null,null,null,null,null,null,null,null,null,null,null,null,null,null,null,null,null,null,null,null,null,null,306,"2024-03-19",1,306,2]
[null,null,null,null,null,null,null,null,null,null,null,null,null,null,null,null,null,null,null,null,null,null,null,null,null,null,307,"2024-03-20",1,307,3]
[null,null,null,null,null,null,null,null,null,null,null,null,null,null,null,null,null,null,null,null,null,null,null,null,null,null,308,"2024-03-21",1,308,4]
[null,null,null,null,null,null,null,null,null,null,null,null,null,null,null,null,null,null,null,null,null,null,null,null,null,null,309,"2024-03-22",1,309,5]
[null,null,null,null,null,null,null,null,null,null,null,null,null,null,null,null,null,null,null,null,null,null,null,null,null,null,309,"2024-03-23",0,309,6]
[null,null,null,null,null,null,null,null,null,null,null,null,null,null,null,null,null,null,null,null,null,null,null,null,null,null,309,"2024-03-24",0,309,7]
[null,null,null,null,null,null,null,null,null,null,null,null,null,null,null,null,null,null,null,null,null,null,null,null,null,null,{"$f":"AA451+AC452","v":310},"2024-03-25",1,310,{"$f":"WEEKDAY(AB452,2)","v":1}]
[null,null,null,null,null,null,null,null,null,null,null,null,null,null,null,null,null,null,null,null,null,null,null,null,null,null,311,"2024-03-26",1,{"$f":"AA452+AC453","v":311},2]
[null,null,null,null,null,null,null,null,null,null,null,null,null,null,null,null,null,null,null,null,null,null,null,null,null,null,312,"2024-03-27",1,312,3]
[null,null,null,null,null,null,null,null,null,null,null,null,null,null,null,null,null,null,null,null,null,null,null,null,null,null,313,"2024-03-28",1,313,4]
[null,null,null,null,null,null,null,null,null,null,null,null,null,null,null,null,null,null,null,null,null,null,null,null,null,null,313,"2024-03-29",0,313,5]
[null,null,null,null,null,null,null,null,null,null,null,null,null,null,null,null,null,null,null,null,null,null,null,null,null,null,313,"2024-03-30",0,313,6]
[null,null,null,null,null,null,null,null,null,null,null,null,null,null,null,null,null,null,null,null,null,null,null,null,null,null,313,"2024-03-31",0,313,7]
[null,null,null,null,null,null,null,null,null,null,null,null,null,null,null,null,null,null,null,null,null,null,null,null,null,null,313,"2024-04-01",0,313,1]
[null,null,null,null,null,null,null,null,null,null,null,null,null,null,null,null,null,null,null,null,null,null,null,null,null,null,314,"2024-04-02",1,314,2]
[null,null,null,null,null,null,null,null,null,null,null,null,null,null,null,null,null,null,null,null,null,null,null,null,null,null,315,"2024-04-03",1,315,3]
[null,null,null,null,null,null,null,null,null,null,null,null,null,null,null,null,null,null,null,null,null,null,null,null,null,null,316,"2024-04-04",1,316,4]
[null,null,null,null,null,null,null,null,null,null,null,null,null,null,null,null,null,null,null,null,null,null,null,null,null,null,317,"2024-04-05",1,317,5]
[null,null,null,null,null,null,null,null,null,null,null,null,null,null,null,null,null,null,null,null,null,null,null,null,null,null,317,"2024-04-06",0,317,6]
[null,null,null,null,null,null,null,null,null,null,null,null,null,null,null,null,null,null,null,null,null,null,null,null,null,null,317,"2024-04-07",0,317,7]
[null,null,null,null,null,null,null,null,null,null,null,null,null,null,null,null,null,null,null,null,null,null,null,null,null,null,318,"2024-04-08",1,318,1]
[null,null,null,null,null,null,null,null,null,null,null,null,null,null,null,null,null,null,null,null,null,null,null,null,null,null,319,"2024-04-09",1,319,2]
[null,null,null,null,null,null,null,null,null,null,null,null,null,null,null,null,null,null,null,null,null,null,null,null,null,null,320,"2024-04-10",1,320,3]
[null,null,null,null,null,null,null,null,null,null,null,null,null,null,null,null,null,null,null,null,null,null,null,null,null,null,321,"2024-04-11",1,321,4]
[null,null,null,null,null,null,null,null,null,null,null,null,null,null,null,null,null,null,null,null,null,null,null,null,null,null,322,"2024-04-12",1,322,5]
[null,null,null,null,null,null,null,null,null,null,null,null,null,null,null,null,null,null,null,null,null,null,null,null,null,null,322,"2024-04-13",0,322,6]
[null,null,null,null,null,null,null,null,null,null,null,null,null,null,null,null,null,null,null,null,null,null,null,null,null,null,322,"2024-04-14",0,322,7]
[null,null,null,null,null,null,null,null,null,null,null,null,null,null,null,null,null,null,null,null,null,null,null,null,null,null,323,"2024-04-15",1,323,1]
[null,null,null,null,null,null,null,null,null,null,null,null,null,null,null,null,null,null,null,null,null,null,null,null,null,null,324,"2024-04-16",1,324,2]
[null,null,null,null,null,null,null,null,null,null,null,null,null,null,null,null,null,null,null,null,null,null,null,null,null,null,325,"2024-04-17",1,325,3]
[null,null,null,null,null,null,null,null,null,null,null,null,null,null,null,null,null,null,null,null,null,null,null,null,null,null,326,"2024-04-18",1,326,4]
[null,null,null,null,null,null,null,null,null,null,null,null,null,null,null,null,null,null,null,null,null,null,null,null,null,null,327,"2024-04-19",1,327,5]
[null,null,null,null,null,null,null,null,null,null,null,null,null,null,null,null,null,null,null,null,null,null,null,null,null,null,327,"2024-04-20",0,327,6]
[null,null,null,null,null,null,null,null,null,null,null,null,null,null,null,null,null,null,null,null,null,null,null,null,null,null,327,"2024-04-21",0,327,7]
[null,null,null,null,null,null,null,null,null,null,null,null,null,null,null,null,null,null,null,null,null,null,null,null,null,null,328,"2024-04-22",1,328,1]
[null,null,null,null,null,null,null,null,null,null,null,null,null,null,null,null,null,null,null,null,null,null,null,null,null,null,329,"2024-04-23",1,329,2]
[null,null,null,null,null,null,null,null,null,null,null,null,null,null,null,null,null,null,null,null,null,null,null,null,null,null,330,"2024-04-24",1,330,3]
[null,null,null,null,null,null,null,null,null,null,null,null,null,null,null,null,null,null,null,null,null,null,null,null,null,null,331,"2024-04-25",1,331,4]
[null,null,null,null,null,null,null,null,null,null,null,null,null,null,null,null,null,null,null,null,null,null,null,null,null,null,332,"2024-04-26",1,332,5]
[null,null,null,null,null,null,null,null,null,null,null,null,null,null,null,null,null,null,null,null,null,null,null,null,null,null,332,"2024-04-27",0,332,6]
[null,null,null,null,null,null,null,null,null,null,null,null,null,null,null,null,null,null,null,null,null,null,null,null,null,null,332,"2024-04-28",0,332,7]
[null,null,null,null,null,null,null,null,null,null,null,null,null,null,null,null,null,null,null,null,null,null,null,null,null,null,333,"2024-04-29",1,333,1]
[null,null,null,null,null,null,null,null,null,null,null,null,null,null,null,null,null,null,null,null,null,null,null,null,null,null,334,"2024-04-30",1,334,2]
[null,null,null,null,null,null,null,null,null,null,null,null,null,null,null,null,null,null,null,null,null,null,null,null,null,null,334,"2024-05-01",0,334,3]
[null,null,null,null,null,null,null,null,null,null,null,null,null,null,null,null,null,null,null,null,null,null,null,null,null,null,335,"2024-05-02",1,335,4]
[null,null,null,null,null,null,null,null,null,null,null,null,null,null,null,null,null,null,null,null,null,null,null,null,null,null,336,"2024-05-03",1,336,5]
[null,null,null,null,null,null,null,null,null,null,null,null,null,null,null,null,null,null,null,null,null,null,null,null,null,null,336,"2024-05-04",0,336,6]
[null,null,null,null,null,null,null,null,null,null,null,null,null,null,null,null,null,null,null,null,null,null,null,null,null,null,336,"2024-05-05",0,336,7]
[null,null,null,null,null,null,null,null,null,null,null,null,null,null,null,null,null,null,null,null,null,null,null,null,null,null,337,"2024-05-06",1,337,1]
[null,null,null,null,null,null,null,null,null,null,null,null,null,null,null,null,null,null,null,null,null,null,null,null,null,null,338,"2024-05-07",1,338,2]
[null,null,null,null,null,null,null,null,null,null,null,null,null,null,null,null,null,null,null,null,null,null,null,null,null,null,338,"2024-05-08",0,338,3]
[null,null,null,null,null,null,null,null,null,null,null,null,null,null,null,null,null,null,null,null,null,null,null,null,null,null,339,"2024-05-09",1,339,4]
[null,null,null,null,null,null,null,null,null,null,null,null,null,null,null,null,null,null,null,null,null,null,null,null,null,null,340,"2024-05-10",1,340,5]
[null,null,null,null,null,null,null,null,null,null,null,null,null,null,null,null,null,null,null,null,null,null,null,null,null,null,340,"2024-05-11",0,340,6]
[null,null,null,null,null,null,null,null,null,null,null,null,null,null,null,null,null,null,null,null,null,null,null,null,null,null,340,"2024-05-12",0,340,7]
[null,null,null,null,null,null,null,null,null,null,null,null,null,null,null,null,null,null,null,null,null,null,null,null,null,null,341,"2024-05-13",1,341,1]
[null,null,null,null,null,null,null,null,null,null,null,null,null,null,null,null,null,null,null,null,null,null,null,null,null,null,342,"2024-05-14",1,342,2]
[null,null,null,null,null,null,null,null,null,null,null,null,null,null,null,null,null,null,null,null,null,null,null,null,null,null,343,"2024-05-15",1,343,3]
[null,null,null,null,null,null,null,null,null,null,null,null,null,null,null,null,null,null,null,null,null,null,null,null,null,null,344,"2024-05-16",1,344,4]
[null,null,null,null,null,null,null,null,null,null,null,null,null,null,null,null,null,null,null,null,null,null,null,null,null,null,345,"2024-05-17",1,345,5]
[null,null,null,null,null,null,null,null,null,null,null,null,null,null,null,null,null,null,null,null,null,null,null,null,null,null,345,"2024-05-18",0,345,6]
[null,null,null,null,null,null,null,null,null,null,null,null,null,null,null,null,null,null,null,null,null,null,null,null,null,null,345,"2024-05-19",0,345,7]
[null,null,null,null,null,null,null,null,null,null,null,null,null,null,null,null,null,null,null,null,null,null,null,null,null,null,346,"2024-05-20",1,346,1]
[null,null,null,null,null,null,null,null,null,null,null,null,null,null,null,null,null,null,null,null,null,null,null,null,null,null,347,"2024-05-21",1,347,2]
[null,null,null,null,null,null,null,null,null,null,null,null,null,null,null,null,null,null,null,null,null,null,null,null,null,null,348,"2024-05-22",1,348,3]
[null,null,null,null,null,null,null,null,null,null,null,null,null,null,null,null,null,null,null,null,null,null,null,null,null,null,349,"2024-05-23",1,349,4]
[null,null,null,null,null,null,null,null,null,null,null,null,null,null,null,null,null,null,null,null,null,null,null,null,null,null,350,"2024-05-24",1,350,5]
[null,null,null,null,null,null,null,null,null,null,null,null,null,null,null,null,null,null,null,null,null,null,null,null,null,null,350,"2024-05-25",0,350,6]
[null,null,null,null,null,null,null,null,null,null,null,null,null,null,null,null,null,null,null,null,null,null,null,null,null,null,350,"2024-05-26",0,350,7]
[null,null,null,null,null,null,null,null,null,null,null,null,null,null,null,null,null,null,null,null,null,null,null,null,null,null,351,"2024-05-27",1,351,1]
[null,null,null,null,null,null,null,null,null,null,null,null,null,null,null,null,null,null,null,null,null,null,null,null,null,null,{"$f":"AA515+AC516","v":352},"2024-05-28",1,352,{"$f":"WEEKDAY(AB516,2)","v":2}]
[null,null,null,null,null,null,null,null,null,null,null,null,null,null,null,null,null,null,null,null,null,null,null,null,null,null,353,"2024-05-29",1,{"$f":"AA516+AC517","v":353},3]
[null,null,null,null,null,null,null,null,null,null,null,null,null,null,null,null,null,null,null,null,null,null,null,null,null,null,354,"2024-05-30",1,354,4]
[null,null,null,null,null,null,null,null,null,null,null,null,null,null,null,null,null,null,null,null,null,null,null,null,null,null,355,"2024-05-31",1,355,5]
[null,null,null,null,null,null,null,null,null,null,null,null,null,null,null,null,null,null,null,null,null,null,null,null,null,null,355,"2024-06-01",0,355,6]
[null,null,null,null,null,null,null,null,null,null,null,null,null,null,null,null,null,null,null,null,null,null,null,null,null,null,355,"2024-06-02",0,355,7]
[null,null,null,null,null,null,null,null,null,null,null,null,null,null,null,null,null,null,null,null,null,null,null,null,null,null,356,"2024-06-03",1,356,1]
[null,null,null,null,null,null,null,null,null,null,null,null,null,null,null,null,null,null,null,null,null,null,null,null,null,null,357,"2024-06-04",1,357,2]
[null,null,null,null,null,null,null,null,null,null,null,null,null,null,null,null,null,null,null,null,null,null,null,null,null,null,358,"2024-06-05",1,358,3]
[null,null,null,null,null,null,null,null,null,null,null,null,null,null,null,null,null,null,null,null,null,null,null,null,null,null,359,"2024-06-06",1,359,4]
[null,null,null,null,null,null,null,null,null,null,null,null,null,null,null,null,null,null,null,null,null,null,null,null,null,null,360,"2024-06-07",1,360,5]
[null,null,null,null,null,null,null,null,null,null,null,null,null,null,null,null,null,null,null,null,null,null,null,null,null,null,360,"2024-06-08",0,360,6]
[null,null,null,null,null,null,null,null,null,null,null,null,null,null,null,null,null,null,null,null,null,null,null,null,null,null,360,"2024-06-09",0,360,7]
[null,null,null,null,null,null,null,null,null,null,null,null,null,null,null,null,null,null,null,null,null,null,null,null,null,null,361,"2024-06-10",1,361,1]
[null,null,null,null,null,null,null,null,null,null,null,null,null,null,null,null,null,null,null,null,null,null,null,null,null,null,362,"2024-06-11",1,362,2]
[null,null,null,null,null,null,null,null,null,null,null,null,null,null,null,null,null,null,null,null,null,null,null,null,null,null,363,"2024-06-12",1,363,3]
[null,null,null,null,null,null,null,null,null,null,null,null,null,null,null,null,null,null,null,null,null,null,null,null,null,null,364,"2024-06-13",1,364,4]
[null,null,null,null,null,null,null,null,null,null,null,null,null,null,null,null,null,null,null,null,null,null,null,null,null,null,365,"2024-06-14",1,365,5]
[null,null,null,null,null,null,null,null,null,null,null,null,null,null,null,null,null,null,null,null,null,null,null,null,null,null,365,"2024-06-15",0,365,6]
[null,null,null,null,null,null,null,null,null,null,null,null,null,null,null,null,null,null,null,null,null,null,null,null,null,null,365,"2024-06-16",0,365,7]
[null,null,null,null,null,null,null,null,null,null,null,null,null,null,null,null,null,null,null,null,null,null,null,null,null,null,366,"2024-06-17",1,366,1]
[null,null,null,null,null,null,null,null,null,null,null,null,null,null,null,null,null,null,null,null,null,null,null,null,null,null,367,"2024-06-18",1,367,2]
[null,null,null,null,null,null,null,null,null,null,null,null,null,null,null,null,null,null,null,null,null,null,null,null,null,null,368,"2024-06-19",1,368,3]
[null,null,null,null,null,null,null,null,null,null,null,null,null,null,null,null,null,null,null,null,null,null,null,null,null,null,369,"2024-06-20",1,369,4]
[null,null,null,null,null,null,null,null,null,null,null,null,null,null,null,null,null,null,null,null,null,null,null,null,null,null,370,"2024-06-21",1,370,5]
[null,null,null,null,null,null,null,null,null,null,null,null,null,null,null,null,null,null,null,null,null,null,null,null,null,null,370,"2024-06-22",0,370,6]
[null,null,null,null,null,null,null,null,null,null,null,null,null,null,null,null,null,null,null,null,null,null,null,null,null,null,370,"2024-06-23",0,370,7]
[null,null,null,null,null,null,null,null,null,null,null,null,null,null,null,null,null,null,null,null,null,null,null,null,null,null,371,"2024-06-24",1,371,1]
[null,null,null,null,null,null,null,null,null,null,null,null,null,null,null,null,null,null,null,null,null,null,null,null,null,null,372,"2024-06-25",1,372,2]
[null,null,null,null,null,null,null,null,null,null,null,null,null,null,null,null,null,null,null,null,null,null,null,null,null,null,373,"2024-06-26",1,373,3]
[null,null,null,null,null,null,null,null,null,null,null,null,null,null,null,null,null,null,null,null,null,null,null,null,null,null,374,"2024-06-27",1,374,4]
[null,null,null,null,null,null,null,null,null,null,null,null,null,null,null,null,null,null,null,null,null,null,null,null,null,null,375,"2024-06-28",1,375,5]
[null,null,null,null,null,null,null,null,null,null,null,null,null,null,null,null,null,null,null,null,null,null,null,null,null,null,375,"2024-06-29",0,375,6]
[null,null,null,null,null,null,null,null,null,null,null,null,null,null,null,null,null,null,null,null,null,null,null,null,null,null,375,"2024-06-30",0,375,7]
[null,null,null,null,null,null,null,null,null,null,null,null,null,null,null,null,null,null,null,null,null,null,null,null,null,null,376,"2024-07-01",1,376,1]
[null,null,null,null,null,null,null,null,null,null,null,null,null,null,null,null,null,null,null,null,null,null,null,null,null,null,377,"2024-07-02",1,377,2]
[null,null,null,null,null,null,null,null,null,null,null,null,null,null,null,null,null,null,null,null,null,null,null,null,null,null,378,"2024-07-03",1,378,3]
[null,null,null,null,null,null,null,null,null,null,null,null,null,null,null,null,null,null,null,null,null,null,null,null,null,null,379,"2024-07-04",1,379,4]
[null,null,null,null,null,null,null,null,null,null,null,null,null,null,null,null,null,null,null,null,null,null,null,null,null,null,379,"2024-07-05",0,379,5]
[null,null,null,null,null,null,null,null,null,null,null,null,null,null,null,null,null,null,null,null,null,null,null,null,null,null,379,"2024-07-06",0,379,6]
[null,null,null,null,null,null,null,null,null,null,null,null,null,null,null,null,null,null,null,null,null,null,null,null,null,null,379,"2024-07-07",0,379,7]
[null,null,null,null,null,null,null,null,null,null,null,null,null,null,null,null,null,null,null,null,null,null,null,null,null,null,380,"2024-07-08",1,380,1]
[null,null,null,null,null,null,null,null,null,null,null,null,null,null,null,null,null,null,null,null,null,null,null,null,null,null,381,"2024-07-09",1,381,2]
[null,null,null,null,null,null,null,null,null,null,null,null,null,null,null,null,null,null,null,null,null,null,null,null,null,null,382,"2024-07-10",1,382,3]
[null,null,null,null,null,null,null,null,null,null,null,null,null,null,null,null,null,null,null,null,null,null,null,null,null,null,383,"2024-07-11",1,383,4]
[null,null,null,null,null,null,null,null,null,null,null,null,null,null,null,null,null,null,null,null,null,null,null,null,null,null,384,"2024-07-12",1,384,5]
[null,null,null,null,null,null,null,null,null,null,null,null,null,null,null,null,null,null,null,null,null,null,null,null,null,null,384,"2024-07-13",0,384,6]
[null,null,null,null,null,null,null,null,null,null,null,null,null,null,null,null,null,null,null,null,null,null,null,null,null,null,384,"2024-07-14",0,384,7]
[null,null,null,null,null,null,null,null,null,null,null,null,null,null,null,null,null,null,null,null,null,null,null,null,null,null,385,"2024-07-15",1,385,1]
[null,null,null,null,null,null,null,null,null,null,null,null,null,null,null,null,null,null,null,null,null,null,null,null,null,null,386,"2024-07-16",1,386,2]
[null,null,null,null,null,null,null,null,null,null,null,null,null,null,null,null,null,null,null,null,null,null,null,null,null,null,387,"2024-07-17",1,387,3]
[null,null,null,null,null,null,null,null,null,null,null,null,null,null,null,null,null,null,null,null,null,null,null,null,null,null,388,"2024-07-18",1,388,4]
[null,null,null,null,null,null,null,null,null,null,null,null,null,null,null,null,null,null,null,null,null,null,null,null,null,null,389,"2024-07-19",1,389,5]
[null,null,null,null,null,null,null,null,null,null,null,null,null,null,null,null,null,null,null,null,null,null,null,null,null,null,389,"2024-07-20",0,389,6]
[null,null,null,null,null,null,null,null,null,null,null,null,null,null,null,null,null,null,null,null,null,null,null,null,null,null,389,"2024-07-21",0,389,7]
[null,null,null,null,null,null,null,null,null,null,null,null,null,null,null,null,null,null,null,null,null,null,null,null,null,null,390,"2024-07-22",1,390,1]
[null,null,null,null,null,null,null,null,null,null,null,null,null,null,null,null,null,null,null,null,null,null,null,null,null,null,391,"2024-07-23",1,391,2]
[null,null,null,null,null,null,null,null,null,null,null,null,null,null,null,null,null,null,null,null,null,null,null,null,null,null,392,"2024-07-24",1,392,3]
[null,null,null,null,null,null,null,null,null,null,null,null,null,null,null,null,null,null,null,null,null,null,null,null,null,null,393,"2024-07-25",1,393,4]
[null,null,null,null,null,null,null,null,null,null,null,null,null,null,null,null,null,null,null,null,null,null,null,null,null,null,394,"2024-07-26",1,394,5]
[null,null,null,null,null,null,null,null,null,null,null,null,null,null,null,null,null,null,null,null,null,null,null,null,null,null,394,"2024-07-27",0,394,6]
[null,null,null,null,null,null,null,null,null,null,null,null,null,null,null,null,null,null,null,null,null,null,null,null,null,null,394,"2024-07-28",0,394,7]
[null,null,null,null,null,null,null,null,null,null,null,null,null,null,null,null,null,null,null,null,null,null,null,null,null,null,395,"2024-07-29",1,395,1]
[null,null,null,null,null,null,null,null,null,null,null,null,null,null,null,null,null,null,null,null,null,null,null,null,null,null,396,"2024-07-30",1,396,2]
[null,null,null,null,null,null,null,null,null,null,null,null,null,null,null,null,null,null,null,null,null,null,null,null,null,null,{"$f":"AA579+AC580","v":397},"2024-07-31",1,397,{"$f":"WEEKDAY(AB580,2)","v":3}]
[null,null,null,null,null,null,null,null,null,null,null,null,null,null,null,null,null,null,null,null,null,null,null,null,null,null,398,"2024-08-01",1,{"$f":"AA580+AC581","v":398},4]
[null,null,null,null,null,null,null,null,null,null,null,null,null,null,null,null,null,null,null,null,null,null,null,null,null,null,399,"2024-08-02",1,399,5]
[null,null,null,null,null,null,null,null,null,null,null,null,null,null,null,null,null,null,null,null,null,null,null,null,null,null,399,"2024-08-03",0,399,6]
[null,null,null,null,null,null,null,null,null,null,null,null,null,null,null,null,null,null,null,null,null,null,null,null,null,null,399,"2024-08-04",0,399,7]
[null,null,null,null,null,null,null,null,null,null,null,null,null,null,null,null,null,null,null,null,null,null,null,null,null,null,400,"2024-08-05",1,400,1]
[null,null,null,null,null,null,null,null,null,null,null,null,null,null,null,null,null,null,null,null,null,null,null,null,null,null,401,"2024-08-06",1,401,2]
[null,null,null,null,null,null,null,null,null,null,null,null,null,null,null,null,null,null,null,null,null,null,null,null,null,null,402,"2024-08-07",1,402,3]
[null,null,null,null,null,null,null,null,null,null,null,null,null,null,null,null,null,null,null,null,null,null,null,null,null,null,403,"2024-08-08",1,403,4]
[null,null,null,null,null,null,null,null,null,null,null,null,null,null,null,null,null,null,null,null,null,null,null,null,null,null,404,"2024-08-09",1,404,5]
[null,null,null,null,null,null,null,null,null,null,null,null,null,null,null,null,null,null,null,null,null,null,null,null,null,null,404,"2024-08-10",0,404,6]
[null,null,null,null,null,null,null,null,null,null,null,null,null,null,null,null,null,null,null,null,null,null,null,null,null,null,404,"2024-08-11",0,404,7]
[null,null,null,null,null,null,null,null,null,null,null,null,null,null,null,null,null,null,null,null,null,null,null,null,null,null,405,"2024-08-12",1,405,1]
[null,null,null,null,null,null,null,null,null,null,null,null,null,null,null,null,null,null,null,null,null,null,null,null,null,null,406,"2024-08-13",1,406,2]
[null,null,null,null,null,null,null,null,null,null,null,null,null,null,null,null,null,null,null,null,null,null,null,null,null,null,407,"2024-08-14",1,407,3]
[null,null,null,null,null,null,null,null,null,null,null,null,null,null,null,null,null,null,null,null,null,null,null,null,null,null,408,"2024-08-15",1,408,4]
[null,null,null,null,null,null,null,null,null,null,null,null,null,null,null,null,null,null,null,null,null,null,null,null,null,null,409,"2024-08-16",1,409,5]
[null,null,null,null,null,null,null,null,null,null,null,null,null,null,null,null,null,null,null,null,null,null,null,null,null,null,409,"2024-08-17",0,409,6]
[null,null,null,null,null,null,null,null,null,null,null,null,null,null,null,null,null,null,null,null,null,null,null,null,null,null,409,"2024-08-18",0,409,7]
[null,null,null,null,null,null,null,null,null,null,null,null,null,null,null,null,null,null,null,null,null,null,null,null,null,null,410,"2024-08-19",1,410,1]
[null,null,null,null,null,null,null,null,null,null,null,null,null,null,null,null,null,null,null,null,null,null,null,null,null,null,411,"2024-08-20",1,411,2]
[null,null,null,null,null,null,null,null,null,null,null,null,null,null,null,null,null,null,null,null,null,null,null,null,null,null,412,"2024-08-21",1,412,3]
[null,null,null,null,null,null,null,null,null,null,null,null,null,null,null,null,null,null,null,null,null,null,null,null,null,null,413,"2024-08-22",1,413,4]
[null,null,null,null,null,null,null,null,null,null,null,null,null,null,null,null,null,null,null,null,null,null,null,null,null,null,414,"2024-08-23",1,414,5]
[null,null,null,null,null,null,null,null,null,null,null,null,null,null,null,null,null,null,null,null,null,null,null,null,null,null,414,"2024-08-24",0,414,6]
[null,null,null,null,null,null,null,null,null,null,null,null,null,null,null,null,null,null,null,null,null,null,null,null,null,null,414,"2024-08-25",0,414,7]
[null,null,null,null,null,null,null,null,null,null,null,null,null,null,null,null,null,null,null,null,null,null,null,null,null,null,415,"2024-08-26",1,415,1]
[null,null,null,null,null,null,null,null,null,null,null,null,null,null,null,null,null,null,null,null,null,null,null,null,null,null,416,"2024-08-27",1,416,2]
[null,null,null,null,null,null,null,null,null,null,null,null,null,null,null,null,null,null,null,null,null,null,null,null,null,null,417,"2024-08-28",1,417,3]
[null,null,null,null,null,null,null,null,null,null,null,null,null,null,null,null,null,null,null,null,null,null,null,null,null,null,418,"2024-08-29",1,418,4]
[null,null,null,null,null,null,null,null,null,null,null,null,null,null,null,null,null,null,null,null,null,null,null,null,null,null,419,"2024-08-30",1,419,5]
[null,null,null,null,null,null,null,null,null,null,null,null,null,null,null,null,null,null,null,null,null,null,null,null,null,null,419,"2024-08-31",0,419,6]
[null,null,null,null,null,null,null,null,null,null,null,null,null,null,null,null,null,null,null,null,null,null,null,null,null,null,419,"2024-09-01",0,419,7]
[null,null,null,null,null,null,null,null,null,null,null,null,null,null,null,null,null,null,null,null,null,null,null,null,null,null,420,"2024-09-02",1,420,1]
[null,null,null,null,null,null,null,null,null,null,null,null,null,null,null,null,null,null,null,null,null,null,null,null,null,null,421,"2024-09-03",1,421,2]
[null,null,null,null,null,null,null,null,null,null,null,null,null,null,null,null,null,null,null,null,null,null,null,null,null,null,422,"2024-09-04",1,422,3]
[null,null,null,null,null,null,null,null,null,null,null,null,null,null,null,null,null,null,null,null,null,null,null,null,null,null,423,"2024-09-05",1,423,4]
[null,null,null,null,null,null,null,null,null,null,null,null,null,null,null,null,null,null,null,null,null,null,null,null,null,null,424,"2024-09-06",1,424,5]
[null,null,null,null,null,null,null,null,null,null,null,null,null,null,null,null,null,null,null,null,null,null,null,null,null,null,424,"2024-09-07",0,424,6]
[null,null,null,null,null,null,null,null,null,null,null,null,null,null,null,null,null,null,null,null,null,null,null,null,null,null,424,"2024-09-08",0,424,7]
[null,null,null,null,null,null,null,null,null,null,null,null,null,null,null,null,null,null,null,null,null,null,null,null,null,null,425,"2024-09-09",1,425,1]
[null,null,null,null,null,null,null,null,null,null,null,null,null,null,null,null,null,null,null,null,null,null,null,null,null,null,426,"2024-09-10",1,426,2]
[null,null,null,null,null,null,null,null,null,null,null,null,null,null,null,null,null,null,null,null,null,null,null,null,null,null,427,"2024-09-11",1,427,3]
[null,null,null,null,null,null,null,null,null,null,null,null,null,null,null,null,null,null,null,null,null,null,null,null,null,null,428,"2024-09-12",1,428,4]
[null,null,null,null,null,null,null,null,null,null,null,null,null,null,null,null,null,null,null,null,null,null,null,null,null,null,429,"2024-09-13",1,429,5]
[null,null,null,null,null,null,null,null,null,null,null,null,null,null,null,null,null,null,null,null,null,null,null,null,null,null,429,"2024-09-14",0,429,6]
[null,null,null,null,null,null,null,null,null,null,null,null,null,null,null,null,null,null,null,null,null,null,null,null,null,null,429,"2024-09-15",0,429,7]
[null,null,null,null,null,null,null,null,null,null,null,null,null,null,null,null,null,null,null,null,null,null,null,null,null,null,430,"2024-09-16",1,430,1]
[null,null,null,null,null,null,null,null,null,null,null,null,null,null,null,null,null,null,null,null,null,null,null,null,null,null,431,"2024-09-17",1,431,2]
[null,null,null,null,null,null,null,null,null,null,null,null,null,null,null,null,null,null,null,null,null,null,null,null,null,null,432,"2024-09-18",1,432,3]
[null,null,null,null,null,null,null,null,null,null,null,null,null,null,null,null,null,null,null,null,null,null,null,null,null,null,433,"2024-09-19",1,433,4]
[null,null,null,null,null,null,null,null,null,null,null,null,null,null,null,null,null,null,null,null,null,null,null,null,null,null,434,"2024-09-20",1,434,5]
[null,null,null,null,null,null,null,null,null,null,null,null,null,null,null,null,null,null,null,null,null,null,null,null,null,null,434,"2024-09-21",0,434,6]
[null,null,null,null,null,null,null,null,null,null,null,null,null,null,null,null,null,null,null,null,null,null,null,null,null,null,434,"2024-09-22",0,434,7]
[null,null,null,null,null,null,null,null,null,null,null,null,null,null,null,null,null,null,null,null,null,null,null,null,null,null,435,"2024-09-23",1,435,1]
[null,null,null,null,null,null,null,null,null,null,null,null,null,null,null,null,null,null,null,null,null,null,null,null,null,null,436,"2024-09-24",1,436,2]
[null,null,null,null,null,null,null,null,null,null,null,null,null,null,null,null,null,null,null,null,null,null,null,null,null,null,437,"2024-09-25",1,437,3]
[null,null,null,null,null,null,null,null,null,null,null,null,null,null,null,null,null,null,null,null,null,null,null,null,null,null,438,"2024-09-26",1,438,4]
[null,null,null,null,null,null,null,null,null,null,null,null,null,null,null,null,null,null,null,null,null,null,null,null,null,null,439,"2024-09-27",1,439,5]
[null,null,null,null,null,null,null,null,null,null,null,null,null,null,null,null,null,null,null,null,null,null,null,null,null,null,439,"2024-09-28",0,439,6]
[null,null,null,null,null,null,null,null,null,null,null,null,null,null,null,null,null,null,null,null,null,null,null,null,null,null,439,"2024-09-29",0,439,7]
[null,null,null,null,null,null,null,null,null,null,null,null,null,null,null,null,null,null,null,null,null,null,null,null,null,null,440,"2024-09-30",1,440,1]
[null,null,null,null,null,null,null,null,null,null,null,null,null,null,null,null,null,null,null,null,null,null,null,null,null,null,441,"2024-10-01",1,441,2]
[null,null,null,null,null,null,null,null,null,null,null,null,null,null,null,null,null,null,null,null,null,null,null,null,null,null,442,"2024-10-02",1,442,3]
[null,null,null,null,null,null,null,null,null,null,null,null,null,null,null,null,null,null,null,null,null,null,null,null,null,null,{"$f":"AA643+AC644","v":443},"2024-10-03",1,443,{"$f":"WEEKDAY(AB644,2)","v":4}]
[null,null,null,null,null,null,null,null,null,null,null,null,null,null,null,null,null,null,null,null,null,null,null,null,null,null,444,"2024-10-04",1,{"$f":"AA644+AC645","v":444},5]
[null,null,null,null,null,null,null,null,null,null,null,null,null,null,null,null,null,null,null,null,null,null,null,null,null,null,444,"2024-10-05",0,444,6]
[null,null,null,null,null,null,null,null,null,null,null,null,null,null,null,null,null,null,null,null,null,null,null,null,null,null,444,"2024-10-06",0,444,7]
[null,null,null,null,null,null,null,null,null,null,null,null,null,null,null,null,null,null,null,null,null,null,null,null,null,null,445,"2024-10-07",1,445,1]
[null,null,null,null,null,null,null,null,null,null,null,null,null,null,null,null,null,null,null,null,null,null,null,null,null,null,446,"2024-10-08",1,446,2]
[null,null,null,null,null,null,null,null,null,null,null,null,null,null,null,null,null,null,null,null,null,null,null,null,null,null,447,"2024-10-09",1,447,3]
[null,null,null,null,null,null,null,null,null,null,null,null,null,null,null,null,null,null,null,null,null,null,null,null,null,null,448,"2024-10-10",1,448,4]
[null,null,null,null,null,null,null,null,null,null,null,null,null,null,null,null,null,null,null,null,null,null,null,null,null,null,449,"2024-10-11",1,449,5]
[null,null,null,null,null,null,null,null,null,null,null,null,null,null,null,null,null,null,null,null,null,null,null,null,null,null,449,"2024-10-12",0,449,6]
[null,null,null,null,null,null,null,null,null,null,null,null,null,null,null,null,null,null,null,null,null,null,null,null,null,null,449,"2024-10-13",0,449,7]
[null,null,null,null,null,null,null,null,null,null,null,null,null,null,null,null,null,null,null,null,null,null,null,null,null,null,450,"2024-10-14",1,450,1]
[null,null,null,null,null,null,null,null,null,null,null,null,null,null,null,null,null,null,null,null,null,null,null,null,null,null,451,"2024-10-15",1,451,2]
[null,null,null,null,null,null,null,null,null,null,null,null,null,null,null,null,null,null,null,null,null,null,null,null,null,null,452,"2024-10-16",1,452,3]
[null,null,null,null,null,null,null,null,null,null,null,null,null,null,null,null,null,null,null,null,null,null,null,null,null,null,453,"2024-10-17",1,453,4]
[null,null,null,null,null,null,null,null,null,null,null,null,null,null,null,null,null,null,null,null,null,null,null,null,null,null,454,"2024-10-18",1,454,5]
[null,null,null,null,null,null,null,null,null,null,null,null,null,null,null,null,null,null,null,null,null,null,null,null,null,null,454,"2024-10-19",0,454,6]
[null,null,null,null,null,null,null,null,null,null,null,null,null,null,null,null,null,null,null,null,null,null,null,null,null,null,454,"2024-10-20",0,454,7]
[null,null,null,null,null,null,null,null,null,null,null,null,null,null,null,null,null,null,null,null,null,null,null,null,null,null,455,"2024-10-21",1,455,1]
[null,null,null,null,null,null,null,null,null,null,null,null,null,null,null,null,null,null,null,null,null,null,null,null,null,null,456,"2024-10-22",1,456,2]
[null,null,null,null,null,null,null,null,null,null,null,null,null,null,null,null,null,null,null,null,null,null,null,null,null,null,457,"2024-10-23",1,457,3]
[null,null,null,null,null,null,null,null,null,null,null,null,null,null,null,null,null,null,null,null,null,null,null,null,null,null,458,"2024-10-24",1,458,4]
[null,null,null,null,null,null,null,null,null,null,null,null,null,null,null,null,null,null,null,null,null,null,null,null,null,null,459,"2024-10-25",1,459,5]
[null,null,null,null,null,null,null,null,null,null,null,null,null,null,null,null,null,null,null,null,null,null,null,null,null,null,459,"2024-10-26",0,459,6]
[null,null,null,null,null,null,null,null,null,null,null,null,null,null,null,null,null,null,null,null,null,null,null,null,null,null,459,"2024-10-27",0,459,7]
[null,null,null,null,null,null,null,null,null,null,null,null,null,null,null,null,null,null,null,null,null,null,null,null,null,null,460,"2024-10-28",1,460,1]
[null,null,null,null,null,null,null,null,null,null,null,null,null,null,null,null,null,null,null,null,null,null,null,null,null,null,461,"2024-10-29",1,461,2]
[null,null,null,null,null,null,null,null,null,null,null,null,null,null,null,null,null,null,null,null,null,null,null,null,null,null,462,"2024-10-30",1,462,3]
[null,null,null,null,null,null,null,null,null,null,null,null,null,null,null,null,null,null,null,null,null,null,null,null,null,null,463,"2024-10-31",1,463,4]
[null,null,null,null,null,null,null,null,null,null,null,null,null,null,null,null,null,null,null,null,null,null,null,null,null,null,464,"2024-11-01",1,464,5]
[null,null,null,null,null,null,null,null,null,null,null,null,null,null,null,null,null,null,null,null,null,null,null,null,null,null,464,"2024-11-02",0,464,6]
[null,null,null,null,null,null,null,null,null,null,null,null,null,null,null,null,null,null,null,null,null,null,null,null,null,null,464,"2024-11-03",0,464,7]
[null,null,null,null,null,null,null,null,null,null,null,null,null,null,null,null,null,null,null,null,null,null,null,null,null,null,465,"2024-11-04",1,465,1]
[null,null,null,null,null,null,null,null,null,null,null,null,null,null,null,null,null,null,null,null,null,null,null,null,null,null,466,"2024-11-05",1,466,2]
[null,null,null,null,null,null,null,null,null,null,null,null,null,null,null,null,null,null,null,null,null,null,null,null,null,null,467,"2024-11-06",1,467,3]
[null,null,null,null,null,null,null,null,null,null,null,null,null,null,null,null,null,null,null,null,null,null,null,null,null,null,468,"2024-11-07",1,468,4]
[null,null,null,null,null,null,null,null,null,null,null,null,null,null,null,null,null,null,null,null,null,null,null,null,null,null,469,"2024-11-08",1,469,5]
[null,null,null,null,null,null,null,null,null,null,null,null,null,null,null,null,null,null,null,null,null,null,null,null,null,null,469,"2024-11-09",0,469,6]
[null,null,null,null,null,null,null,null,null,null,null,null,null,null,null,null,null,null,null,null,null,null,null,null,null,null,469,"2024-11-10",0,469,7]
[null,null,null,null,null,null,null,null,null,null,null,null,null,null,null,null,null,null,null,null,null,null,null,null,null,null,470,"2024-11-11",1,470,1]
[null,null,null,null,null,null,null,null,null,null,null,null,null,null,null,null,null,null,null,null,null,null,null,null,null,null,471,"2024-11-12",1,471,2]
[null,null,null,null,null,null,null,null,null,null,null,null,null,null,null,null,null,null,null,null,null,null,null,null,null,null,472,"2024-11-13",1,472,3]
[null,null,null,null,null,null,null,null,null,null,null,null,null,null,null,null,null,null,null,null,null,null,null,null,null,null,473,"2024-11-14",1,473,4]
[null,null,null,null,null,null,null,null,null,null,null,null,null,null,null,null,null,null,null,null,null,null,null,null,null,null,474,"2024-11-15",1,474,5]
[null,null,null,null,null,null,null,null,null,null,null,null,null,null,null,null,null,null,null,null,null,null,null,null,null,null,474,"2024-11-16",0,474,6]
[null,null,null,null,null,null,null,null,null,null,null,null,null,null,null,null,null,null,null,null,null,null,null,null,null,null,474,"2024-11-17",0,474,7]
[null,null,null,null,null,null,null,null,null,null,null,null,null,null,null,null,null,null,null,null,null,null,null,null,null,null,475,"2024-11-18",1,475,1]
[null,null,null,null,null,null,null,null,null,null,null,null,null,null,null,null,null,null,null,null,null,null,null,null,null,null,476,"2024-11-19",1,476,2]
[null,null,null,null,null,null,null,null,null,null,null,null,null,null,null,null,null,null,null,null,null,null,null,null,null,null,477,"2024-11-20",1,477,3]
[null,null,null,null,null,null,null,null,null,null,null,null,null,null,null,null,null,null,null,null,null,null,null,null,null,null,478,"2024-11-21",1,478,4]
[null,null,null,null,null,null,null,null,null,null,null,null,null,null,null,null,null,null,null,null,null,null,null,null,null,null,479,"2024-11-22",1,479,5]
[null,null,null,null,null,null,null,null,null,null,null,null,null,null,null,null,null,null,null,null,null,null,null,null,null,null,479,"2024-11-23",0,479,6]
[null,null,null,null,null,null,null,null,null,null,null,null,null,null,null,null,null,null,null,null,null,null,null,null,null,null,479,"2024-11-24",0,479,7]
[null,null,null,null,null,null,null,null,null,null,null,null,null,null,null,null,null,null,null,null,null,null,null,null,null,null,480,"2024-11-25",1,480,1]
[null,null,null,null,null,null,null,null,null,null,null,null,null,null,null,null,null,null,null,null,null,null,null,null,null,null,481,"2024-11-26",1,481,2]
[null,null,null,null,null,null,null,null,null,null,null,null,null,null,null,null,null,null,null,null,null,null,null,null,null,null,482,"2024-11-27",1,482,3]
[null,null,null,null,null,null,null,null,null,null,null,null,null,null,null,null,null,null,null,null,null,null,null,null,null,null,483,"2024-11-28",1,483,4]
[null,null,null,null,null,null,null,null,null,null,null,null,null,null,null,null,null,null,null,null,null,null,null,null,null,null,484,"2024-11-29",1,484,5]
[null,null,null,null,null,null,null,null,null,null,null,null,null,null,null,null,null,null,null,null,null,null,null,null,null,null,484,"2024-11-30",0,484,6]
[null,null,null,null,null,null,null,null,null,null,null,null,null,null,null,null,null,null,null,null,null,null,null,null,null,null,484,"2024-12-01",0,484,7]
[null,null,null,null,null,null,null,null,null,null,null,null,null,null,null,null,null,null,null,null,null,null,null,null,null,null,485,"2024-12-02",1,485,1]
[null,null,null,null,null,null,null,null,null,null,null,null,null,null,null,null,null,null,null,null,null,null,null,null,null,null,486,"2024-12-03",1,486,2]
[null,null,null,null,null,null,null,null,null,null,null,null,null,null,null,null,null,null,null,null,null,null,null,null,null,null,487,"2024-12-04",1,487,3]
[null,null,null,null,null,null,null,null,null,null,null,null,null,null,null,null,null,null,null,null,null,null,null,null,null,null,488,"2024-12-05",1,488,4]
[null,null,null,null,null,null,null,null,null,null,null,null,null,null,null,null,null,null,null,null,null,null,null,null,null,null,{"$f":"AA707+AC708","v":489},"2024-12-06",1,489,{"$f":"WEEKDAY(AB708,2)","v":5}]
[null,null,null,null,null,null,null,null,null,null,null,null,null,null,null,null,null,null,null,null,null,null,null,null,null,null,489,"2024-12-07",0,{"$f":"AA708+AC709","v":489},6]
[null,null,null,null,null,null,null,null,null,null,null,null,null,null,null,null,null,null,null,null,null,null,null,null,null,null,489,"2024-12-08",0,489,7]
[null,null,null,null,null,null,null,null,null,null,null,null,null,null,null,null,null,null,null,null,null,null,null,null,null,null,490,"2024-12-09",1,490,1]
[null,null,null,null,null,null,null,null,null,null,null,null,null,null,null,null,null,null,null,null,null,null,null,null,null,null,491,"2024-12-10",1,491,2]
[null,null,null,null,null,null,null,null,null,null,null,null,null,null,null,null,null,null,null,null,null,null,null,null,null,null,492,"2024-12-11",1,492,3]
[null,null,null,null,null,null,null,null,null,null,null,null,null,null,null,null,null,null,null,null,null,null,null,null,null,null,493,"2024-12-12",1,493,4]
[null,null,null,null,null,null,null,null,null,null,null,null,null,null,null,null,null,null,null,null,null,null,null,null,null,null,494,"2024-12-13",1,494,5]
[null,null,null,null,null,null,null,null,null,null,null,null,null,null,null,null,null,null,null,null,null,null,null,null,null,null,494,"2024-12-14",0,494,6]
[null,null,null,null,null,null,null,null,null,null,null,null,null,null,null,null,null,null,null,null,null,null,null,null,null,null,494,"2024-12-15",0,494,7]
[null,null,null,null,null,null,null,null,null,null,null,null,null,null,null,null,null,null,null,null,null,null,null,null,null,null,495,"2024-12-16",1,495,1]
[null,null,null,null,null,null,null,null,null,null,null,null,null,null,null,null,null,null,null,null,null,null,null,null,null,null,496,"2024-12-17",1,496,2]
[null,null,null,null,null,null,null,null,null,null,null,null,null,null,null,null,null,null,null,null,null,null,null,null,null,null,497,"2024-12-18",1,497,3]
[null,null,null,null,null,null,null,null,null,null,null,null,null,null,null,null,null,null,null,null,null,null,null,null,null,null,498,"2024-12-19",1,498,4]
[null,null,null,null,null,null,null,null,null,null,null,null,null,null,null,null,null,null,null,null,null,null,null,null,null,null,499,"2024-12-20",1,499,5]
[null,null,null,null,null,null,null,null,null,null,null,null,null,null,null,null,null,null,null,null,null,null,null,null,null,null,499,"2024-12-21",0,499,6]
[null,null,null,null,null,null,null,null,null,null,null,null,null,null,null,null,null,null,null,null,null,null,null,null,null,null,499,"2024-12-22",0,499,7]
[null,null,null,null,null,null,null,null,null,null,null,null,null,null,null,null,null,null,null,null,null,null,null,null,null,null,500,"2024-12-23",1,500,1]
[null,null,null,null,null,null,null,null,null,null,null,null,null,null,null,null,null,null,null,null,null,null,null,null,null,null,501,"2024-12-24",1,501,2]
[null,null,null,null,null,null,null,null,null,null,null,null,null,null,null,null,null,null,null,null,null,null,null,null,null,null,502,"2024-12-25",1,502,3]
[null,null,null,null,null,null,null,null,null,null,null,null,null,null,null,null,null,null,null,null,null,null,null,null,null,null,503,"2024-12-26",1,503,4]
[null,null,null,null,null,null,null,null,null,null,null,null,null,null,null,null,null,null,null,null,null,null,null,null,null,null,504,"2024-12-27",1,504,5]
[null,null,null,null,null,null,null,null,null,null,null,null,null,null,null,null,null,null,null,null,null,null,null,null,null,null,504,"2024-12-28",0,504,6]
[null,null,null,null,null,null,null,null,null,null,null,null,null,null,null,null,null,null,null,null,null,null,null,null,null,null,504,"2024-12-29",0,504,7]
[null,null,null,null,null,null,null,null,null,null,null,null,null,null,null,null,null,null,null,null,null,null,null,null,null,null,505,"2024-12-30",1,505,1]
[null,null,null,null,null,null,null,null,null,null,null,null,null,null,null,null,null,null,null,null,null,null,null,null,null,null,506,"2024-12-31",1,506,2]
[null,null,null,null,null,null,null,null,null,null,null,null,null,null,null,null,null,null,null,null,null,null,null,null,null,null,507,"2025-01-01",1,507,3]
[null,null,null,null,null,null,null,null,null,null,null,null,null,null,null,null,null,null,null,null,null,null,null,null,null,null,508,"2025-01-02",1,508,4]
[null,null,null,null,null,null,null,null,null,null,null,null,null,null,null,null,null,null,null,null,null,null,null,null,null,null,509,"2025-01-03",1,509,5]
[null,null,null,null,null,null,null,null,null,null,null,null,null,null,null,null,null,null,null,null,null,null,null,null,null,null,509,"2025-01-04",0,509,6]
[null,null,null,null,null,null,null,null,null,null,null,null,null,null,null,null,null,null,null,null,null,null,null,null,null,null,509,"2025-01-05",0,509,7]
[null,null,null,null,null,null,null,null,null,null,null,null,null,null,null,null,null,null,null,null,null,null,null,null,null,null,510,"2025-01-06",1,510,1]
[null,null,null,null,null,null,null,null,null,null,null,null,null,null,null,null,null,null,null,null,null,null,null,null,null,null,511,"2025-01-07",1,511,2]
[null,null,null,null,null,null,null,null,null,null,null,null,null,null,null,null,null,null,null,null,null,null,null,null,null,null,512,"2025-01-08",1,512,3]
[null,null,null,null,null,null,null,null,null,null,null,null,null,null,null,null,null,null,null,null,null,null,null,null,null,null,513,"2025-01-09",1,513,4]
[null,null,null,null,null,null,null,null,null,null,null,null,null,null,null,null,null,null,null,null,null,null,null,null,null,null,514,"2025-01-10",1,514,5]
[null,null,null,null,null,null,null,null,null,null,null,null,null,null,null,null,null,null,null,null,null,null,null,null,null,null,514,"2025-01-11",0,514,6]
[null,null,null,null,null,null,null,null,null,null,null,null,null,null,null,null,null,null,null,null,null,null,null,null,null,null,514,"2025-01-12",0,514,7]
[null,null,null,null,null,null,null,null,null,null,null,null,null,null,null,null,null,null,null,null,null,null,null,null,null,null,515,"2025-01-13",1,515,1]
[null,null,null,null,null,null,null,null,null,null,null,null,null,null,null,null,null,null,null,null,null,null,null,null,null,null,516,"2025-01-14",1,516,2]
[null,null,null,null,null,null,null,null,null,null,null,null,null,null,null,null,null,null,null,null,null,null,null,null,null,null,517,"2025-01-15",1,517,3]
[null,null,null,null,null,null,null,null,null,null,null,null,null,null,null,null,null,null,null,null,null,null,null,null,null,null,518,"2025-01-16",1,518,4]
[null,null,null,null,null,null,null,null,null,null,null,null,null,null,null,null,null,null,null,null,null,null,null,null,null,null,519,"2025-01-17",1,519,5]
[null,null,null,null,null,null,null,null,null,null,null,null,null,null,null,null,null,null,null,null,null,null,null,null,null,null,519,"2025-01-18",0,519,6]
[null,null,null,null,null,null,null,null,null,null,null,null,null,null,null,null,null,null,null,null,null,null,null,null,null,null,519,"2025-01-19",0,519,7]
[null,null,null,null,null,null,null,null,null,null,null,null,null,null,null,null,null,null,null,null,null,null,null,null,null,null,520,"2025-01-20",1,520,1]
[null,null,null,null,null,null,null,null,null,null,null,null,null,null,null,null,null,null,null,null,null,null,null,null,null,null,521,"2025-01-21",1,521,2]
[null,null,null,null,null,null,null,null,null,null,null,null,null,null,null,null,null,null,null,null,null,null,null,null,null,null,522,"2025-01-22",1,522,3]
[null,null,null,null,null,null,null,null,null,null,null,null,null,null,null,null,null,null,null,null,null,null,null,null,null,null,523,"2025-01-23",1,523,4]
[null,null,null,null,null,null,null,null,null,null,null,null,null,null,null,null,null,null,null,null,null,null,null,null,null,null,524,"2025-01-24",1,524,5]
[null,null,null,null,null,null,null,null,null,null,null,null,null,null,null,null,null,null,null,null,null,null,null,null,null,null,524,"2025-01-25",0,524,6]
[null,null,null,null,null,null,null,null,null,null,null,null,null,null,null,null,null,null,null,null,null,null,null,null,null,null,524,"2025-01-26",0,524,7]
[null,null,null,null,null,null,null,null,null,null,null,null,null,null,null,null,null,null,null,null,null,null,null,null,null,null,525,"2025-01-27",1,525,1]
[null,null,null,null,null,null,null,null,null,null,null,null,null,null,null,null,null,null,null,null,null,null,null,null,null,null,526,"2025-01-28",1,526,2]
[null,null,null,null,null,null,null,null,null,null,null,null,null,null,null,null,null,null,null,null,null,null,null,null,null,null,527,"2025-01-29",1,527,3]
[null,null,null,null,null,null,null,null,null,null,null,null,null,null,null,null,null,null,null,null,null,null,null,null,null,null,528,"2025-01-30",1,528,4]
[null,null,null,null,null,null,null,null,null,null,null,null,null,null,null,null,null,null,null,null,null,null,null,null,null,null,529,"2025-01-31",1,529,5]
[null,null,null,null,null,null,null,null,null,null,null,null,null,null,null,null,null,null,null,null,null,null,null,null,null,null,529,"2025-02-01",0,529,6]
[null,null,null,null,null,null,null,null,null,null,null,null,null,null,null,null,null,null,null,null,null,null,null,null,null,null,529,"2025-02-02",0,529,7]
[null,null,null,null,null,null,null,null,null,null,null,null,null,null,null,null,null,null,null,null,null,null,null,null,null,null,530,"2025-02-03",1,530,1]
[null,null,null,null,null,null,null,null,null,null,null,null,null,null,null,null,null,null,null,null,null,null,null,null,null,null,531,"2025-02-04",1,531,2]
[null,null,null,null,null,null,null,null,null,null,null,null,null,null,null,null,null,null,null,null,null,null,null,null,null,null,532,"2025-02-05",1,532,3]
[null,null,null,null,null,null,null,null,null,null,null,null,null,null,null,null,null,null,null,null,null,null,null,null,null,null,533,"2025-02-06",1,533,4]
[null,null,null,null,null,null,null,null,null,null,null,null,null,null,null,null,null,null,null,null,null,null,null,null,null,null,534,"2025-02-07",1,534,5]
[null,null,null,null,null,null,null,null,null,null,null,null,null,null,null,null,null,null,null,null,null,null,null,null,null,null,{"$f":"AA771+AC772","v":534},"2025-02-08",0,534,{"$f":"WEEKDAY(AB772,2)","v":6}]
[null,null,null,null,null,null,null,null,null,null,null,null,null,null,null,null,null,null,null,null,null,null,null,null,null,null,534,"2025-02-09",0,{"$f":"AA772+AC773","v":534},7]
[null,null,null,null,null,null,null,null,null,null,null,null,null,null,null,null,null,null,null,null,null,null,null,null,null,null,535,"2025-02-10",1,535,1]
[null,null,null,null,null,null,null,null,null,null,null,null,null,null,null,null,null,null,null,null,null,null,null,null,null,null,536,"2025-02-11",1,536,2]
[null,null,null,null,null,null,null,null,null,null,null,null,null,null,null,null,null,null,null,null,null,null,null,null,null,null,537,"2025-02-12",1,537,3]
[null,null,null,null,null,null,null,null,null,null,null,null,null,null,null,null,null,null,null,null,null,null,null,null,null,null,538,"2025-02-13",1,538,4]
[null,null,null,null,null,null,null,null,null,null,null,null,null,null,null,null,null,null,null,null,null,null,null,null,null,null,539,"2025-02-14",1,539,5]
[null,null,null,null,null,null,null,null,null,null,null,null,null,null,null,null,null,null,null,null,null,null,null,null,null,null,539,"2025-02-15",0,539,6]
[null,null,null,null,null,null,null,null,null,null,null,null,null,null,null,null,null,null,null,null,null,null,null,null,null,null,539,"2025-02-16",0,539,7]
[null,null,null,null,null,null,null,null,null,null,null,null,null,null,null,null,null,null,null,null,null,null,null,null,null,null,540,"2025-02-17",1,540,1]
[null,null,null,null,null,null,null,null,null,null,null,null,null,null,null,null,null,null,null,null,null,null,null,null,null,null,541,"2025-02-18",1,541,2]
[null,null,null,null,null,null,null,null,null,null,null,null,null,null,null,null,null,null,null,null,null,null,null,null,null,null,542,"2025-02-19",1,542,3]
[null,null,null,null,null,null,null,null,null,null,null,null,null,null,null,null,null,null,null,null,null,null,null,null,null,null,543,"2025-02-20",1,543,4]
[null,null,null,null,null,null,null,null,null,null,null,null,null,null,null,null,null,null,null,null,null,null,null,null,null,null,544,"2025-02-21",1,544,5]
[null,null,null,null,null,null,null,null,null,null,null,null,null,null,null,null,null,null,null,null,null,null,null,null,null,null,544,"2025-02-22",0,544,6]
[null,null,null,null,null,null,null,null,null,null,null,null,null,null,null,null,null,null,null,null,null,null,null,null,null,null,544,"2025-02-23",0,544,7]
[null,null,null,null,null,null,null,null,null,null,null,null,null,null,null,null,null,null,null,null,null,null,null,null,null,null,545,"2025-02-24",1,545,1]
[null,null,null,null,null,null,null,null,null,null,null,null,null,null,null,null,null,null,null,null,null,null,null,null,null,null,546,"2025-02-25",1,546,2]
[null,null,null,null,null,null,null,null,null,null,null,null,null,null,null,null,null,null,null,null,null,null,null,null,null,null,547,"2025-02-26",1,547,3]
[null,null,null,null,null,null,null,null,null,null,null,null,null,null,null,null,null,null,null,null,null,null,null,null,null,null,548,"2025-02-27",1,548,4]
[null,null,null,null,null,null,null,null,null,null,null,null,null,null,null,null,null,null,null,null,null,null,null,null,null,null,549,"2025-02-28",1,549,5]
[null,null,null,null,null,null,null,null,null,null,null,null,null,null,null,null,null,null,null,null,null,null,null,null,null,null,549,"2025-03-01",0,549,6]
[null,null,null,null,null,null,null,null,null,null,null,null,null,null,null,null,null,null,null,null,null,null,null,null,null,null,549,"2025-03-02",0,549,7]
[null,null,null,null,null,null,null,null,null,null,null,null,null,null,null,null,null,null,null,null,null,null,null,null,null,null,550,"2025-03-03",1,550,1]
[null,null,null,null,null,null,null,null,null,null,null,null,null,null,null,null,null,null,null,null,null,null,null,null,null,null,551,"2025-03-04",1,551,2]
[null,null,null,null,null,null,null,null,null,null,null,null,null,null,null,null,null,null,null,null,null,null,null,null,null,null,552,"2025-03-05",1,552,3]
[null,null,null,null,null,null,null,null,null,null,null,null,null,null,null,null,null,null,null,null,null,null,null,null,null,null,553,"2025-03-06",1,553,4]
[null,null,null,null,null,null,null,null,null,null,null,null,null,null,null,null,null,null,null,null,null,null,null,null,null,null,554,"2025-03-07",1,554,5]
[null,null,null,null,null,null,null,null,null,null,null,null,null,null,null,null,null,null,null,null,null,null,null,null,null,null,554,"2025-03-08",0,554,6]
[null,null,null,null,null,null,null,null,null,null,null,null,null,null,null,null,null,null,null,null,null,null,null,null,null,null,554,"2025-03-09",0,554,7]
[null,null,null,null,null,null,null,null,null,null,null,null,null,null,null,null,null,null,null,null,null,null,null,null,null,null,555,"2025-03-10",1,555,1]
[null,null,null,null,null,null,null,null,null,null,null,null,null,null,null,null,null,null,null,null,null,null,null,null,null,null,556,"2025-03-11",1,556,2]
[null,null,null,null,null,null,null,null,null,null,null,null,null,null,null,null,null,null,null,null,null,null,null,null,null,null,557,"2025-03-12",1,557,3]
[null,null,null,null,null,null,null,null,null,null,null,null,null,null,null,null,null,null,null,null,null,null,null,null,null,null,558,"2025-03-13",1,558,4]
[null,null,null,null,null,null,null,null,null,null,null,null,null,null,null,null,null,null,null,null,null,null,null,null,null,null,559,"2025-03-14",1,559,5]
[null,null,null,null,null,null,null,null,null,null,null,null,null,null,null,null,null,null,null,null,null,null,null,null,null,null,559,"2025-03-15",0,559,6]
[null,null,null,null,null,null,null,null,null,null,null,null,null,null,null,null,null,null,null,null,null,null,null,null,null,null,559,"2025-03-16",0,559,7]
[null,null,null,null,null,null,null,null,null,null,null,null,null,null,null,null,null,null,null,null,null,null,null,null,null,null,560,"2025-03-17",1,560,1]
[null,null,null,null,null,null,null,null,null,null,null,null,null,null,null,null,null,null,null,null,null,null,null,null,null,null,561,"2025-03-18",1,561,2]
[null,null,null,null,null,null,null,null,null,null,null,null,null,null,null,null,null,null,null,null,null,null,null,null,null,null,562,"2025-03-19",1,562,3]
[null,null,null,null,null,null,null,null,null,null,null,null,null,null,null,null,null,null,null,null,null,null,null,null,null,null,563,"2025-03-20",1,563,4]
[null,null,null,null,null,null,null,null,null,null,null,null,null,null,null,null,null,null,null,null,null,null,null,null,null,null,564,"2025-03-21",1,564,5]
[null,null,null,null,null,null,null,null,null,null,null,null,null,null,null,null,null,null,null,null,null,null,null,null,null,null,564,"2025-03-22",0,564,6]
[null,null,null,null,null,null,null,null,null,null,null,null,null,null,null,null,null,null,null,null,null,null,null,null,null,null,564,"2025-03-23",0,564,7]
[null,null,null,null,null,null,null,null,null,null,null,null,null,null,null,null,null,null,null,null,null,null,null,null,null,null,565,"2025-03-24",1,565,1]
[null,null,null,null,null,null,null,null,null,null,null,null,null,null,null,null,null,null,null,null,null,null,null,null,null,null,566,"2025-03-25",1,566,2]
[null,null,null,null,null,null,null,null,null,null,null,null,null,null,null,null,null,null,null,null,null,null,null,null,null,null,567,"2025-03-26",1,567,3]
[null,null,null,null,null,null,null,null,null,null,null,null,null,null,null,null,null,null,null,null,null,null,null,null,null,null,568,"2025-03-27",1,568,4]
[null,null,null,null,null,null,null,null,null,null,null,null,null,null,null,null,null,null,null,null,null,null,null,null,null,null,569,"2025-03-28",1,569,5]
[null,null,null,null,null,null,null,null,null,null,null,null,null,null,null,null,null,null,null,null,null,null,null,null,null,null,569,"2025-03-29",0,569,6]
[null,null,null,null,null,null,null,null,null,null,null,null,null,null,null,null,null,null,null,null,null,null,null,null,null,null,569,"2025-03-30",0,569,7]
[null,null,null,null,null,null,null,null,null,null,null,null,null,null,null,null,null,null,null,null,null,null,null,null,null,null,570,"2025-03-31",1,570,1]
[null,null,null,null,null,null,null,null,null,null,null,null,null,null,null,null,null,null,null,null,null,null,null,null,null,null,571,"2025-04-01",1,571,2]
[null,null,null,null,null,null,null,null,null,null,null,null,null,null,null,null,null,null,null,null,null,null,null,null,null,null,572,"2025-04-02",1,572,3]
[null,null,null,null,null,null,null,null,null,null,null,null,null,null,null,null,null,null,null,null,null,null,null,null,null,null,573,"2025-04-03",1,573,4]
[null,null,null,null,null,null,null,null,null,null,null,null,null,null,null,null,null,null,null,null,null,null,null,null,null,null,574,"2025-04-04",1,574,5]
[null,null,null,null,null,null,null,null,null,null,null,null,null,null,null,null,null,null,null,null,null,null,null,null,null,null,574,"2025-04-05",0,574,6]
[null,null,null,null,null,null,null,null,null,null,null,null,null,null,null,null,null,null,null,null,null,null,null,null,null,null,574,"2025-04-06",0,574,7]
[null,null,null,null,null,null,null,null,null,null,null,null,null,null,null,null,null,null,null,null,null,null,null,null,null,null,575,"2025-04-07",1,575,1]
[null,null,null,null,null,null,null,null,null,null,null,null,null,null,null,null,null,null,null,null,null,null,null,null,null,null,576,"2025-04-08",1,576,2]
[null,null,null,null,null,null,null,null,null,null,null,null,null,null,null,null,null,null,null,null,null,null,null,null,null,null,577,"2025-04-09",1,577,3]
[null,null,null,null,null,null,null,null,null,null,null,null,null,null,null,null,null,null,null,null,null,null,null,null,null,null,578,"2025-04-10",1,578,4]
[null,null,null,null,null,null,null,null,null,null,null,null,null,null,null,null,null,null,null,null,null,null,null,null,null,null,579,"2025-04-11",1,579,5]
[null,null,null,null,null,null,null,null,null,null,null,null,null,null,null,null,null,null,null,null,null,null,null,null,null,null,579,"2025-04-12",0,579,6]
[null,null,null,null,null,null,null,null,null,null,null,null,null,null,null,null,null,null,null,null,null,null,null,null,null,null,{"$f":"AA835+AC836","v":579},"2025-04-13",0,579,{"$f":"WEEKDAY(AB836,2)","v":7}]
[null,null,null,null,null,null,null,null,null,null,null,null,null,null,null,null,null,null,null,null,null,null,null,null,null,null,580,"2025-04-14",1,{"$f":"AA836+AC837","v":580},1]
[null,null,null,null,null,null,null,null,null,null,null,null,null,null,null,null,null,null,null,null,null,null,null,null,null,null,581,"2025-04-15",1,581,2]
[null,null,null,null,null,null,null,null,null,null,null,null,null,null,null,null,null,null,null,null,null,null,null,null,null,null,582,"2025-04-16",1,582,3]
[null,null,null,null,null,null,null,null,null,null,null,null,null,null,null,null,null,null,null,null,null,null,null,null,null,null,583,"2025-04-17",1,583,4]
[null,null,null,null,null,null,null,null,null,null,null,null,null,null,null,null,null,null,null,null,null,null,null,null,null,null,584,"2025-04-18",1,584,5]
[null,null,null,null,null,null,null,null,null,null,null,null,null,null,null,null,null,null,null,null,null,null,null,null,null,null,584,"2025-04-19",0,584,6]
[null,null,null,null,null,null,null,null,null,null,null,null,null,null,null,null,null,null,null,null,null,null,null,null,null,null,584,"2025-04-20",0,584,7]
[null,null,null,null,null,null,null,null,null,null,null,null,null,null,null,null,null,null,null,null,null,null,null,null,null,null,585,"2025-04-21",1,585,1]
[null,null,null,null,null,null,null,null,null,null,null,null,null,null,null,null,null,null,null,null,null,null,null,null,null,null,586,"2025-04-22",1,586,2]
[null,null,null,null,null,null,null,null,null,null,null,null,null,null,null,null,null,null,null,null,null,null,null,null,null,null,587,"2025-04-23",1,587,3]
[null,null,null,null,null,null,null,null,null,null,null,null,null,null,null,null,null,null,null,null,null,null,null,null,null,null,588,"2025-04-24",1,588,4]
[null,null,null,null,null,null,null,null,null,null,null,null,null,null,null,null,null,null,null,null,null,null,null,null,null,null,589,"2025-04-25",1,589,5]
[null,null,null,null,null,null,null,null,null,null,null,null,null,null,null,null,null,null,null,null,null,null,null,null,null,null,589,"2025-04-26",0,589,6]
[null,null,null,null,null,null,null,null,null,null,null,null,null,null,null,null,null,null,null,null,null,null,null,null,null,null,589,"2025-04-27",0,589,7]
[null,null,null,null,null,null,null,null,null,null,null,null,null,null,null,null,null,null,null,null,null,null,null,null,null,null,590,"2025-04-28",1,590,1]
[null,null,null,null,null,null,null,null,null,null,null,null,null,null,null,null,null,null,null,null,null,null,null,null,null,null,591,"2025-04-29",1,591,2]
[null,null,null,null,null,null,null,null,null,null,null,null,null,null,null,null,null,null,null,null,null,null,null,null,null,null,592,"2025-04-30",1,592,3]
[null,null,null,null,null,null,null,null,null,null,null,null,null,null,null,null,null,null,null,null,null,null,null,null,null,null,593,"2025-05-01",1,593,4]
[null,null,null,null,null,null,null,null,null,null,null,null,null,null,null,null,null,null,null,null,null,null,null,null,null,null,594,"2025-05-02",1,594,5]
[null,null,null,null,null,null,null,null,null,null,null,null,null,null,null,null,null,null,null,null,null,null,null,null,null,null,594,"2025-05-03",0,594,6]
[null,null,null,null,null,null,null,null,null,null,null,null,null,null,null,null,null,null,null,null,null,null,null,null,null,null,594,"2025-05-04",0,594,7]
[null,null,null,null,null,null,null,null,null,null,null,null,null,null,null,null,null,null,null,null,null,null,null,null,null,null,595,"2025-05-05",1,595,1]
[null,null,null,null,null,null,null,null,null,null,null,null,null,null,null,null,null,null,null,null,null,null,null,null,null,null,596,"2025-05-06",1,596,2]
[null,null,null,null,null,null,null,null,null,null,null,null,null,null,null,null,null,null,null,null,null,null,null,null,null,null,597,"2025-05-07",1,597,3]
[null,null,null,null,null,null,null,null,null,null,null,null,null,null,null,null,null,null,null,null,null,null,null,null,null,null,598,"2025-05-08",1,598,4]
[null,null,null,null,null,null,null,null,null,null,null,null,null,null,null,null,null,null,null,null,null,null,null,null,null,null,599,"2025-05-09",1,599,5]
[null,null,null,null,null,null,null,null,null,null,null,null,null,null,null,null,null,null,null,null,null,null,null,null,null,null,599,"2025-05-10",0,599,6]
[null,null,null,null,null,null,null,null,null,null,null,null,null,null,null,null,null,null,null,null,null,null,null,null,null,null,599,"2025-05-11",0,599,7]
[null,null,null,null,null,null,null,null,null,null,null,null,null,null,null,null,null,null,null,null,null,null,null,null,null,null,600,"2025-05-12",1,600,1]
[null,null,null,null,null,null,null,null,null,null,null,null,null,null,null,null,null,null,null,null,null,null,null,null,null,null,601,"2025-05-13",1,601,2]
[null,null,null,null,null,null,null,null,null,null,null,null,null,null,null,null,null,null,null,null,null,null,null,null,null,null,602,"2025-05-14",1,602,3]
[null,null,null,null,null,null,null,null,null,null,null,null,null,null,null,null,null,null,null,null,null,null,null,null,null,null,603,"2025-05-15",1,603,4]
[null,null,null,null,null,null,null,null,null,null,null,null,null,null,null,null,null,null,null,null,null,null,null,null,null,null,604,"2025-05-16",1,604,5]
[null,null,null,null,null,null,null,null,null,null,null,null,null,null,null,null,null,null,null,null,null,null,null,null,null,null,604,"2025-05-17",0,604,6]
[null,null,null,null,null,null,null,null,null,null,null,null,null,null,null,null,null,null,null,null,null,null,null,null,null,null,604,"2025-05-18",0,604,7]
[null,null,null,null,null,null,null,null,null,null,null,null,null,null,null,null,null,null,null,null,null,null,null,null,null,null,605,"2025-05-19",1,605,1]
[null,null,null,null,null,null,null,null,null,null,null,null,null,null,null,null,null,null,null,null,null,null,null,null,null,null,606,"2025-05-20",1,606,2]
[null,null,null,null,null,null,null,null,null,null,null,null,null,null,null,null,null,null,null,null,null,null,null,null,null,null,607,"2025-05-21",1,607,3]
[null,null,null,null,null,null,null,null,null,null,null,null,null,null,null,null,null,null,null,null,null,null,null,null,null,null,608,"2025-05-22",1,608,4]
[null,null,null,null,null,null,null,null,null,null,null,null,null,null,null,null,null,null,null,null,null,null,null,null,null,null,609,"2025-05-23",1,609,5]
[null,null,null,null,null,null,null,null,null,null,null,null,null,null,null,null,null,null,null,null,null,null,null,null,null,null,609,"2025-05-24",0,609,6]
[null,null,null,null,null,null,null,null,null,null,null,null,null,null,null,null,null,null,null,null,null,null,null,null,null,null,609,"2025-05-25",0,609,7]
[null,null,null,null,null,null,null,null,null,null,null,null,null,null,null,null,null,null,null,null,null,null,null,null,null,null,610,"2025-05-26",1,610,1]
[null,null,null,null,null,null,null,null,null,null,null,null,null,null,null,null,null,null,null,null,null,null,null,null,null,null,611,"2025-05-27",1,611,2]
[null,null,null,null,null,null,null,null,null,null,null,null,null,null,null,null,null,null,null,null,null,null,null,null,null,null,612,"2025-05-28",1,612,3]
[null,null,null,null,null,null,null,null,null,null,null,null,null,null,null,null,null,null,null,null,null,null,null,null,null,null,613,"2025-05-29",1,613,4]
[null,null,null,null,null,null,null,null,null,null,null,null,null,null,null,null,null,null,null,null,null,null,null,null,null,null,614,"2025-05-30",1,614,5]
[null,null,null,null,null,null,null,null,null,null,null,null,null,null,null,null,null,null,null,null,null,null,null,null,null,null,614,"2025-05-31",0,614,6]
[null,null,null,null,null,null,null,null,null,null,null,null,null,null,null,null,null,null,null,null,null,null,null,null,null,null,614,"2025-06-01",0,614,7]
[null,null,null,null,null,null,null,null,null,null,null,null,null,null,null,null,null,null,null,null,null,null,null,null,null,null,615,"2025-06-02",1,615,1]
[null,null,null,null,null,null,null,null,null,null,null,null,null,null,null,null,null,null,null,null,null,null,null,null,null,null,616,"2025-06-03",1,616,2]
[null,null,null,null,null,null,null,null,null,null,null,null,null,null,null,null,null,null,null,null,null,null,null,null,null,null,617,"2025-06-04",1,617,3]
[null,null,null,null,null,null,null,null,null,null,null,null,null,null,null,null,null,null,null,null,null,null,null,null,null,null,618,"2025-06-05",1,618,4]
[null,null,null,null,null,null,null,null,null,null,null,null,null,null,null,null,null,null,null,null,null,null,null,null,null,null,619,"2025-06-06",1,619,5]
[null,null,null,null,null,null,null,null,null,null,null,null,null,null,null,null,null,null,null,null,null,null,null,null,null,null,619,"2025-06-07",0,619,6]
[null,null,null,null,null,null,null,null,null,null,null,null,null,null,null,null,null,null,null,null,null,null,null,null,null,null,619,"2025-06-08",0,619,7]
[null,null,null,null,null,null,null,null,null,null,null,null,null,null,null,null,null,null,null,null,null,null,null,null,null,null,620,"2025-06-09",1,620,1]
[null,null,null,null,null,null,null,null,null,null,null,null,null,null,null,null,null,null,null,null,null,null,null,null,null,null,621,"2025-06-10",1,621,2]
[null,null,null,null,null,null,null,null,null,null,null,null,null,null,null,null,null,null,null,null,null,null,null,null,null,null,622,"2025-06-11",1,622,3]
[null,null,null,null,null,null,null,null,null,null,null,null,null,null,null,null,null,null,null,null,null,null,null,null,null,null,623,"2025-06-12",1,623,4]
[null,null,null,null,null,null,null,null,null,null,null,null,null,null,null,null,null,null,null,null,null,null,null,null,null,null,624,"2025-06-13",1,624,5]
[null,null,null,null,null,null,null,null,null,null,null,null,null,null,null,null,null,null,null,null,null,null,null,null,null,null,624,"2025-06-14",0,624,6]
[null,null,null,null,null,null,null,null,null,null,null,null,null,null,null,null,null,null,null,null,null,null,null,null,null,null,624,"2025-06-15",0,624,7]
[null,null,null,null,null,null,null,null,null,null,null,null,null,null,null,null,null,null,null,null,null,null,null,null,null,null,{"$f":"AA899+AC900","v":625},"2025-06-16",1,625,{"$f":"WEEKDAY(AB900,2)","v":1}]
[null,null,null,null,null,null,null,null,null,null,null,null,null,null,null,null,null,null,null,null,null,null,null,null,null,null,626,"2025-06-17",1,{"$f":"AA900+AC901","v":626},2]
[null,null,null,null,null,null,null,null,null,null,null,null,null,null,null,null,null,null,null,null,null,null,null,null,null,null,627,"2025-06-18",1,627,3]
[null,null,null,null,null,null,null,null,null,null,null,null,null,null,null,null,null,null,null,null,null,null,null,null,null,null,628,"2025-06-19",1,628,4]
[null,null,null,null,null,null,null,null,null,null,null,null,null,null,null,null,null,null,null,null,null,null,null,null,null,null,629,"2025-06-20",1,629,5]
[null,null,null,null,null,null,null,null,null,null,null,null,null,null,null,null,null,null,null,null,null,null,null,null,null,null,629,"2025-06-21",0,629,6]
[null,null,null,null,null,null,null,null,null,null,null,null,null,null,null,null,null,null,null,null,null,null,null,null,null,null,629,"2025-06-22",0,629,7]
[null,null,null,null,null,null,null,null,null,null,null,null,null,null,null,null,null,null,null,null,null,null,null,null,null,null,630,"2025-06-23",1,630,1]
[null,null,null,null,null,null,null,null,null,null,null,null,null,null,null,null,null,null,null,null,null,null,null,null,null,null,631,"2025-06-24",1,631,2]
[null,null,null,null,null,null,null,null,null,null,null,null,null,null,null,null,null,null,null,null,null,null,null,null,null,null,632,"2025-06-25",1,632,3]
[null,null,null,null,null,null,null,null,null,null,null,null,null,null,null,null,null,null,null,null,null,null,null,null,null,null,633,"2025-06-26",1,633,4]
[null,null,null,null,null,null,null,null,null,null,null,null,null,null,null,null,null,null,null,null,null,null,null,null,null,null,634,"2025-06-27",1,634,5]
[null,null,null,null,null,null,null,null,null,null,null,null,null,null,null,null,null,null,null,null,null,null,null,null,null,null,634,"2025-06-28",0,634,6]
[null,null,null,null,null,null,null,null,null,null,null,null,null,null,null,null,null,null,null,null,null,null,null,null,null,null,634,"2025-06-29",0,634,7]
[null,null,null,null,null,null,null,null,null,null,null,null,null,null,null,null,null,null,null,null,null,null,null,null,null,null,635,"2025-06-30",1,635,1]
[null,null,null,null,null,null,null,null,null,null,null,null,null,null,null,null,null,null,null,null,null,null,null,null,null,null,636,"2025-07-01",1,636,2]
[null,null,null,null,null,null,null,null,null,null,null,null,null,null,null,null,null,null,null,null,null,null,null,null,null,null,637,"2025-07-02",1,637,3]
[null,null,null,null,null,null,null,null,null,null,null,null,null,null,null,null,null,null,null,null,null,null,null,null,null,null,638,"2025-07-03",1,638,4]
[null,null,null,null,null,null,null,null,null,null,null,null,null,null,null,null,null,null,null,null,null,null,null,null,null,null,639,"2025-07-04",1,639,5]
[null,null,null,null,null,null,null,null,null,null,null,null,null,null,null,null,null,null,null,null,null,null,null,null,null,null,639,"2025-07-05",0,639,6]
[null,null,null,null,null,null,null,null,null,null,null,null,null,null,null,null,null,null,null,null,null,null,null,null,null,null,639,"2025-07-06",0,639,7]
[null,null,null,null,null,null,null,null,null,null,null,null,null,null,null,null,null,null,null,null,null,null,null,null,null,null,640,"2025-07-07",1,640,1]
[null,null,null,null,null,null,null,null,null,null,null,null,null,null,null,null,null,null,null,null,null,null,null,null,null,null,641,"2025-07-08",1,641,2]
[null,null,null,null,null,null,null,null,null,null,null,null,null,null,null,null,null,null,null,null,null,null,null,null,null,null,642,"2025-07-09",1,642,3]
[null,null,null,null,null,null,null,null,null,null,null,null,null,null,null,null,null,null,null,null,null,null,null,null,null,null,643,"2025-07-10",1,643,4]
[null,null,null,null,null,null,null,null,null,null,null,null,null,null,null,null,null,null,null,null,null,null,null,null,null,null,644,"2025-07-11",1,644,5]
[null,null,null,null,null,null,null,null,null,null,null,null,null,null,null,null,null,null,null,null,null,null,null,null,null,null,644,"2025-07-12",0,644,6]
[null,null,null,null,null,null,null,null,null,null,null,null,null,null,null,null,null,null,null,null,null,null,null,null,null,null,644,"2025-07-13",0,644,7]
[null,null,null,null,null,null,null,null,null,null,null,null,null,null,null,null,null,null,null,null,null,null,null,null,null,null,645,"2025-07-14",1,645,1]
[null,null,null,null,null,null,null,null,null,null,null,null,null,null,null,null,null,null,null,null,null,null,null,null,null,null,646,"2025-07-15",1,646,2]
[null,null,null,null,null,null,null,null,null,null,null,null,null,null,null,null,null,null,null,null,null,null,null,null,null,null,647,"2025-07-16",1,647,3]
[null,null,null,null,null,null,null,null,null,null,null,null,null,null,null,null,null,null,null,null,null,null,null,null,null,null,648,"2025-07-17",1,648,4]
[null,null,null,null,null,null,null,null,null,null,null,null,null,null,null,null,null,null,null,null,null,null,null,null,null,null,649,"2025-07-18",1,649,5]
[null,null,null,null,null,null,null,null,null,null,null,null,null,null,null,null,null,null,null,null,null,null,null,null,null,null,649,"2025-07-19",0,649,6]
[null,null,null,null,null,null,null,null,null,null,null,null,null,null,null,null,null,null,null,null,null,null,null,null,null,null,649,"2025-07-20",0,649,7]
[null,null,null,null,null,null,null,null,null,null,null,null,null,null,null,null,null,null,null,null,null,null,null,null,null,null,650,"2025-07-21",1,650,1]
[null,null,null,null,null,null,null,null,null,null,null,null,null,null,null,null,null,null,null,null,null,null,null,null,null,null,651,"2025-07-22",1,651,2]
[null,null,null,null,null,null,null,null,null,null,null,null,null,null,null,null,null,null,null,null,null,null,null,null,null,null,652,"2025-07-23",1,652,3]
[null,null,null,null,null,null,null,null,null,null,null,null,null,null,null,null,null,null,null,null,null,null,null,null,null,null,653,"2025-07-24",1,653,4]
[null,null,null,null,null,null,null,null,null,null,null,null,null,null,null,null,null,null,null,null,null,null,null,null,null,null,654,"2025-07-25",1,654,5]
[null,null,null,null,null,null,null,null,null,null,null,null,null,null,null,null,null,null,null,null,null,null,null,null,null,null,654,"2025-07-26",0,654,6]
[null,null,null,null,null,null,null,null,null,null,null,null,null,null,null,null,null,null,null,null,null,null,null,null,null,null,654,"2025-07-27",0,654,7]
[null,null,null,null,null,null,null,null,null,null,null,null,null,null,null,null,null,null,null,null,null,null,null,null,null,null,655,"2025-07-28",1,655,1]
[null,null,null,null,null,null,null,null,null,null,null,null,null,null,null,null,null,null,null,null,null,null,null,null,null,null,656,"2025-07-29",1,656,2]
[null,null,null,null,null,null,null,null,null,null,null,null,null,null,null,null,null,null,null,null,null,null,null,null,null,null,657,"2025-07-30",1,657,3]
[null,null,null,null,null,null,null,null,null,null,null,null,null,null,null,null,null,null,null,null,null,null,null,null,null,null,658,"2025-07-31",1,658,4]
[null,null,null,null,null,null,null,null,null,null,null,null,null,null,null,null,null,null,null,null,null,null,null,null,null,null,659,"2025-08-01",1,659,5]
[null,null,null,null,null,null,null,null,null,null,null,null,null,null,null,null,null,null,null,null,null,null,null,null,null,null,659,"2025-08-02",0,659,6]
[null,null,null,null,null,null,null,null,null,null,null,null,null,null,null,null,null,null,null,null,null,null,null,null,null,null,659,"2025-08-03",0,659,7]
[null,null,null,null,null,null,null,null,null,null,null,null,null,null,null,null,null,null,null,null,null,null,null,null,null,null,660,"2025-08-04",1,660,1]
[null,null,null,null,null,null,null,null,null,null,null,null,null,null,null,null,null,null,null,null,null,null,null,null,null,null,661,"2025-08-05",1,661,2]
[null,null,null,null,null,null,null,null,null,null,null,null,null,null,null,null,null,null,null,null,null,null,null,null,null,null,662,"2025-08-06",1,662,3]
[null,null,null,null,null,null,null,null,null,null,null,null,null,null,null,null,null,null,null,null,null,null,null,null,null,null,663,"2025-08-07",1,663,4]
[null,null,null,null,null,null,null,null,null,null,null,null,null,null,null,null,null,null,null,null,null,null,null,null,null,null,664,"2025-08-08",1,664,5]
[null,null,null,null,null,null,null,null,null,null,null,null,null,null,null,null,null,null,null,null,null,null,null,null,null,null,664,"2025-08-09",0,664,6]
[null,null,null,null,null,null,null,null,null,null,null,null,null,null,null,null,null,null,null,null,null,null,null,null,null,null,664,"2025-08-10",0,664,7]
[null,null,null,null,null,null,null,null,null,null,null,null,null,null,null,null,null,null,null,null,null,null,null,null,null,null,665,"2025-08-11",1,665,1]
[null,null,null,null,null,null,null,null,null,null,null,null,null,null,null,null,null,null,null,null,null,null,null,null,null,null,666,"2025-08-12",1,666,2]
[null,null,null,null,null,null,null,null,null,null,null,null,null,null,null,null,null,null,null,null,null,null,null,null,null,null,667,"2025-08-13",1,667,3]
[null,null,null,null,null,null,null,null,null,null,null,null,null,null,null,null,null,null,null,null,null,null,null,null,null,null,668,"2025-08-14",1,668,4]
[null,null,null,null,null,null,null,null,null,null,null,null,null,null,null,null,null,null,null,null,null,null,null,null,null,null,669,"2025-08-15",1,669,5]
[null,null,null,null,null,null,null,null,null,null,null,null,null,null,null,null,null,null,null,null,null,null,null,null,null,null,669,"2025-08-16",0,669,6]
[null,null,null,null,null,null,null,null,null,null,null,null,null,null,null,null,null,null,null,null,null,null,null,null,null,null,669,"2025-08-17",0,669,7]
[null,null,null,null,null,null,null,null,null,null,null,null,null,null,null,null,null,null,null,null,null,null,null,null,null,null,670,"2025-08-18",1,670,1]
[null,null,null,null,null,null,null,null,null,null,null,null,null,null,null,null,null,null,null,null,null,null,null,null,null,null,{"$f":"AA963+AC964","v":671},"2025-08-19",1,671,{"$f":"WEEKDAY(AB964,2)","v":2}]
[null,null,null,null,null,null,null,null,null,null,null,null,null,null,null,null,null,null,null,null,null,null,null,null,null,null,672,"2025-08-20",1,{"$f":"AA964+AC965","v":672},3]
[null,null,null,null,null,null,null,null,null,null,null,null,null,null,null,null,null,null,null,null,null,null,null,null,null,null,673,"2025-08-21",1,673,4]
[null,null,null,null,null,null,null,null,null,null,null,null,null,null,null,null,null,null,null,null,null,null,null,null,null,null,674,"2025-08-22",1,674,5]
[null,null,null,null,null,null,null,null,null,null,null,null,null,null,null,null,null,null,null,null,null,null,null,null,null,null,674,"2025-08-23",0,674,6]
[null,null,null,null,null,null,null,null,null,null,null,null,null,null,null,null,null,null,null,null,null,null,null,null,null,null,674,"2025-08-24",0,674,7]
[null,null,null,null,null,null,null,null,null,null,null,null,null,null,null,null,null,null,null,null,null,null,null,null,null,null,675,"2025-08-25",1,675,1]
[null,null,null,null,null,null,null,null,null,null,null,null,null,null,null,null,null,null,null,null,null,null,null,null,null,null,676,"2025-08-26",1,676,2]
[null,null,null,null,null,null,null,null,null,null,null,null,null,null,null,null,null,null,null,null,null,null,null,null,null,null,677,"2025-08-27",1,677,3]
[null,null,null,null,null,null,null,null,null,null,null,null,null,null,null,null,null,null,null,null,null,null,null,null,null,null,678,"2025-08-28",1,678,4]
[null,null,null,null,null,null,null,null,null,null,null,null,null,null,null,null,null,null,null,null,null,null,null,null,null,null,679,"2025-08-29",1,679,5]
[null,null,null,null,null,null,null,null,null,null,null,null,null,null,null,null,null,null,null,null,null,null,null,null,null,null,679,"2025-08-30",0,679,6]
[null,null,null,null,null,null,null,null,null,null,null,null,null,null,null,null,null,null,null,null,null,null,null,null,null,null,679,"2025-08-31",0,679,7]
[null,null,null,null,null,null,null,null,null,null,null,null,null,null,null,null,null,null,null,null,null,null,null,null,null,null,680,"2025-09-01",1,680,1]
[null,null,null,null,null,null,null,null,null,null,null,null,null,null,null,null,null,null,null,null,null,null,null,null,null,null,681,"2025-09-02",1,681,2]
[null,null,null,null,null,null,null,null,null,null,null,null,null,null,null,null,null,null,null,null,null,null,null,null,null,null,682,"2025-09-03",1,682,3]
[null,null,null,null,null,null,null,null,null,null,null,null,null,null,null,null,null,null,null,null,null,null,null,null,null,null,683,"2025-09-04",1,683,4]
[null,null,null,null,null,null,null,null,null,null,null,null,null,null,null,null,null,null,null,null,null,null,null,null,null,null,684,"2025-09-05",1,684,5]
[null,null,null,null,null,null,null,null,null,null,null,null,null,null,null,null,null,null,null,null,null,null,null,null,null,null,684,"2025-09-06",0,684,6]
[null,null,null,null,null,null,null,null,null,null,null,null,null,null,null,null,null,null,null,null,null,null,null,null,null,null,684,"2025-09-07",0,684,7]
[null,null,null,null,null,null,null,null,null,null,null,null,null,null,null,null,null,null,null,null,null,null,null,null,null,null,685,"2025-09-08",1,685,1]
[null,null,null,null,null,null,null,null,null,null,null,null,null,null,null,null,null,null,null,null,null,null,null,null,null,null,686,"2025-09-09",1,686,2]
[null,null,null,null,null,null,null,null,null,null,null,null,null,null,null,null,null,null,null,null,null,null,null,null,null,null,687,"2025-09-10",1,687,3]
[null,null,null,null,null,null,null,null,null,null,null,null,null,null,null,null,null,null,null,null,null,null,null,null,null,null,688,"2025-09-11",1,688,4]
[null,null,null,null,null,null,null,null,null,null,null,null,null,null,null,null,null,null,null,null,null,null,null,null,null,null,689,"2025-09-12",1,689,5]
[null,null,null,null,null,null,null,null,null,null,null,null,null,null,null,null,null,null,null,null,null,null,null,null,null,null,689,"2025-09-13",0,689,6]
[null,null,null,null,null,null,null,null,null,null,null,null,null,null,null,null,null,null,null,null,null,null,null,null,null,null,689,"2025-09-14",0,689,7]
[null,null,null,null,null,null,null,null,null,null,null,null,null,null,null,null,null,null,null,null,null,null,null,null,null,null,690,"2025-09-15",1,690,1]
[null,null,null,null,null,null,null,null,null,null,null,null,null,null,null,null,null,null,null,null,null,null,null,null,null,null,691,"2025-09-16",1,691,2]
[null,null,null,null,null,null,null,null,null,null,null,null,null,null,null,null,null,null,null,null,null,null,null,null,null,null,692,"2025-09-17",1,692,3]
[null,null,null,null,null,null,null,null,null,null,null,null,null,null,null,null,null,null,null,null,null,null,null,null,null,null,693,"2025-09-18",1,693,4]
[null,null,null,null,null,null,null,null,null,null,null,null,null,null,null,null,null,null,null,null,null,null,null,null,null,null,694,"2025-09-19",1,694,5]
[null,null,null,null,null,null,null,null,null,null,null,null,null,null,null,null,null,null,null,null,null,null,null,null,null,null,694,"2025-09-20",0,694,6]
[null,null,null,null,null,null,null,null,null,null,null,null,null,null,null,null,null,null,null,null,null,null,null,null,null,null,694,"2025-09-21",0,694,7]
[null,null,null,null,null,null,null,null,null,null,null,null,null,null,null,null,null,null,null,null,null,null,null,null,null,null,695,"2025-09-22",1,695,1]
[null,null,null,null,null,null,null,null,null,null,null,null,null,null,null,null,null,null,null,null,null,null,null,null,null,null,696,"2025-09-23",1,696,2]
[null,null,null,null,null,null,null,null,null,null,null,null,null,null,null,null,null,null,null,null,null,null,null,null,null,null,697,"2025-09-24",1,697,3]
[null,null,null,null,null,null,null,null,null,null,null,null,null,null,null,null,null,null,null,null,null,null,null,null,null,null,698,"2025-09-25",1,698,4]
[null,null,null,null,null,null,null,null,null,null,null,null,null,null,null,null,null,null,null,null,null,null,null,null,null,null,699,"2025-09-26",1,699,5]
[null,null,null,null,null,null,null,null,null,null,null,null,null,null,null,null,null,null,null,null,null,null,null,null,null,null,699,"2025-09-27",0,699,6]
[null,null,null,null,null,null,null,null,null,null,null,null,null,null,null,null,null,null,null,null,null,null,null,null,null,null,699,"2025-09-28",0,699,7]
[null,null,null,null,null,null,null,null,null,null,null,null,null,null,null,null,null,null,null,null,null,null,null,null,null,null,700,"2025-09-29",1,700,1]
[null,null,null,null,null,null,null,null,null,null,null,null,null,null,null,null,null,null,null,null,null,null,null,null,null,null,701,"2025-09-30",1,701,2]
[null,null,null,null,null,null,null,null,null,null,null,null,null,null,null,null,null,null,null,null,null,null,null,null,null,null,702,"2025-10-01",1,702,3]
[null,null,null,null,null,null,null,null,null,null,null,null,null,null,null,null,null,null,null,null,null,null,null,null,null,null,703,"2025-10-02",1,703,4]
[null,null,null,null,null,null,null,null,null,null,null,null,null,null,null,null,null,null,null,null,null,null,null,null,null,null,704,"2025-10-03",1,704,5]
[null,null,null,null,null,null,null,null,null,null,null,null,null,null,null,null,null,null,null,null,null,null,null,null,null,null,704,"2025-10-04",0,704,6]
[null,null,null,null,null,null,null,null,null,null,null,null,null,null,null,null,null,null,null,null,null,null,null,null,null,null,704,"2025-10-05",0,704,7]
[null,null,null,null,null,null,null,null,null,null,null,null,null,null,null,null,null,null,null,null,null,null,null,null,null,null,705,"2025-10-06",1,705,1]
[null,null,null,null,null,null,null,null,null,null,null,null,null,null,null,null,null,null,null,null,null,null,null,null,null,null,706,"2025-10-07",1,706,2]
[null,null,null,null,null,null,null,null,null,null,null,null,null,null,null,null,null,null,null,null,null,null,null,null,null,null,707,"2025-10-08",1,707,3]
[null,null,null,null,null,null,null,null,null,null,null,null,null,null,null,null,null,null,null,null,null,null,null,null,null,null,708,"2025-10-09",1,708,4]
[null,null,null,null,null,null,null,null,null,null,null,null,null,null,null,null,null,null,null,null,null,null,null,null,null,null,709,"2025-10-10",1,709,5]
[null,null,null,null,null,null,null,null,null,null,null,null,null,null,null,null,null,null,null,null,null,null,null,null,null,null,709,"2025-10-11",0,709,6]
[null,null,null,null,null,null,null,null,null,null,null,null,null,null,null,null,null,null,null,null,null,null,null,null,null,null,709,"2025-10-12",0,709,7]
[null,null,null,null,null,null,null,null,null,null,null,null,null,null,null,null,null,null,null,null,null,null,null,null,null,null,710,"2025-10-13",1,710,1]
[null,null,null,null,null,null,null,null,null,null,null,null,null,null,null,null,null,null,null,null,null,null,null,null,null,null,711,"2025-10-14",1,711,2]
[null,null,null,null,null,null,null,null,null,null,null,null,null,null,null,null,null,null,null,null,null,null,null,null,null,null,712,"2025-10-15",1,712,3]
[null,null,null,null,null,null,null,null,null,null,null,null,null,null,null,null,null,null,null,null,null,null,null,null,null,null,713,"2025-10-16",1,713,4]
[null,null,null,null,null,null,null,null,null,null,null,null,null,null,null,null,null,null,null,null,null,null,null,null,null,null,714,"2025-10-17",1,714,5]
[null,null,null,null,null,null,null,null,null,null,null,null,null,null,null,null,null,null,null,null,null,null,null,null,null,null,714,"2025-10-18",0,714,6]
[null,null,null,null,null,null,null,null,null,null,null,null,null,null,null,null,null,null,null,null,null,null,null,null,null,null,714,"2025-10-19",0,714,7]
[null,null,null,null,null,null,null,null,null,null,null,null,null,null,null,null,null,null,null,null,null,null,null,null,null,null,715,"2025-10-20",1,715,1]
[null,null,null,null,null,null,null,null,null,null,null,null,null,null,null,null,null,null,null,null,null,null,null,null,null,null,716,"2025-10-21",1,716,2]
[null,null,null,null,null,null,null,null,null,null,null,null,null,null,null,null,null,null,null,null,null,null,null,null,null,null,{"$f":"AA1027+AC1028","v":717},"2025-10-22",1,717,{"$f":"WEEKDAY(AB1028,2)","v":3}]
[null,null,null,null,null,null,null,null,null,null,null,null,null,null,null,null,null,null,null,null,null,null,null,null,null,null,718,"2025-10-23",1,{"$f":"AA1028+AC1029","v":718},4]
[null,null,null,null,null,null,null,null,null,null,null,null,null,null,null,null,null,null,null,null,null,null,null,null,null,null,719,"2025-10-24",1,719,5]
[null,null,null,null,null,null,null,null,null,null,null,null,null,null,null,null,null,null,null,null,null,null,null,null,null,null,719,"2025-10-25",0,719,6]
[null,null,null,null,null,null,null,null,null,null,null,null,null,null,null,null,null,null,null,null,null,null,null,null,null,null,719,"2025-10-26",0,719,7]
[null,null,null,null,null,null,null,null,null,null,null,null,null,null,null,null,null,null,null,null,null,null,null,null,null,null,720,"2025-10-27",1,720,1]
[null,null,null,null,null,null,null,null,null,null,null,null,null,null,null,null,null,null,null,null,null,null,null,null,null,null,721,"2025-10-28",1,721,2]
[null,null,null,null,null,null,null,null,null,null,null,null,null,null,null,null,null,null,null,null,null,null,null,null,null,null,722,"2025-10-29",1,722,3]
[null,null,null,null,null,null,null,null,null,null,null,null,null,null,null,null,null,null,null,null,null,null,null,null,null,null,723,"2025-10-30",1,723,4]
[null,null,null,null,null,null,null,null,null,null,null,null,null,null,null,null,null,null,null,null,null,null,null,null,null,null,724,"2025-10-31",1,724,5]
[null,null,null,null,null,null,null,null,null,null,null,null,null,null,null,null,null,null,null,null,null,null,null,null,null,null,724,"2025-11-01",0,724,6]
[null,null,null,null,null,null,null,null,null,null,null,null,null,null,null,null,null,null,null,null,null,null,null,null,null,null,724,"2025-11-02",0,724,7]
[null,null,null,null,null,null,null,null,null,null,null,null,null,null,null,null,null,null,null,null,null,null,null,null,null,null,725,"2025-11-03",1,725,1]
[null,null,null,null,null,null,null,null,null,null,null,null,null,null,null,null,null,null,null,null,null,null,null,null,null,null,726,"2025-11-04",1,726,2]
[null,null,null,null,null,null,null,null,null,null,null,null,null,null,null,null,null,null,null,null,null,null,null,null,null,null,727,"2025-11-05",1,727,3]
[null,null,null,null,null,null,null,null,null,null,null,null,null,null,null,null,null,null,null,null,null,null,null,null,null,null,728,"2025-11-06",1,728,4]
[null,null,null,null,null,null,null,null,null,null,null,null,null,null,null,null,null,null,null,null,null,null,null,null,null,null,729,"2025-11-07",1,729,5]
[null,null,null,null,null,null,null,null,null,null,null,null,null,null,null,null,null,null,null,null,null,null,null,null,null,null,729,"2025-11-08",0,729,6]
[null,null,null,null,null,null,null,null,null,null,null,null,null,null,null,null,null,null,null,null,null,null,null,null,null,null,729,"2025-11-09",0,729,7]
[null,null,null,null,null,null,null,null,null,null,null,null,null,null,null,null,null,null,null,null,null,null,null,null,null,null,730,"2025-11-10",1,730,1]
[null,null,null,null,null,null,null,null,null,null,null,null,null,null,null,null,null,null,null,null,null,null,null,null,null,null,731,"2025-11-11",1,731,2]
[null,null,null,null,null,null,null,null,null,null,null,null,null,null,null,null,null,null,null,null,null,null,null,null,null,null,732,"2025-11-12",1,732,3]
[null,null,null,null,null,null,null,null,null,null,null,null,null,null,null,null,null,null,null,null,null,null,null,null,null,null,733,"2025-11-13",1,733,4]
[null,null,null,null,null,null,null,null,null,null,null,null,null,null,null,null,null,null,null,null,null,null,null,null,null,null,734,"2025-11-14",1,734,5]
[null,null,null,null,null,null,null,null,null,null,null,null,null,null,null,null,null,null,null,null,null,null,null,null,null,null,734,"2025-11-15",0,734,6]
[null,null,null,null,null,null,null,null,null,null,null,null,null,null,null,null,null,null,null,null,null,null,null,null,null,null,734,"2025-11-16",0,734,7]
[null,null,null,null,null,null,null,null,null,null,null,null,null,null,null,null,null,null,null,null,null,null,null,null,null,null,735,"2025-11-17",1,735,1]
[null,null,null,null,null,null,null,null,null,null,null,null,null,null,null,null,null,null,null,null,null,null,null,null,null,null,736,"2025-11-18",1,736,2]
[null,null,null,null,null,null,null,null,null,null,null,null,null,null,null,null,null,null,null,null,null,null,null,null,null,null,737,"2025-11-19",1,737,3]
[null,null,null,null,null,null,null,null,null,null,null,null,null,null,null,null,null,null,null,null,null,null,null,null,null,null,738,"2025-11-20",1,738,4]
[null,null,null,null,null,null,null,null,null,null,null,null,null,null,null,null,null,null,null,null,null,null,null,null,null,null,739,"2025-11-21",1,739,5]
[null,null,null,null,null,null,null,null,null,null,null,null,null,null,null,null,null,null,null,null,null,null,null,null,null,null,739,"2025-11-22",0,739,6]
[null,null,null,null,null,null,null,null,null,null,null,null,null,null,null,null,null,null,null,null,null,null,null,null,null,null,739,"2025-11-23",0,739,7]
[null,null,null,null,null,null,null,null,null,null,null,null,null,null,null,null,null,null,null,null,null,null,null,null,null,null,740,"2025-11-24",1,740,1]
[null,null,null,null,null,null,null,null,null,null,null,null,null,null,null,null,null,null,null,null,null,null,null,null,null,null,741,"2025-11-25",1,741,2]
[null,null,null,null,null,null,null,null,null,null,null,null,null,null,null,null,null,null,null,null,null,null,null,null,null,null,742,"2025-11-26",1,742,3]
[null,null,null,null,null,null,null,null,null,null,null,null,null,null,null,null,null,null,null,null,null,null,null,null,null,null,743,"2025-11-27",1,743,4]
[null,null,null,null,null,null,null,null,null,null,null,null,null,null,null,null,null,null,null,null,null,null,null,null,null,null,744,"2025-11-28",1,744,5]
[null,null,null,null,null,null,null,null,null,null,null,null,null,null,null,null,null,null,null,null,null,null,null,null,null,null,744,"2025-11-29",0,744,6]
[null,null,null,null,null,null,null,null,null,null,null,null,null,null,null,null,null,null,null,null,null,null,null,null,null,null,744,"2025-11-30",0,744,7]
[null,null,null,null,null,null,null,null,null,null,null,null,null,null,null,null,null,null,null,null,null,null,null,null,null,null,745,"2025-12-01",1,745,1]
[null,null,null,null,null,null,null,null,null,null,null,null,null,null,null,null,null,null,null,null,null,null,null,null,null,null,746,"2025-12-02",1,746,2]
[null,null,null,null,null,null,null,null,null,null,null,null,null,null,null,null,null,null,null,null,null,null,null,null,null,null,747,"2025-12-03",1,747,3]
[null,null,null,null,null,null,null,null,null,null,null,null,null,null,null,null,null,null,null,null,null,null,null,null,null,null,748,"2025-12-04",1,748,4]
[null,null,null,null,null,null,null,null,null,null,null,null,null,null,null,null,null,null,null,null,null,null,null,null,null,null,749,"2025-12-05",1,749,5]
[null,null,null,null,null,null,null,null,null,null,null,null,null,null,null,null,null,null,null,null,null,null,null,null,null,null,749,"2025-12-06",0,749,6]
[null,null,null,null,null,null,null,null,null,null,null,null,null,null,null,null,null,null,null,null,null,null,null,null,null,null,749,"2025-12-07",0,749,7]
[null,null,null,null,null,null,null,null,null,null,null,null,null,null,null,null,null,null,null,null,null,null,null,null,null,null,750,"2025-12-08",1,750,1]
[null,null,null,null,null,null,null,null,null,null,null,null,null,null,null,null,null,null,null,null,null,null,null,null,null,null,751,"2025-12-09",1,751,2]
[null,null,null,null,null,null,null,null,null,null,null,null,null,null,null,null,null,null,null,null,null,null,null,null,null,null,752,"2025-12-10",1,752,3]
[null,null,null,null,null,null,null,null,null,null,null,null,null,null,null,null,null,null,null,null,null,null,null,null,null,null,753,"2025-12-11",1,753,4]
[null,null,null,null,null,null,null,null,null,null,null,null,null,null,null,null,null,null,null,null,null,null,null,null,null,null,754,"2025-12-12",1,754,5]
[null,null,null,null,null,null,null,null,null,null,null,null,null,null,null,null,null,null,null,null,null,null,null,null,null,null,754,"2025-12-13",0,754,6]
[null,null,null,null,null,null,null,null,null,null,null,null,null,null,null,null,null,null,null,null,null,null,null,null,null,null,754,"2025-12-14",0,754,7]
[null,null,null,null,null,null,null,null,null,null,null,null,null,null,null,null,null,null,null,null,null,null,null,null,null,null,755,"2025-12-15",1,755,1]
[null,null,null,null,null,null,null,null,null,null,null,null,null,null,null,null,null,null,null,null,null,null,null,null,null,null,756,"2025-12-16",1,756,2]
[null,null,null,null,null,null,null,null,null,null,null,null,null,null,null,null,null,null,null,null,null,null,null,null,null,null,757,"2025-12-17",1,757,3]
[null,null,null,null,null,null,null,null,null,null,null,null,null,null,null,null,null,null,null,null,null,null,null,null,null,null,758,"2025-12-18",1,758,4]
[null,null,null,null,null,null,null,null,null,null,null,null,null,null,null,null,null,null,null,null,null,null,null,null,null,null,759,"2025-12-19",1,759,5]
[null,null,null,null,null,null,null,null,null,null,null,null,null,null,null,null,null,null,null,null,null,null,null,null,null,null,759,"2025-12-20",0,759,6]
[null,null,null,null,null,null,null,null,null,null,null,null,null,null,null,null,null,null,null,null,null,null,null,null,null,null,759,"2025-12-21",0,759,7]
[null,null,null,null,null,null,null,null,null,null,null,null,null,null,null,null,null,null,null,null,null,null,null,null,null,null,760,"2025-12-22",1,760,1]
[null,null,null,null,null,null,null,null,null,null,null,null,null,null,null,null,null,null,null,null,null,null,null,null,null,null,761,"2025-12-23",1,761,2]
[null,null,null,null,null,null,null,null,null,null,null,null,null,null,null,null,null,null,null,null,null,null,null,null,null,null,762,"2025-12-24",1,762,3]
[null,null,null,null,null,null,null,null,null,null,null,null,null,null,null,null,null,null,null,null,null,null,null,null,null,null,{"$f":"AA1091+AC1092","v":763},"2025-12-25",1,763,{"$f":"WEEKDAY(AB1092,2)","v":4}]
[null,null,null,null,null,null,null,null,null,null,null,null,null,null,null,null,null,null,null,null,null,null,null,null,null,null,764,"2025-12-26",1,{"$f":"AA1092+AC1093","v":764},5]
[null,null,null,null,null,null,null,null,null,null,null,null,null,null,null,null,null,null,null,null,null,null,null,null,null,null,764,"2025-12-27",0,764,6]
[null,null,null,null,null,null,null,null,null,null,null,null,null,null,null,null,null,null,null,null,null,null,null,null,null,null,764,"2025-12-28",0,764,7]
[null,null,null,null,null,null,null,null,null,null,null,null,null,null,null,null,null,null,null,null,null,null,null,null,null,null,765,"2025-12-29",1,765,1]
[null,null,null,null,null,null,null,null,null,null,null,null,null,null,null,null,null,null,null,null,null,null,null,null,null,null,766,"2025-12-30",1,766,2]
[null,null,null,null,null,null,null,null,null,null,null,null,null,null,null,null,null,null,null,null,null,null,null,null,null,null,767,"2025-12-31",1,767,3]
[null,null,null,null,null,null,null,null,null,null,null,null,null,null,null,null,null,null,null,null,null,null,null,null,null,null,768,"2026-01-01",1,768,4]
[null,null,null,null,null,null,null,null,null,null,null,null,null,null,null,null,null,null,null,null,null,null,null,null,null,null,769,"2026-01-02",1,769,5]
[null,null,null,null,null,null,null,null,null,null,null,null,null,null,null,null,null,null,null,null,null,null,null,null,null,null,769,"2026-01-03",0,769,6]
[null,null,null,null,null,null,null,null,null,null,null,null,null,null,null,null,null,null,null,null,null,null,null,null,null,null,769,"2026-01-04",0,769,7]
[null,null,null,null,null,null,null,null,null,null,null,null,null,null,null,null,null,null,null,null,null,null,null,null,null,null,770,"2026-01-05",1,770,1]
[null,null,null,null,null,null,null,null,null,null,null,null,null,null,null,null,null,null,null,null,null,null,null,null,null,null,771,"2026-01-06",1,771,2]
[null,null,null,null,null,null,null,null,null,null,null,null,null,null,null,null,null,null,null,null,null,null,null,null,null,null,772,"2026-01-07",1,772,3]
[null,null,null,null,null,null,null,null,null,null,null,null,null,null,null,null,null,null,null,null,null,null,null,null,null,null,773,"2026-01-08",1,773,4]
[null,null,null,null,null,null,null,null,null,null,null,null,null,null,null,null,null,null,null,null,null,null,null,null,null,null,774,"2026-01-09",1,774,5]
[null,null,null,null,null,null,null,null,null,null,null,null,null,null,null,null,null,null,null,null,null,null,null,null,null,null,774,"2026-01-10",0,774,6]
[null,null,null,null,null,null,null,null,null,null,null,null,null,null,null,null,null,null,null,null,null,null,null,null,null,null,774,"2026-01-11",0,774,7]
[null,null,null,null,null,null,null,null,null,null,null,null,null,null,null,null,null,null,null,null,null,null,null,null,null,null,775,"2026-01-12",1,775,1]
[null,null,null,null,null,null,null,null,null,null,null,null,null,null,null,null,null,null,null,null,null,null,null,null,null,null,776,"2026-01-13",1,776,2]
[null,null,null,null,null,null,null,null,null,null,null,null,null,null,null,null,null,null,null,null,null,null,null,null,null,null,777,"2026-01-14",1,777,3]
[null,null,null,null,null,null,null,null,null,null,null,null,null,null,null,null,null,null,null,null,null,null,null,null,null,null,778,"2026-01-15",1,778,4]
[null,null,null,null,null,null,null,null,null,null,null,null,null,null,null,null,null,null,null,null,null,null,null,null,null,null,779,"2026-01-16",1,779,5]
[null,null,null,null,null,null,null,null,null,null,null,null,null,null,null,null,null,null,null,null,null,null,null,null,null,null,779,"2026-01-17",0,779,6]
[null,null,null,null,null,null,null,null,null,null,null,null,null,null,null,null,null,null,null,null,null,null,null,null,null,null,779,"2026-01-18",0,779,7]
[null,null,null,null,null,null,null,null,null,null,null,null,null,null,null,null,null,null,null,null,null,null,null,null,null,null,780,"2026-01-19",1,780,1]
[null,null,null,null,null,null,null,null,null,null,null,null,null,null,null,null,null,null,null,null,null,null,null,null,null,null,781,"2026-01-20",1,781,2]
[null,null,null,null,null,null,null,null,null,null,null,null,null,null,null,null,null,null,null,null,null,null,null,null,null,null,782,"2026-01-21",1,782,3]
[null,null,null,null,null,null,null,null,null,null,null,null,null,null,null,null,null,null,null,null,null,null,null,null,null,null,783,"2026-01-22",1,783,4]
[null,null,null,null,null,null,null,null,null,null,null,null,null,null,null,null,null,null,null,null,null,null,null,null,null,null,784,"2026-01-23",1,784,5]
[null,null,null,null,null,null,null,null,null,null,null,null,null,null,null,null,null,null,null,null,null,null,null,null,null,null,784,"2026-01-24",0,784,6]
[null,null,null,null,null,null,null,null,null,null,null,null,null,null,null,null,null,null,null,null,null,null,null,null,null,null,784,"2026-01-25",0,784,7]
[null,null,null,null,null,null,null,null,null,null,null,null,null,null,null,null,null,null,null,null,null,null,null,null,null,null,785,"2026-01-26",1,785,1]
[null,null,null,null,null,null,null,null,null,null,null,null,null,null,null,null,null,null,null,null,null,null,null,null,null,null,786,"2026-01-27",1,786,2]
[null,null,null,null,null,null,null,null,null,null,null,null,null,null,null,null,null,null,null,null,null,null,null,null,null,null,787,"2026-01-28",1,787,3]
[null,null,null,null,null,null,null,null,null,null,null,null,null,null,null,null,null,null,null,null,null,null,null,null,null,null,788,"2026-01-29",1,788,4]
[null,null,null,null,null,null,null,null,null,null,null,null,null,null,null,null,null,null,null,null,null,null,null,null,null,null,789,"2026-01-30",1,789,5]
[null,null,null,null,null,null,null,null,null,null,null,null,null,null,null,null,null,null,null,null,null,null,null,null,null,null,789,"2026-01-31",0,789,6]
[null,null,null,null,null,null,null,null,null,null,null,null,null,null,null,null,null,null,null,null,null,null,null,null,null,null,789,"2026-02-01",0,789,7]
[null,null,null,null,null,null,null,null,null,null,null,null,null,null,null,null,null,null,null,null,null,null,null,null,null,null,790,"2026-02-02",1,790,1]
[null,null,null,null,null,null,null,null,null,null,null,null,null,null,null,null,null,null,null,null,null,null,null,null,null,null,791,"2026-02-03",1,791,2]
[null,null,null,null,null,null,null,null,null,null,null,null,null,null,null,null,null,null,null,null,null,null,null,null,null,null,792,"2026-02-04",1,792,3]
[null,null,null,null,null,null,null,null,null,null,null,null,null,null,null,null,null,null,null,null,null,null,null,null,null,null,793,"2026-02-05",1,793,4]
[null,null,null,null,null,null,null,null,null,null,null,null,null,null,null,null,null,null,null,null,null,null,null,null,null,null,794,"2026-02-06",1,794,5]
[null,null,null,null,null,null,null,null,null,null,null,null,null,null,null,null,null,null,null,null,null,null,null,null,null,null,794,"2026-02-07",0,794,6]
[null,null,null,null,null,null,null,null,null,null,null,null,null,null,null,null,null,null,null,null,null,null,null,null,null,null,794,"2026-02-08",0,794,7]
[null,null,null,null,null,null,null,null,null,null,null,null,null,null,null,null,null,null,null,null,null,null,null,null,null,null,795,"2026-02-09",1,795,1]
[null,null,null,null,null,null,null,null,null,null,null,null,null,null,null,null,null,null,null,null,null,null,null,null,null,null,796,"2026-02-10",1,796,2]
[null,null,null,null,null,null,null,null,null,null,null,null,null,null,null,null,null,null,null,null,null,null,null,null,null,null,797,"2026-02-11",1,797,3]
[null,null,null,null,null,null,null,null,null,null,null,null,null,null,null,null,null,null,null,null,null,null,null,null,null,null,798,"2026-02-12",1,798,4]
[null,null,null,null,null,null,null,null,null,null,null,null,null,null,null,null,null,null,null,null,null,null,null,null,null,null,799,"2026-02-13",1,799,5]
[null,null,null,null,null,null,null,null,null,null,null,null,null,null,null,null,null,null,null,null,null,null,null,null,null,null,799,"2026-02-14",0,799,6]
[null,null,null,null,null,null,null,null,null,null,null,null,null,null,null,null,null,null,null,null,null,null,null,null,null,null,799,"2026-02-15",0,799,7]
[null,null,null,null,null,null,null,null,null,null,null,null,null,null,null,null,null,null,null,null,null,null,null,null,null,null,800,"2026-02-16",1,800,1]
[null,null,null,null,null,null,null,null,null,null,null,null,null,null,null,null,null,null,null,null,null,null,null,null,null,null,801,"2026-02-17",1,801,2]
[null,null,null,null,null,null,null,null,null,null,null,null,null,null,null,null,null,null,null,null,null,null,null,null,null,null,802,"2026-02-18",1,802,3]
[null,null,null,null,null,null,null,null,null,null,null,null,null,null,null,null,null,null,null,null,null,null,null,null,null,null,803,"2026-02-19",1,803,4]
[null,null,null,null,null,null,null,null,null,null,null,null,null,null,null,null,null,null,null,null,null,null,null,null,null,null,804,"2026-02-20",1,804,5]
[null,null,null,null,null,null,null,null,null,null,null,null,null,null,null,null,null,null,null,null,null,null,null,null,null,null,804,"2026-02-21",0,804,6]
[null,null,null,null,null,null,null,null,null,null,null,null,null,null,null,null,null,null,null,null,null,null,null,null,null,null,804,"2026-02-22",0,804,7]
[null,null,null,null,null,null,null,null,null,null,null,null,null,null,null,null,null,null,null,null,null,null,null,null,null,null,805,"2026-02-23",1,805,1]
[null,null,null,null,null,null,null,null,null,null,null,null,null,null,null,null,null,null,null,null,null,null,null,null,null,null,806,"2026-02-24",1,806,2]
[null,null,null,null,null,null,null,null,null,null,null,null,null,null,null,null,null,null,null,null,null,null,null,null,null,null,807,"2026-02-25",1,807,3]
[null,null,null,null,null,null,null,null,null,null,null,null,null,null,null,null,null,null,null,null,null,null,null,null,null,null,808,"2026-02-26",1,808,4]
[null,null,null,null,null,null,null,null,null,null,null,null,null,null,null,null,null,null,null,null,null,null,null,null,null,null,{"$f":"AA1155+AC1156","v":809},"2026-02-27",1,809,{"$f":"WEEKDAY(AB1156,2)","v":5}]
[null,null,null,null,null,null,null,null,null,null,null,null,null,null,null,null,null,null,null,null,null,null,null,null,null,null,809,"2026-02-28",0,{"$f":"AA1156+AC1157","v":809},6]
[null,null,null,null,null,null,null,null,null,null,null,null,null,null,null,null,null,null,null,null,null,null,null,null,null,null,809,"2026-03-01",0,809,7]
[null,null,null,null,null,null,null,null,null,null,null,null,null,null,null,null,null,null,null,null,null,null,null,null,null,null,810,"2026-03-02",1,810,1]
[null,null,null,null,null,null,null,null,null,null,null,null,null,null,null,null,null,null,null,null,null,null,null,null,null,null,811,"2026-03-03",1,811,2]
[null,null,null,null,null,null,null,null,null,null,null,null,null,null,null,null,null,null,null,null,null,null,null,null,null,null,812,"2026-03-04",1,812,3]
[null,null,null,null,null,null,null,null,null,null,null,null,null,null,null,null,null,null,null,null,null,null,null,null,null,null,813,"2026-03-05",1,813,4]
[null,null,null,null,null,null,null,null,null,null,null,null,null,null,null,null,null,null,null,null,null,null,null,null,null,null,814,"2026-03-06",1,814,5]
[null,null,null,null,null,null,null,null,null,null,null,null,null,null,null,null,null,null,null,null,null,null,null,null,null,null,814,"2026-03-07",0,814,6]
[null,null,null,null,null,null,null,null,null,null,null,null,null,null,null,null,null,null,null,null,null,null,null,null,null,null,814,"2026-03-08",0,814,7]
[null,null,null,null,null,null,null,null,null,null,null,null,null,null,null,null,null,null,null,null,null,null,null,null,null,null,815,"2026-03-09",1,815,1]
[null,null,null,null,null,null,null,null,null,null,null,null,null,null,null,null,null,null,null,null,null,null,null,null,null,null,816,"2026-03-10",1,816,2]
[null,null,null,null,null,null,null,null,null,null,null,null,null,null,null,null,null,null,null,null,null,null,null,null,null,null,817,"2026-03-11",1,817,3]
[null,null,null,null,null,null,null,null,null,null,null,null,null,null,null,null,null,null,null,null,null,null,null,null,null,null,818,"2026-03-12",1,818,4]
[null,null,null,null,null,null,null,null,null,null,null,null,null,null,null,null,null,null,null,null,null,null,null,null,null,null,819,"2026-03-13",1,819,5]